Departmental Family,Entity,Date,Expense Type,Expense Area,Supplier,Transaction Number,Amount
Department for Work and Pensions,Jobcentre Plus,30/09/2010,PRIME CHARGES,CHIEF OPERATING OFFICER,TELEREAL TRILLIUM,2017388154,"30,199,968.20"
Department for Work and Pensions,Corporate,13/09/2010,CFERS PAID TO HM TREASURY,HQ BALANCE SHEET ,CONSOLIDATED FUND,2002125,"14,070,430.07"
Department for Work and Pensions,Corporate,17/09/2010,FINANCIAL ASSISTANCE SCHEME,PENSIONS CLIENT DIRECTORATE,PENSION PROTECTION FUND,1004421,"11,407,000.00"
Department for Work and Pensions,Employment Programmes,03/09/2010,GRANTS IN AID TO PUBLIC CORPORATIONS,EG EMPLOYMENT PROGRAMMES,REMPLOY LTD,1004407,"10,000,000.00"
Department for Work and Pensions,Corporate,07/09/2010,HOSTING,CORPORATE IT,HP ENTERPRISE SERVICES UK LTD,2016985252,"7,521,729.17"
Department for Work and Pensions,Corporate,14/09/2010,DESKTOP,CORPORATE IT,HP ENTERPRISE SERVICES UK LTD,2017085801,"7,278,366.54"
Department for Work and Pensions,Corporate,27/09/2010,BANKING AND ENCASHMENT COSTS,GROUP FINANCE,POST OFFICE LTD,1004430,"5,772,143.78"
Department for Work and Pensions,Employment Programmes,03/09/2010,YOUNG PERSONS GUARANTEE (YPG) AND FUTURE JOBS FUND (FJF),EG EMPLOYMENT PROGRAMMES,SALFORD CITY COUNCIL,2016973177,"4,875,000.00"
Department for Work and Pensions,Corporate,30/09/2010,AR PRIME RECOVERIES,HQ BALANCE SHEET ,TELEREAL TRILLIUM,2017388154,"4,749,171.59"
Department for Work and Pensions,Jobcentre Plus,30/09/2010,PRIME BUSINESS RATES,CHIEF OPERATING OFFICER,TELEREAL TRILLIUM,2017388155,"4,708,060.33"
Department for Work and Pensions,Employment Programmes,13/09/2010,YOUNG PERSONS GUARANTEE (YPG) AND FUTURE JOBS FUND (FJF),EG EMPLOYMENT PROGRAMMES,SCOTTISH GOVERNMENT,2002142,"4,340,000.00"
Department for Work and Pensions,European Social Fund,13/09/2010,ESF NON-PREFUNDED EXPENDITURE,WWEG EUROPEAN SOCIAL FUND,SOUTH EAST DWP,5000000319,"4,242,116.00"
Department for Work and Pensions,Corporate,14/09/2010,HOSTING,CORPORATE IT,HP ENTERPRISE SERVICES UK LTD,2017085801,"3,771,851.22"
Department for Work and Pensions,Corporate,14/09/2010,NETWORK,CORPORATE IT,BT SYNTEGRA,2017083243,"3,717,246.81"
Department for Work and Pensions,Employment Programmes,13/09/2010,DAF,EG EMPLOYMENT PROGRAMMES,DCLG,2002119,"3,697,500.00"
Department for Work and Pensions,European Social Fund,30/09/2010,ESF NON-PREFUNDED EXPENDITURE,WWEG EUROPEAN SOCIAL FUND,LONDON DWP,2017386159,"3,641,159.00"
Department for Work and Pensions,Corporate,07/09/2010,COMPUTER SERVICES,CORPORATE IT,HP ENTERPRISE SERVICES UK LTD,2016985252,"3,632,264.66"
Department for Work and Pensions,Jobcentre Plus,01/09/2010,NI & OGDs,CHIEF OPERATING OFFICER,DEPARTMENT OF SOCIAL DEVELOPMENT,1004400,"3,609,144.92"
Department for Work and Pensions,Jobcentre Plus,15/09/2010,MEDICAL SERVICES CONTRACT,CHIEF OPERATING OFFICER,ATOS ORIGIN MEDICAL SERVICES,2017097903,"3,520,884.25"
Department for Work and Pensions,Jobcentre Plus,14/09/2010,MEDICAL SERVICES,CHIEF OPERATING OFFICER,ATOS ORIGIN MEDICAL SERVICES,2017082964,"3,222,369.52"
Department for Work and Pensions,Employment Programmes,08/09/2010,EP GENERIC PROVIDER PAYMENTS,EG EMPLOYMENT PROGRAMMES,SERCO LTD,2017060189,"3,024,679.67"
Department for Work and Pensions,Employment Programmes,02/09/2010,YOUNG PERSONS GUARANTEE (YPG) AND FUTURE JOBS FUND (FJF),EG EMPLOYMENT PROGRAMMES,KNOWSLEY METROPOLITAN BOROUGH COUNCIL,2016965521,"2,918,512.80"
Department for Work and Pensions,Employment Programmes,07/09/2010,YOUNG PERSONS GUARANTEE (YPG) AND FUTURE JOBS FUND (FJF),EG EMPLOYMENT PROGRAMMES,GROUNDWORK UK,2016985085,"2,645,500.00"
Department for Work and Pensions,"Pension, Disability Carers Services",30/09/2010,PRIME CHARGES,PDCS CORE,TELEREAL TRILLIUM,2017388154,"2,473,552.68"
Department for Work and Pensions,Employment Programmes,08/09/2010,EP GENERIC PROVIDER PAYMENTS,EG EMPLOYMENT PROGRAMMES,A4E LTD,2016997740,"2,278,118.59"
Department for Work and Pensions,Employment Programmes,13/09/2010,YOUNG PERSONS GUARANTEE (YPG) AND FUTURE JOBS FUND (FJF),EG EMPLOYMENT PROGRAMMES,SCOTTISH GOVERNMENT,2002142,"2,250,000.00"
Department for Work and Pensions,Jobcentre Plus,03/09/2010,EMPLOYMENT PROGRAMMES,HQ BALANCE SHEET ,A4E LTD,2016969009,"2,053,470.30"
Department for Work and Pensions,Corporate,14/09/2010,COMPUTER SERVICES,CORPORATE IT,BT SYNTEGRA,2017083243,"1,967,370.37"
Department for Work and Pensions,Jobcentre Plus,30/09/2010,ACCOMMODATION,CHIEF OPERATING OFFICER,TELEREAL TRILLIUM,2017388158,"1,941,488.33"
Department for Work and Pensions,European Social Fund,27/09/2010,ESF NON-PREFUNDED EXPENDITURE,WWEG EUROPEAN SOCIAL FUND,SOUTH WEST DWP,2017293021,"1,934,306.00"
Department for Work and Pensions,Jobcentre Plus,30/09/2010,EMPLOYMENT PROGRAMMES,HQ BALANCE SHEET ,A4E LTD,2017382251,"1,818,368.94"
Department for Work and Pensions,Corporate,13/09/2010,CFERS PAID TO HM TREASURY,HQ BALANCE SHEET ,CONSOLIDATED FUND,2002126,"1,811,163.68"
Department for Work and Pensions,Corporate,13/09/2010,HOSTING,CORPORATE IT,HP ENTERPRISE SERVICES UK LTD,2017078127,"1,799,475.82"
Department for Work and Pensions,Employment Programmes,08/09/2010,EP GENERIC PROVIDER PAYMENTS,EG EMPLOYMENT PROGRAMMES,MAXIMUS EMPLOYMENT UK LTD,2017043097,"1,778,109.42"
Department for Work and Pensions,Corporate,07/09/2010,SIAM,CORPORATE IT,HP ENTERPRISE SERVICES UK LTD,2016985252,"1,754,008.48"
Department for Work and Pensions,Employment Programmes,08/09/2010,EP GENERIC PROVIDER PAYMENTS,EG EMPLOYMENT PROGRAMMES,PERTEMPS,2017048769,"1,613,304.17"
Department for Work and Pensions,Jobcentre Plus,03/09/2010,EMPLOYMENT PROGRAMMES,HQ BALANCE SHEET ,WORKING LINKS,2016973570,"1,593,997.77"
Department for Work and Pensions,Employment Programmes,08/09/2010,EP GENERIC PROVIDER PAYMENTS,EG EMPLOYMENT PROGRAMMES,REMPLOY LTD,2017051962,"1,581,023.25"
Department for Work and Pensions,Employment Programmes,14/09/2010,YOUNG PERSONS GUARANTEE (YPG) AND FUTURE JOBS FUND (FJF),EG EMPLOYMENT PROGRAMMES,KNOWSLEY METROPOLITAN BOROUGH COUNCIL,2017087248,"1,500,497.76"
Department for Work and Pensions,Employment Programmes,08/09/2010,EP GENERIC PROVIDER PAYMENTS,EG EMPLOYMENT PROGRAMMES,SERCO LTD,2017060189,"1,498,580.17"
Department for Work and Pensions,Corporate,07/09/2010,IS/IT,CORPORATE IT,HP ENTERPRISE SERVICES UK LTD,2016985252,"1,494,351.19"
Department for Work and Pensions,Employment Programmes,22/09/2010,NDDP,EG EMPLOYMENT PROGRAMMES,SHAW TRUST LTD,2017266451,"1,475,563.76"
Department for Work and Pensions,Employment Programmes,08/09/2010,EP GENERIC PROVIDER PAYMENTS,EG EMPLOYMENT PROGRAMMES,SERCO LTD,2017060189,"1,442,303.50"
Department for Work and Pensions,Corporate,15/09/2010,OTHER GOODS AND SERVICES,WWG ,VALUATION OFFICE AGENCY,2002148,"1,420,000.00"
Department for Work and Pensions,Corporate,16/09/2010,CONTRACTED OUT OFFICE SERVICES,GROUP FINANCE,XEROX UK LIMITED 3W,2017174429,"1,419,785.00"
Department for Work and Pensions,Corporate,15/09/2010,TOTAL SUPPLIES & SERVICES,GROUP FINANCE,ROYAL MAIL GROUP PLC,2017150523,"1,418,772.09"
Department for Work and Pensions,Corporate,13/09/2010,COMPUTER SERVICES,CORPORATE IT,HP ENTERPRISE SERVICES UK LTD,2017078127,"1,315,588.33"
Department for Work and Pensions,Employment Programmes,06/09/2010,YOUNG PERSONS GUARANTEE (YPG) AND FUTURE JOBS FUND (FJF),EG EMPLOYMENT PROGRAMMES,BIRMINGHAM CITY COUNCIL,2016975601,"1,292,200.00"
Department for Work and Pensions,Employment Programmes,08/09/2010,EP GENERIC PROVIDER PAYMENTS,EG EMPLOYMENT PROGRAMMES,SKILLS TRAINING UK LIMITED,2017060412,"1,276,442.50"
Department for Work and Pensions,Employment Programmes,08/09/2010,EP GENERIC PROVIDER PAYMENTS,EG EMPLOYMENT PROGRAMMES,FOURSTAR EMPLOYMENT & SKILLS LTD,2017015386,"1,246,222.00"
Department for Work and Pensions,Employment Programmes,07/09/2010,YOUNG PERSONS GUARANTEE (YPG) AND FUTURE JOBS FUND (FJF),EG EMPLOYMENT PROGRAMMES,MERTHYR TYDFIL COUNTY BOROUGH COUNCIL,2016991061,"1,228,500.00"
Department for Work and Pensions,Jobcentre Plus,01/09/2010,APPS DEV,TPM PROGRAMMES,ACCENTURE,2016958146,"1,223,175.00"
Department for Work and Pensions,Employment Programmes,08/09/2010,EP GENERIC PROVIDER PAYMENTS,EG EMPLOYMENT PROGRAMMES,CALDER UK LTD,2017004689,"1,221,120.75"
Department for Work and Pensions,Jobcentre Plus,03/09/2010,EMPLOYMENT PROGRAMMES,HQ BALANCE SHEET ,BUSINESS EMPLOYMENT SERVICES TRAINING LTD,2016969213,"1,215,717.70"
Department for Work and Pensions,Jobcentre Plus,30/09/2010,PRIME CHARGES,CHIEF OPERATING OFFICER,TELEREAL TRILLIUM,2017388154,"1,203,900.84"
Department for Work and Pensions,Jobcentre Plus,13/09/2010,APPS DEV,TPM PROGRAMMES,HP ENTERPRISE SERVICES UK LTD,2017078127,"1,199,764.53"
Department for Work and Pensions,Jobcentre Plus,30/09/2010,EMPLOYMENT PROGRAMMES,HQ BALANCE SHEET ,BUSINESS EMPLOYMENT SERVICES TRAINING LTD,2017382533,"1,165,890.15"
Department for Work and Pensions,Corporate,30/09/2010,PRIME CHARGES,GROUP FINANCE,TELEREAL TRILLIUM,2017388154,"1,158,747.84"
Department for Work and Pensions,Jobcentre Plus,30/09/2010,EMPLOYMENT PROGRAMMES,HQ BALANCE SHEET ,WORKING LINKS,2017388395,"1,157,623.46"
Department for Work and Pensions,Jobcentre Plus,07/09/2010,ACCOMMODATION,CHIEF OPERATING OFFICER,TELEREAL TRILLIUM,2016987076,"1,109,862.98"
Department for Work and Pensions,Employment Programmes,28/09/2010,YOUNG PERSONS GUARANTEE (YPG) AND FUTURE JOBS FUND (FJF),EG EMPLOYMENT PROGRAMMES,SHEFFIELD CITY COUNCIL,2017304495,"1,074,250.00"
Department for Work and Pensions,Employment Programmes,08/09/2010,EP GENERIC PROVIDER PAYMENTS,EG EMPLOYMENT PROGRAMMES,WORKING LINKS,2017065727,"1,068,857.58"
Department for Work and Pensions,Housing Benefits,14/09/2010,HB COOL DEL PROGRAMME,WWG HOUSING BENEFIT,BIRMINGHAM CITY COUNCIL,2017081756,"1,067,809.00"
Department for Work and Pensions,Jobcentre Plus,22/09/2010,POSTAGE,CHIEF OPERATING OFFICER,TNT UK LTD,2017269898,"1,065,900.00"
Department for Work and Pensions,Corporate,16/09/2010,OTHER BANKING & PO COSTS,GROUP FINANCE,ALLIANCE & LEICESTER COMMERCIAL BANK PLC,1004416,"1,024,299.00"
Department for Work and Pensions,Employment Programmes,08/09/2010,EP GENERIC PROVIDER PAYMENTS,EG EMPLOYMENT PROGRAMMES,A4E LTD,2016997740,"1,022,849.17"
Department for Work and Pensions,Corporate,16/09/2010,COMPUTER SERVICES,CORPORATE IT,BT SYNTEGRA,2017168868,"1,020,220.65"
Department for Work and Pensions,Employment Programmes,13/09/2010,YOUNG PERSONS GUARANTEE (YPG) AND FUTURE JOBS FUND (FJF),EG EMPLOYMENT PROGRAMMES,SKILLS FUNDING AGENCY,1004411,"1,000,000.00"
Department for Work and Pensions,Employment Programmes,22/09/2010,WORKSTEP,EG EMPLOYMENT PROGRAMMES,SHAW TRUST LTD,2017266449,"1,000,000.00"
Department for Work and Pensions,Employment Programmes,29/09/2010,YOUNG PERSONS GUARANTEE (YPG) AND FUTURE JOBS FUND (FJF),EG EMPLOYMENT PROGRAMMES,KNOWSLEY METROPOLITAN BOROUGH COUNCIL,2017345432,"982,351.04"
Department for Work and Pensions,Employment Programmes,08/09/2010,EP GENERIC PROVIDER PAYMENTS,EG EMPLOYMENT PROGRAMMES,INGEUS UK LTD,2017019959,"976,792.92"
Department for Work and Pensions,Employment Programmes,08/09/2010,EP GENERIC PROVIDER PAYMENTS,EG EMPLOYMENT PROGRAMMES,A4E LTD,2016997740,"962,314.34"
Department for Work and Pensions,Employment Programmes,08/09/2010,EP GENERIC PROVIDER PAYMENTS,EG EMPLOYMENT PROGRAMMES,WORKING LINKS,2017065727,"954,195.83"
Department for Work and Pensions,Employment Programmes,08/09/2010,EP GENERIC PROVIDER PAYMENTS,EG EMPLOYMENT PROGRAMMES,WORKING LINKS,2017065727,"945,047.08"
Department for Work and Pensions,Employment Programmes,08/09/2010,EP GENERIC PROVIDER PAYMENTS,EG EMPLOYMENT PROGRAMMES,SEETEC BUSINESS TECHNOLOGY CENTRE LTD,2017060178,"925,584.25"
Department for Work and Pensions,Employment Programmes,08/09/2010,EP GENERIC PROVIDER PAYMENTS,EG EMPLOYMENT PROGRAMMES,INGEUS UK LTD,2017019959,"920,040.00"
Department for Work and Pensions,Corporate,30/09/2010,AR PRIME RECOVERIES,HQ BALANCE SHEET ,TELEREAL TRILLIUM,2017388155,"900,159.63"
Department for Work and Pensions,Corporate,23/09/2010,EMPLOYMENT ZONES,WWG ,DEPARTMENT OF HEALTH,2002164,"900,000.00"
Department for Work and Pensions,Employment Programmes,07/09/2010,YOUNG PERSONS GUARANTEE (YPG) AND FUTURE JOBS FUND (FJF),EG EMPLOYMENT PROGRAMMES,SCOTTISH COUNCIL FOR VOLUNTARY ORGANISATIONS,2016990150,"886,200.00"
Department for Work and Pensions,Jobcentre Plus,02/09/2010,MISCELLANEOUS EXPENDITURE,CHIEF OPERATING OFFICER,CAPITA BUSINESS SERVICES LTD,2016962842,"874,861.17"
Department for Work and Pensions,Jobcentre Plus,03/09/2010,EMPLOYMENT PROGRAMMES,HQ BALANCE SHEET ,REED IN PARTNERSHIP,2016972845,"873,250.98"
Department for Work and Pensions,Employment Programmes,14/09/2010,YOUNG PERSONS GUARANTEE (YPG) AND FUTURE JOBS FUND (FJF),EG EMPLOYMENT PROGRAMMES,NORTH TYNESIDE COUNCIL,2017088907,"868,500.00"
Department for Work and Pensions,Housing Benefits,14/09/2010,HB COOL DEL PROGRAMME,WWG HOUSING BENEFIT,CITY OF GLASGOW,2017081804,"867,338.00"
Department for Work and Pensions,Corporate,03/09/2010,COMPUTER SERVICES,CORPORATE IT,ACCENTURE UK LTD,2016969021,"862,179.93"
Department for Work and Pensions,Employment Programmes,08/09/2010,EP GENERIC PROVIDER PAYMENTS,EG EMPLOYMENT PROGRAMMES,TNG LTD,2017063719,"847,945.08"
Department for Work and Pensions,Employment Programmes,01/09/2010,YOUNG PERSONS GUARANTEE (YPG) AND FUTURE JOBS FUND (FJF),EG EMPLOYMENT PROGRAMMES,ENABLE,2016959817,"845,000.00"
Department for Work and Pensions,Employment Programmes,08/09/2010,EP GENERIC PROVIDER PAYMENTS,EG EMPLOYMENT PROGRAMMES,THE WISE GROUP,2017063614,"830,078.83"
Department for Work and Pensions,Jobcentre Plus,03/09/2010,EMPLOYMENT PROGRAMMES,HQ BALANCE SHEET ,CAREERS DEVELOPMENT GROUP LTD,2016969399,"827,745.90"
Department for Work and Pensions,Employment Programmes,08/09/2010,EP GENERIC PROVIDER PAYMENTS,EG EMPLOYMENT PROGRAMMES,A4E LTD,2016997740,"826,195.83"
Department for Work and Pensions,Employment Programmes,08/09/2010,EP GENERIC PROVIDER PAYMENTS,EG EMPLOYMENT PROGRAMMES,A4E LTD,2016997740,"817,033.33"
Department for Work and Pensions,Jobcentre Plus,30/09/2010,EMPLOYMENT PROGRAMMES,HQ BALANCE SHEET ,CAREERS DEVELOPMENT GROUP LTD,2017382840,"814,165.65"
Department for Work and Pensions,Jobcentre Plus,30/09/2010,EMPLOYMENT PROGRAMMES,HQ BALANCE SHEET ,SEETEC BUSINESS TECHNOLOGY CENTRE LTD,2017387878,"787,688.66"
Department for Work and Pensions,Corporate,09/09/2010,INTERNATIONAL PROGRAMMES,WWG ,DSCF RM SHARED SERVICES,2017071150,"785,987.42"
Department for Work and Pensions,Jobcentre Plus,30/09/2010,EMPLOYMENT PROGRAMMES,HQ BALANCE SHEET ,CAREERS DEVELOPMENT GROUP,2017382839,"783,055.64"
Department for Work and Pensions,Corporate,01/09/2010,EMPLOYMENT ZONES,WWG,COI CENTRAL OFFICE OF INFORMATION,2016958393,"777,166.00"
Department for Work and Pensions,Jobcentre Plus,03/09/2010,EMPLOYMENT PROGRAMMES,HQ BALANCE SHEET ,SKILLS TRAINING UK LTD,2016973233,"765,468.95"
Department for Work and Pensions,Employment Programmes,08/09/2010,EP GENERIC PROVIDER PAYMENTS,EG EMPLOYMENT PROGRAMMES,DUDLEY MBC FUTURE SKILLS,2017012155,"759,584.83"
Department for Work and Pensions,Corporate,13/09/2010,DESKTOP,CORPORATE IT,HP ENTERPRISE SERVICES UK LTD,2017078127,"733,832.82"
Department for Work and Pensions,Jobcentre Plus,03/09/2010,EMPLOYMENT PROGRAMMES,HQ BALANCE SHEET ,CAREERS DEVELOPMENT GROUP,2016969398,"732,845.35"
Department for Work and Pensions,Jobcentre Plus,20/09/2010,APPS DEV,TPM PROGRAMMES,ACCENTURE,2017182641,"728,303.00"
Department for Work and Pensions,Corporate,07/09/2010,DESKTOP,CORPORATE IT,HP ENTERPRISE SERVICES UK LTD,2016985252,"727,252.57"
Department for Work and Pensions,"Pension, Disability Carers Services",13/09/2010,TEMPORARY (TEMP) STAFF COSTS,PDCS CORE,CLUB 24 LTD T/A VENTURA,2017074942,"721,127.86"
Department for Work and Pensions,Jobcentre Plus,30/09/2010,EMPLOYMENT PROGRAMMES,HQ BALANCE SHEET ,REED IN PARTNERSHIP,2017387365,"716,736.41"
Department for Work and Pensions,Jobcentre Plus,03/09/2010,EMPLOYMENT PROGRAMMES,HQ BALANCE SHEET ,SEETEC BUSINESS TECHNOLOGY CENTRE LTD,2016973202,"716,149.81"
Department for Work and Pensions,Corporate,23/09/2010,DESKTOP,CORPORATE IT,HP ENTERPRISE SERVICES UK LTD,2017277467,"714,423.30"
Department for Work and Pensions,Corporate,30/09/2010,PRIME CHARGES,SHARED SERVICES ,TELEREAL TRILLIUM,2017388154,"712,454.14"
Department for Work and Pensions,Jobcentre Plus,23/09/2010,EMPLOYMENT PROGRAMMES,HQ BALANCE SHEET ,SHAW TRUST LTD,2017279606,"710,139.76"
Department for Work and Pensions,Jobcentre Plus,21/09/2010,CONTRACTED OUT OFFICE SERVICES,CHIEF OPERATING OFFICER,VERTEX DATA SCIENCE LIMITED,2017198751,"704,467.25"
Department for Work and Pensions,Corporate,14/09/2010,COMPUTER SERVICES,CORPORATE IT,BT SYNTEGRA,2017083243,"696,408.40"
Department for Work and Pensions,Corporate,14/09/2010,COMPUTER SERVICES,CORPORATE IT,HP ENTERPRISE SERVICES UK LTD,2017085801,"696,048.45"
Department for Work and Pensions,"Pension, Disability Carers Services",08/09/2010,COMPUTER SERVICES,PDCS CHANGE ,H M REVENUE & CUSTOMS,2002116,"688,036.00"
Department for Work and Pensions,Employment Programmes,29/09/2010,YOUNG PERSONS GUARANTEE (YPG) AND FUTURE JOBS FUND (FJF),EG EMPLOYMENT PROGRAMMES,SCOTTISH COUNCIL FOR VOLUNTARY ORGANISATIONS,2017373364,"678,750.00"
Department for Work and Pensions,Jobcentre Plus,30/09/2010,EMPLOYMENT PROGRAMMES,HQ BALANCE SHEET ,SKILLS TRAINING UK LTD,2017387921,"675,130.86"
Department for Work and Pensions,Corporate,30/09/2010,PRIME CHARGES,GROUP FINANCE,TELEREAL TRILLIUM,2017388154,"673,866.84"
Department for Work and Pensions,Employment Programmes,13/09/2010,YOUNG PERSONS GUARANTEE (YPG) AND FUTURE JOBS FUND (FJF),EG EMPLOYMENT PROGRAMMES,GROUNDWORK UK,2017078024,"665,700.00"
Department for Work and Pensions,Employment Programmes,27/09/2010,YOUNG PERSONS GUARANTEE (YPG) AND FUTURE JOBS FUND (FJF),EG EMPLOYMENT PROGRAMMES,3SC,2017288028,"663,750.00"
Department for Work and Pensions,Corporate,06/09/2010,TOTAL SUPPLIES & SERVICES,GROUP FINANCE,UK MAIL,2016979720,"642,946.48"
Department for Work and Pensions,Corporate,03/09/2010,COMPUTER SERVICES,CORPORATE IT,ATOS ORIGIN IT SERVICES UK LTD,2016969088,"641,579.57"
Department for Work and Pensions,Employment Programmes,01/09/2010,YOUNG PERSONS GUARANTEE (YPG) AND FUTURE JOBS FUND (FJF),EG EMPLOYMENT PROGRAMMES,LANCASHIRE COUNTY COUNCIL,2016960320,"637,000.00"
Department for Work and Pensions,Employment Programmes,21/09/2010,YOUNG PERSONS GUARANTEE (YPG) AND FUTURE JOBS FUND (FJF),EG EMPLOYMENT PROGRAMMES,GROUNDWORK UK,2017192613,"634,500.00"
Department for Work and Pensions,Employment Programmes,15/09/2010,YOUNG PERSONS GUARANTEE (YPG) AND FUTURE JOBS FUND (FJF),EG EMPLOYMENT PROGRAMMES,GOOLE DEVELOPMENT TRUST,2017116475,"629,200.00"
Department for Work and Pensions,Jobcentre Plus,03/09/2010,EMPLOYMENT PROGRAMMES,HQ BALANCE SHEET ,INGEUS UK LTD,2016971390,"621,298.58"
Department for Work and Pensions,Corporate,24/09/2010,COMPUTER SERVICES,CORPORATE IT,ATOS ORIGIN IT SERVICES UK LTD,2017282151,"619,669.84"
Department for Work and Pensions,Employment Programmes,15/09/2010,JOBCENTRE PLUS PATHWAYS TO WORK,EG EMPLOYMENT PROGRAMMES,BARNSLEY PRIMARY CARE TRUST,2017099182,"614,265.00"
Department for Work and Pensions,Housing Benefits,14/09/2010,HB COOL DEL PROGRAMME,WWG HOUSING BENEFIT,LIVERPOOL CITY COUNCIL,2017081905,"608,982.00"
Department for Work and Pensions,Employment Programmes,07/09/2010,YOUNG PERSONS GUARANTEE (YPG) AND FUTURE JOBS FUND (FJF),EG EMPLOYMENT PROGRAMMES,SOUTH LANARKSHIRE COUNCIL,2016990227,"608,400.00"
Department for Work and Pensions,Employment Programmes,02/09/2010,YOUNG PERSONS GUARANTEE (YPG) AND FUTURE JOBS FUND (FJF),EG EMPLOYMENT PROGRAMMES,LANCASHIRE COUNTY COUNCIL,2016965728,"604,500.00"
Department for Work and Pensions,Jobcentre Plus,17/09/2010,EMPLOYMENT PROGRAMMES,HQ BALANCE SHEET ,A4E LTD,2017174777,"603,493.97"
Department for Work and Pensions,Employment Programmes,08/09/2010,EP GENERIC PROVIDER PAYMENTS,EG EMPLOYMENT PROGRAMMES,WORKING LINKS,2017065727,"596,608.92"
Department for Work and Pensions,Jobcentre Plus,30/09/2010,EMPLOYMENT PROGRAMMES,HQ BALANCE SHEET ,SHAW TRUST LTD,2017387891,"593,886.00"
Department for Work and Pensions,Jobcentre Plus,30/09/2010,EMPLOYMENT PROGRAMMES,HQ BALANCE SHEET ,INGEUS UK LTD,2017385029,"593,698.80"
Department for Work and Pensions,Corporate,07/09/2010,COMPUTER SERVICES,SHARED SERVICES ,FUJITSU SERVICES,2016984759,"578,748.00"
Department for Work and Pensions,Corporate,14/09/2010,COMPUTER SERVICES,CORPORATE IT,HP ENTERPRISE SERVICES UK LTD,2017085801,"563,509.89"
Department for Work and Pensions,Corporate,14/09/2010,COMPUTER SERVICES,CORPORATE IT,HP ENTERPRISE SERVICES UK LTD,2017085801,"561,329.83"
Department for Work and Pensions,Jobcentre Plus,13/09/2010,CFERS PAID TO HM TREASURY,HQ BALANCE SHEET ,CONSOLIDATED FUND,2002128,"558,581.09"
Department for Work and Pensions,Corporate,21/09/2010,TOTAL SUPPLIES & SERVICES,GROUP FINANCE,UK MAIL,2017198642,"556,299.19"
Department for Work and Pensions,Housing Benefits,14/09/2010,HB COOL DEL PROGRAMME,WWG HOUSING BENEFIT,LEEDS CITY COUNCIL,2017081900,"547,795.00"
Department for Work and Pensions,Employment Programmes,07/09/2010,YOUNG PERSONS GUARANTEE (YPG) AND FUTURE JOBS FUND (FJF),EG EMPLOYMENT PROGRAMMES,DORSET COUNTY COUNCIL,2016983401,"546,000.00"
Department for Work and Pensions,Corporate,07/09/2010,COMPUTER SERVICES,CORPORATE IT,HP ENTERPRISE SERVICES UK LTD,2016985252,"542,601.06"
Department for Work and Pensions,Housing Benefits,14/09/2010,HB COOL DEL PROGRAMME,WWG HOUSING BENEFIT,MANCHESTER CITY COUNCIL,2017081938,"540,488.00"
Department for Work and Pensions,Employment Programmes,24/09/2010,YOUNG PERSONS GUARANTEE (YPG) AND FUTURE JOBS FUND (FJF),EG EMPLOYMENT PROGRAMMES,KNOWSLEY METROPOLITAN BOROUGH COUNCIL,2017285043,"530,159.20"
Department for Work and Pensions,Jobcentre Plus,03/09/2010,EMPLOYMENT PROGRAMMES,HQ BALANCE SHEET ,SENCIA LTD,2016973204,"527,137.44"
Department for Work and Pensions,"Pension, Disability Carers Services",20/09/2010,COMPUTER SERVICES,PDCS CHANGE ,HMRC,2002156,"522,287.00"
Department for Work and Pensions,Employment Programmes,02/09/2010,EMPLOYMENT ZONES,EG EMPLOYMENT PROGRAMMES,REED IN PARTNERSHIP HACKNEY LTD,2016966804,"518,680.00"
Department for Work and Pensions,Corporate,30/09/2010,PRIME CHARGES,GROUP FINANCE,TELEREAL TRILLIUM,2017388154,"509,751.88"
Department for Work and Pensions,Employment Programmes,06/09/2010,YOUNG PERSONS GUARANTEE (YPG) AND FUTURE JOBS FUND (FJF),EG EMPLOYMENT PROGRAMMES,GROUNDWORK WEST MIDLANDS,2016977740,"508,300.00"
Department for Work and Pensions,Jobcentre Plus,03/09/2010,EMPLOYMENT PROGRAMMES,HQ BALANCE SHEET ,TNG NETWORK LTD,2016973435,"496,626.73"
Department for Work and Pensions,Employment Programmes,03/09/2010,YOUNG PERSONS GUARANTEE (YPG) AND FUTURE JOBS FUND (FJF),EG EMPLOYMENT PROGRAMMES,THE INTRAINING GROUP,2016973406,"495,397.00"
Department for Work and Pensions,Corporate,14/09/2010,NON PRIME CHARGES,GROUP FINANCE,STANDARD LIFE INVESTMENTS,2017090984,"492,161.25"
Department for Work and Pensions,Corporate,21/09/2010,HOSTING,CORPORATE IT,HP ENTERPRISE SERVICES UK LTD,2017192783,"487,506.87"
Department for Work and Pensions,Corporate,15/09/2010,TOTAL IT & EQUIPMENT COSTS,CORPORATE IT,HP ENTERPRISE SERVICES UK LTD,2017118165,"483,000.00"
Department for Work and Pensions,Jobcentre Plus,30/09/2010,EMPLOYMENT PROGRAMMES,HQ BALANCE SHEET ,SENCIA LTD,2017387881,"480,457.61"
Department for Work and Pensions,Corporate,28/09/2010,COMPUTER SERVICES,CHANGE MANAGEMENT DIRECTORATE,ATOS ORIGIN IT SERVICES UK LTD,2017295251,"478,869.66"
Department for Work and Pensions,European Social Fund,13/09/2010,MA ESF(D) COSTS,WWEG EUROPEAN SOCIAL FUND,CORNWALL COLLEGE,5000000316,"468,426.00"
Department for Work and Pensions,Employment Programmes,02/09/2010,EMPLOYMENT ZONES,EG EMPLOYMENT PROGRAMMES,REED IN PARTNERSHIP HACKNEY LTD,2016966804,"461,596.00"
Department for Work and Pensions,Corporate,15/09/2010,TOTAL IT & EQUIPMENT COSTS,CORPORATE IT,HP ENTERPRISE SERVICES UK LTD,2017118165,"459,176.75"
Department for Work and Pensions,Corporate,07/09/2010,COMPUTER SERVICES,CORPORATE IT,HP ENTERPRISE SERVICES UK LTD,2016985252,"457,279.16"
Department for Work and Pensions,Housing Benefits,14/09/2010,HB COOL DEL PROGRAMME,WWG HOUSING BENEFIT,DURHAM COUNCIL,2017081833,"456,042.00"
Department for Work and Pensions,Employment Programmes,07/09/2010,YOUNG PERSONS GUARANTEE (YPG) AND FUTURE JOBS FUND (FJF),EG EMPLOYMENT PROGRAMMES,NORTH LANARKSHIRE COUNCIL,2016988241,"455,000.00"
Department for Work and Pensions,Corporate,01/09/2010,CONTRACTED OUT OFFICE SERVICES,SHARED SERVICES ,CAPITA BUSINESS SERVICES LTD,1004399,"454,875.60"
Department for Work and Pensions,Housing Benefits,14/09/2010,HB COOL DEL PROGRAMME,WWG HOUSING BENEFIT,BRADFORD METROPOLITAN BOROUGH COUNCIL,2017081769,"454,773.00"
Department for Work and Pensions,Employment Programmes,07/09/2010,YOUNG PERSONS GUARANTEE (YPG) AND FUTURE JOBS FUND (FJF),EG EMPLOYMENT PROGRAMMES,NATIONAL SKILLS ACADEMY FOR SPORT & ACTIVE LEISURE,2016988212,"453,700.00"
Department for Work and Pensions,Employment Programmes,02/09/2010,EMPLOYMENT ZONES,EG EMPLOYMENT PROGRAMMES,WORKING LINKS,2016967601,"447,564.00"
Department for Work and Pensions,"Pension, Disability Carers Services",08/09/2010,COMPUTER SERVICES,PDCS CHANGE ,H M REVENUE & CUSTOMS,2002115,"443,439.00"
Department for Work and Pensions,Employment Programmes,21/09/2010,EMPLOYMENT ZONES,EG EMPLOYMENT PROGRAMMES,REED IN PARTNERSHIP HACKNEY LTD,2017197171,"439,199.00"
Department for Work and Pensions,Employment Programmes,03/09/2010,YOUNG PERSONS GUARANTEE (YPG) AND FUTURE JOBS FUND (FJF),EG EMPLOYMENT PROGRAMMES,TNG LTD,2016973433,"437,734.00"
Department for Work and Pensions,Employment Programmes,02/09/2010,EMPLOYMENT ZONES,EG EMPLOYMENT PROGRAMMES,REED IN PARTNERSHIP HACKNEY LTD,2016966804,"437,478.00"
Department for Work and Pensions,Employment Programmes,03/09/2010,YOUNG PERSONS GUARANTEE (YPG) AND FUTURE JOBS FUND (FJF),EG EMPLOYMENT PROGRAMMES,THE INTRAINING GROUP,2016973406,"436,141.00"
Department for Work and Pensions,Corporate,30/09/2010,APPS DEV,CHANGE MANAGEMENT DIRECTORATE,ACCENTURE UK LTD,2017382270,"435,642.55"
Department for Work and Pensions,Corporate,29/09/2010,CFERS PAID TO HM TREASURY,HQ BALANCE SHEET ,CONSOLIDATED FUND,2002170,"433,456.75"
Department for Work and Pensions,Employment Programmes,07/09/2010,YOUNG PERSONS GUARANTEE (YPG) AND FUTURE JOBS FUND (FJF),EG EMPLOYMENT PROGRAMMES,NORFOLK COUNTY COUNCIL,2016988237,"431,600.00"
Department for Work and Pensions,Corporate,28/09/2010,COMPUTER SERVICES,CORPORATE IT,XEROX UK LIMITED 3W,2017305245,"431,438.97"
Department for Work and Pensions,Employment Programmes,07/09/2010,YOUNG PERSONS GUARANTEE (YPG) AND FUTURE JOBS FUND (FJF),EG EMPLOYMENT PROGRAMMES,URBAN FUTURES LONDON LTD,2016990622,"428,340.00"
Department for Work and Pensions,Jobcentre Plus,03/09/2010,EMPLOYMENT PROGRAMMES,HQ BALANCE SHEET ,BTCV ENTERPRISES LTD,2016969208,"427,960.11"
Department for Work and Pensions,Employment Programmes,07/09/2010,YOUNG PERSONS GUARANTEE (YPG) AND FUTURE JOBS FUND (FJF),EG EMPLOYMENT PROGRAMMES,LONDON BOROUGH OF EALING,2016987131,"427,700.00"
Department for Work and Pensions,Corporate,30/09/2010,PRIME CHARGES,GROUP FINANCE,TELEREAL TRILLIUM,2017388154,"424,389.63"
Department for Work and Pensions,Corporate,15/09/2010,COMPUTER SERVICES,CORPORATE IT,DELL FINANCIAL SERVICES,2017109091,"423,844.40"
Department for Work and Pensions,Employment Programmes,03/09/2010,EP GENERIC PROVIDER PAYMENTS,EG EMPLOYMENT PROGRAMMES,REED IN PARTNERSHIP,2016972846,"416,416.00"
Department for Work and Pensions,"Pension, Disability Carers Services",30/09/2010,PRIME BUSINESS RATES,PDCS CORE,TELEREAL TRILLIUM,2017388155,"416,140.40"
Department for Work and Pensions,Corporate,29/09/2010,COMPUTER SERVICES,CHANGE MANAGEMENT DIRECTORATE,ACCENTURE UK LTD,2017312343,"413,333.34"
Department for Work and Pensions,Employment Programmes,20/09/2010,YOUNG PERSONS GUARANTEE (YPG) AND FUTURE JOBS FUND (FJF),EG EMPLOYMENT PROGRAMMES,MERTHYR TYDFIL COUNTY BOROUGH COUNCIL,2017187079,"412,500.00"
Department for Work and Pensions,Jobcentre Plus,03/09/2010,EMPLOYMENT PROGRAMMES,HQ BALANCE SHEET ,SHAW TRUST LTD,2016973216,"412,083.20"
Department for Work and Pensions,Corporate,22/09/2010,CONTRACTED OUT OFFICE SERVICES,SHARED SERVICES ,CLAYBROOK COMPUTING LTD,1004426,"408,529.96"
Department for Work and Pensions,Employment Programmes,01/09/2010,JOBCENTRE PLUS PATHWAYS TO WORK,EG EMPLOYMENT PROGRAMMES,NHS BLACKBURN WITH DARWEN,2016960507,"402,152.00"
Department for Work and Pensions,Employment Programmes,07/09/2010,YOUNG PERSONS GUARANTEE (YPG) AND FUTURE JOBS FUND (FJF),EG EMPLOYMENT PROGRAMMES,KIRKLEES COUNCIL,2016986618,"401,700.00"
Department for Work and Pensions,Jobcentre Plus,30/09/2010,EMPLOYMENT PROGRAMMES,HQ BALANCE SHEET ,BTCV ENTERPRISES LTD,2017382525,"400,498.63"
Department for Work and Pensions,Jobcentre Plus,07/09/2010,JOBCENTRE PLUS PATHWAYS TO WORK,CHIEF OPERATING OFFICER,WIRRAL PCT,2016990847,"398,621.00"
Department for Work and Pensions,Housing Benefits,14/09/2010,HB COOL DEL PROGRAMME,WWG HOUSING BENEFIT,LONDON BOROUGH OF LAMBETH,2017081923,"395,891.00"
Department for Work and Pensions,Employment Programmes,03/09/2010,YOUNG PERSONS GUARANTEE (YPG) AND FUTURE JOBS FUND (FJF),EG EMPLOYMENT PROGRAMMES,TNG LTD,2016973433,"394,223.00"
Department for Work and Pensions,Housing Benefits,14/09/2010,HB COOL DEL PROGRAMME,WWG HOUSING BENEFIT,SHEFFIELD CITY COUNCIL,2017082018,"392,920.00"
Department for Work and Pensions,Employment Programmes,21/09/2010,EMPLOYMENT ZONES,EG EMPLOYMENT PROGRAMMES,REED IN PARTNERSHIP HACKNEY LTD,2017197171,"392,098.00"
Department for Work and Pensions,Jobcentre Plus,23/09/2010,EMPLOYMENT PROGRAMMES,HQ BALANCE SHEET ,WORKING LINKS,2017279966,"392,080.76"
Department for Work and Pensions,Corporate,14/09/2010,IS/IT,CORPORATE IT,HP ENTERPRISE SERVICES UK LTD,2017085801,"390,475.95"
Department for Work and Pensions,Employment Programmes,03/09/2010,YOUNG PERSONS GUARANTEE (YPG) AND FUTURE JOBS FUND (FJF),EG EMPLOYMENT PROGRAMMES,TNG LTD,2016973433,"390,093.00"
Department for Work and Pensions,Housing Benefits,14/09/2010,HB COOL DEL PROGRAMME,WWG HOUSING BENEFIT,LONDON BOROUGH OF TOWER HAMLETS,2017081931,"388,877.00"
Department for Work and Pensions,Jobcentre Plus,23/09/2010,EMPLOYMENT PROGRAMMES,HQ BALANCE SHEET ,BUSINESS EMPLOYMENT SERVICES TRAINING LTD,2017275268,"388,795.95"
Department for Work and Pensions,Housing Benefits,14/09/2010,HB COOL DEL PROGRAMME,WWG HOUSING BENEFIT,BRISTOL CITY COUNCIL,2017081775,"387,917.00"
Department for Work and Pensions,Housing Benefits,14/09/2010,HB COOL DEL PROGRAMME,WWG HOUSING BENEFIT,HACKNEY LBC,2017081872,"386,918.00"
Department for Work and Pensions,Employment Programmes,07/09/2010,YOUNG PERSONS GUARANTEE (YPG) AND FUTURE JOBS FUND (FJF),EG EMPLOYMENT PROGRAMMES,THE SALVATION ARMY,2016990563,"386,080.00"
Department for Work and Pensions,Housing Benefits,14/09/2010,HB COOL DEL PROGRAMME,WWG HOUSING BENEFIT,CORNWALL COUNCIL,2017081813,"381,859.00"
Department for Work and Pensions,Corporate,30/09/2010,AR PRIME RECOVERIES,HQ BALANCE SHEET ,TELEREAL TRILLIUM,2017388158,"381,352.19"
Department for Work and Pensions,Jobcentre Plus,03/09/2010,EMPLOYMENT PROGRAMMES,HQ BALANCE SHEET ,WORKING LINKS EMPLOYMENT LTD,2016973572,"379,114.81"
Department for Work and Pensions,Employment Programmes,08/09/2010,EP GENERIC PROVIDER PAYMENTS,EG EMPLOYMENT PROGRAMMES,STANDGUIDE LTD,2017060670,"378,520.75"
Department for Work and Pensions,Jobcentre Plus,03/09/2010,EMPLOYMENT PROGRAMMES,HQ BALANCE SHEET ,SHAW TRUST LTD,2016973212,"375,460.15"
Department for Work and Pensions,Jobcentre Plus,30/09/2010,EMPLOYMENT PROGRAMMES,HQ BALANCE SHEET ,TRAINING WEST LANCASHIRE LTD,2017388227,"374,661.94"
Department for Work and Pensions,Jobcentre Plus,30/09/2010,EMPLOYMENT PROGRAMMES,HQ BALANCE SHEET ,INBIZ LTD,2017385025,"374,003.94"
Department for Work and Pensions,Employment Programmes,17/09/2010,JSP ESF DEL P COSTS,EG EMPLOYMENT PROGRAMMES,INGEUS UK LTD,2017177046,"372,327.16"
Department for Work and Pensions,Employment Programmes,03/09/2010,YOUNG PERSONS GUARANTEE (YPG) AND FUTURE JOBS FUND (FJF),EG EMPLOYMENT PROGRAMMES,SARINA RUSSO JOB ACCESS GB PTY LTD,2016973181,"370,194.00"
Department for Work and Pensions,Jobcentre Plus,17/09/2010,EMPLOYMENT PROGRAMMES,HQ BALANCE SHEET ,WORKING LINKS,2017179176,"369,123.00"
Department for Work and Pensions,Employment Programmes,21/09/2010,EMPLOYMENT ZONES,EG EMPLOYMENT PROGRAMMES,REED IN PARTNERSHIP HACKNEY LTD,2017197171,"367,708.00"
Department for Work and Pensions,Housing Benefits,14/09/2010,HB COOL DEL PROGRAMME,WWG HOUSING BENEFIT,LONDON BOROUGH OF LEWISHAM,2017081924,"367,564.00"
Department for Work and Pensions,"Pension, Disability Carers Services",14/09/2010,MEDICAL SERVICES,PDCS CORE,ATOS ORIGIN IT SERVICES UK LTD,2017082963,"367,455.02"
Department for Work and Pensions,Employment Programmes,17/09/2010,YOUNG PERSONS GUARANTEE (YPG) AND FUTURE JOBS FUND (FJF),EG EMPLOYMENT PROGRAMMES,LEICESTER CITY COUNCIL,2017177670,"364,350.00"
Department for Work and Pensions,Employment Programmes,07/09/2010,YOUNG PERSONS GUARANTEE (YPG) AND FUTURE JOBS FUND (FJF),EG EMPLOYMENT PROGRAMMES,BARNSLEY METROPOLITAN BOROUGH COUNCIL,2016982025,"361,400.00"
Department for Work and Pensions,Jobcentre Plus,30/09/2010,EMPLOYMENT PROGRAMMES,HQ BALANCE SHEET ,THE INTRAINING GROUP,2017388176,"360,831.15"
Department for Work and Pensions,Employment Programmes,02/09/2010,YOUNG PERSONS GUARANTEE (YPG) AND FUTURE JOBS FUND (FJF),EG EMPLOYMENT PROGRAMMES,SOUTH LANARKSHIRE COUNCIL,2016967250,"359,700.00"
Department for Work and Pensions,Housing Benefits,14/09/2010,HB COOL DEL PROGRAMME,WWG HOUSING BENEFIT,LONDON BOROUGH OF SOUTHWARK,2017081929,"357,131.00"
Department for Work and Pensions,Housing Benefits,14/09/2010,HB COOL DEL PROGRAMME,WWG HOUSING BENEFIT,LONDON BOROUGH OF NEWHAM,2017081926,"354,305.00"
Department for Work and Pensions,Housing Benefits,14/09/2010,HB COOL DEL PROGRAMME,WWG HOUSING BENEFIT,EDINBURGH DISTRICT COUNCIL,2017081850,"349,774.00"
Department for Work and Pensions,Employment Programmes,07/09/2010,YOUNG PERSONS GUARANTEE (YPG) AND FUTURE JOBS FUND (FJF),EG EMPLOYMENT PROGRAMMES,EAST AYRSHIRE COUNCIL,2016984624,"347,100.00"
Department for Work and Pensions,Jobcentre Plus,03/09/2010,EMPLOYMENT PROGRAMMES,HQ BALANCE SHEET ,TRAINING WEST LANCASHIRE LTD,2016973444,"347,003.94"
Department for Work and Pensions,Employment Programmes,02/09/2010,EMPLOYMENT ZONES,EG EMPLOYMENT PROGRAMMES,INGEUS UK LTD,2016964908,"346,766.00"
Department for Work and Pensions,Jobcentre Plus,09/09/2010,EMPLOYMENT PROGRAMMES,HQ BALANCE SHEET ,SEETEC BUSINESS TECHNOLOGY CENTRE LTD,2017074123,"345,105.88"
Department for Work and Pensions,Employment Programmes,07/09/2010,YOUNG PERSONS GUARANTEE (YPG) AND FUTURE JOBS FUND (FJF),EG EMPLOYMENT PROGRAMMES,GROUNDWORK WREXHAM & FLINTSHIRE,2016985086,"342,685.28"
Department for Work and Pensions,Jobcentre Plus,03/09/2010,EMPLOYMENT PROGRAMMES,HQ BALANCE SHEET ,TNG BUSINESS SUPPORT LTD.,2016973429,"341,175.48"
Department for Work and Pensions,Employment Programmes,01/09/2010,YOUNG PERSONS GUARANTEE (YPG) AND FUTURE JOBS FUND (FJF),EG EMPLOYMENT PROGRAMMES,NORFOLK COUNTY COUNCIL,2016960515,"340,600.00"
Department for Work and Pensions,Housing Benefits,14/09/2010,HB COOL DEL PROGRAMME,WWG HOUSING BENEFIT,LONDON BOROUGH OF BRENT,2017081909,"335,730.00"
Department for Work and Pensions,Employment Programmes,01/09/2010,YOUNG PERSONS GUARANTEE (YPG) AND FUTURE JOBS FUND (FJF),EG EMPLOYMENT PROGRAMMES,CITY & COUNTY OF SWANSEA,2016958373,"334,950.00"
Department for Work and Pensions,Employment Programmes,03/09/2010,YOUNG PERSONS GUARANTEE (YPG) AND FUTURE JOBS FUND (FJF),EG EMPLOYMENT PROGRAMMES,TBG LEARNING LTD,2016973389,"334,687.00"
Department for Work and Pensions,Employment Programmes,03/09/2010,YOUNG PERSONS GUARANTEE (YPG) AND FUTURE JOBS FUND (FJF),EG EMPLOYMENT PROGRAMMES,THE INTRAINING GROUP,2016973406,"333,800.00"
Department for Work and Pensions,Housing Benefits,14/09/2010,HB COOL DEL PROGRAMME,WWG HOUSING BENEFIT,LEICESTER CITY COUNCIL,2017081901,"333,774.00"
Department for Work and Pensions,Employment Programmes,28/09/2010,EMPLOYMENT ZONES,EG EMPLOYMENT PROGRAMMES,INGEUS UK LTD,2017299032,"333,345.00"
Department for Work and Pensions,Employment Programmes,02/09/2010,YOUNG PERSONS GUARANTEE (YPG) AND FUTURE JOBS FUND (FJF),EG EMPLOYMENT PROGRAMMES,CHESHIRE WEST & CHESTER COUNCIL,2016962864,"328,900.00"
Department for Work and Pensions,Housing Benefits,14/09/2010,HB COOL DEL PROGRAMME,WWG HOUSING BENEFIT,KIRKLEES METROPOLITAN BOROUGH COUNCIL,2017081897,"327,532.00"
Department for Work and Pensions,Employment Programmes,14/09/2010,OTHER PROGRAMME COSTS,EG EMPLOYMENT PROGRAMMES,BIS,2002143,"325,000.00"
Department for Work and Pensions,Employment Programmes,13/09/2010,WORKSTEP,EG EMPLOYMENT PROGRAMMES,RBLI EMPLOYMENT SERVICES,2017079874,"323,871.10"
Department for Work and Pensions,Housing Benefits,14/09/2010,HB COOL DEL PROGRAMME,WWG HOUSING BENEFIT,LONDON BOROUGH OF EALING,2017081912,"322,603.00"
Department for Work and Pensions,Employment Programmes,03/09/2010,YOUNG PERSONS GUARANTEE (YPG) AND FUTURE JOBS FUND (FJF),EG EMPLOYMENT PROGRAMMES,A4E LTD,2016969008,"322,030.00"
Department for Work and Pensions,Housing Benefits,14/09/2010,HB COOL DEL PROGRAMME,WWG HOUSING BENEFIT,SANDWELL BOROUGH COUNCIL,2017082011,"320,247.00"
Department for Work and Pensions,Employment Programmes,01/09/2010,EMPLOYMENT ZONES,EG EMPLOYMENT PROGRAMMES,REED IN PARTNERSHIP HACKNEY LTD,2016960694,"316,878.00"
Department for Work and Pensions,Housing Benefits,14/09/2010,HB COOL DEL PROGRAMME,WWG HOUSING BENEFIT,LONDON BOROUGH OF ISLINGTON,2017081921,"311,891.00"
Department for Work and Pensions,Housing Benefits,14/09/2010,HB COOL DEL PROGRAMME,WWG HOUSING BENEFIT,SUNDERLAND CITY COUNCIL,2017082057,"306,805.00"
Department for Work and Pensions,Employment Programmes,02/09/2010,EMPLOYMENT ZONES,EG EMPLOYMENT PROGRAMMES,WORKING LINKS,2016967601,"306,551.00"
Department for Work and Pensions,Housing Benefits,14/09/2010,HB COOL DEL PROGRAMME,WWG HOUSING BENEFIT,NOTTINGHAM CITY COUNCIL,2017081975,"304,683.00"
Department for Work and Pensions,Employment Programmes,07/09/2010,YOUNG PERSONS GUARANTEE (YPG) AND FUTURE JOBS FUND (FJF),EG EMPLOYMENT PROGRAMMES,NEWPORT CITY COUNCIL,2016991068,"302,900.00"
Department for Work and Pensions,Corporate,03/09/2010,COMPUTER SERVICES,CORPORATE IT,XEROX UK LIMITED 3W,2016973582,"302,754.69"
Department for Work and Pensions,Employment Programmes,03/09/2010,YOUNG PERSONS GUARANTEE (YPG) AND FUTURE JOBS FUND (FJF),EG EMPLOYMENT PROGRAMMES,SARINA RUSSO JOB ACCESS GB PTY LTD,2016973181,"302,328.00"
Department for Work and Pensions,Housing Benefits,14/09/2010,HB COOL DEL PROGRAMME,WWG HOUSING BENEFIT,LONDON BOROUGH OF CAMDEN,2017081911,"301,988.00"
Department for Work and Pensions,Housing Benefits,14/09/2010,HB COOL DEL PROGRAMME,WWG HOUSING BENEFIT,NORTH LANARKSHIRE COUNCIL,2017081965,"300,013.00"
Department for Work and Pensions,Corporate,15/09/2010,IS/IT,CORPORATE IT,SPECIALIST COMPUTER CENTRES PLC,2017158891,"297,951.74"
Department for Work and Pensions,Jobcentre Plus,30/09/2010,EMPLOYMENT PROGRAMMES,HQ BALANCE SHEET ,SHAW TRUST LTD,2017387888,"297,602.21"
Department for Work and Pensions,Housing Benefits,14/09/2010,HB COOL DEL PROGRAMME,WWG HOUSING BENEFIT,LONDON BOROUGH OF HARINGEY,2017081916,"297,439.00"
Department for Work and Pensions,Housing Benefits,14/09/2010,HB COOL DEL PROGRAMME,WWG HOUSING BENEFIT,CROYDON PEO%,2017081820,"297,249.00"
Department for Work and Pensions,Corporate,30/09/2010,PRIME CHARGES,GROUP FINANCE,TELEREAL TRILLIUM,2017388154,"297,022.45"
Department for Work and Pensions,Housing Benefits,14/09/2010,HB COOL DEL PROGRAMME,WWG HOUSING BENEFIT,BRIGHTON & HOVE COUNCIL,2017081774,"296,963.00"
Department for Work and Pensions,Housing Benefits,14/09/2010,HB COOL DEL PROGRAMME,WWG HOUSING BENEFIT,CARDIFF CITY COUNCIL,2017081787,"295,577.00"
Department for Work and Pensions,Corporate,28/09/2010,COMPUTER SERVICES,CHANGE MANAGEMENT DIRECTORATE,ATOS ORIGIN IT SERVICES UK LTD,2017295251,"295,154.17"
Department for Work and Pensions,Employment Programmes,03/09/2010,YOUNG PERSONS GUARANTEE (YPG) AND FUTURE JOBS FUND (FJF),EG EMPLOYMENT PROGRAMMES,TBG LEARNING LTD,2016973389,"293,236.00"
Department for Work and Pensions,Housing Benefits,14/09/2010,HB COOL DEL PROGRAMME,WWG HOUSING BENEFIT,KINGSTON UPON HULL CITY COUNCIL,2017081896,"292,996.00"
Department for Work and Pensions,Housing Benefits,14/09/2010,HB COOL DEL PROGRAMME,WWG HOUSING BENEFIT,WALSALL BOROUGH COUNCIL,2017082084,"292,792.00"
Department for Work and Pensions,Employment Programmes,14/09/2010,EMPLOYMENT ZONES,EG EMPLOYMENT PROGRAMMES,PERTEMPS,2017089413,"291,676.00"
Department for Work and Pensions,Housing Benefits,14/09/2010,HB COOL DEL PROGRAMME,WWG HOUSING BENEFIT,LONDON BOROUGH OF ENFIELD,2017081913,"291,627.00"
Department for Work and Pensions,Housing Benefits,14/09/2010,HB COOL DEL PROGRAMME,WWG HOUSING BENEFIT,WAKEFIELD METROPOLITAN DISTRICT COUNCIL,2017082083,"291,377.00"
Department for Work and Pensions,Housing Benefits,14/09/2010,HB COOL DEL PROGRAMME,WWG HOUSING BENEFIT,COVENTRY CITY COUNCIL,2017081817,"290,752.00"
Department for Work and Pensions,Employment Programmes,01/09/2010,JOBCENTRE PLUS PATHWAYS TO WORK,EG EMPLOYMENT PROGRAMMES,NORTH STAFFORDSHIRE PCT,2016960517,"290,081.52"
Department for Work and Pensions,Employment Programmes,08/09/2010,EP GENERIC PROVIDER PAYMENTS,EG EMPLOYMENT PROGRAMMES,ESG HOLDINGS LTD,2017014518,"289,556.59"
Department for Work and Pensions,Housing Benefits,14/09/2010,HB COOL DEL PROGRAMME,WWG HOUSING BENEFIT,FIFE COUNCIL,2017081859,"288,157.00"
Department for Work and Pensions,Jobcentre Plus,13/09/2010,APPS DEV,ISD,HP ENTERPRISE SERVICES UK LTD,2017078127,"285,324.83"
Department for Work and Pensions,Corporate,30/09/2010,PRIME BUSINESS RATES,GROUP FINANCE,TELEREAL TRILLIUM,2017388155,"285,051.21"
Department for Work and Pensions,Housing Benefits,14/09/2010,HB COOL DEL PROGRAMME,WWG HOUSING BENEFIT,WIRRAL BOROUGH COUNCIL,2017082106,"284,708.00"
Department for Work and Pensions,Employment Programmes,08/09/2010,EP GENERIC PROVIDER PAYMENTS,EG EMPLOYMENT PROGRAMMES,JHP GROUP LTD,2017027031,"284,361.59"
Department for Work and Pensions,Jobcentre Plus,17/09/2010,EMPLOYMENT PROGRAMMES,HQ BALANCE SHEET ,BTCV ENTERPRISES LTD,2017174958,"284,329.00"
Department for Work and Pensions,Jobcentre Plus,30/09/2010,MEDICAL SERVICES CONTRACT,CHIEF OPERATING OFFICER,ATOS ORIGIN MEDICAL SERVICES,2002180,"283,712.01"
Department for Work and Pensions,Jobcentre Plus,03/09/2010,EMPLOYMENT PROGRAMMES,HQ BALANCE SHEET ,WORKING LINKS,2016973568,"283,584.00"
Department for Work and Pensions,Employment Programmes,02/09/2010,EMPLOYMENT ZONES,EG EMPLOYMENT PROGRAMMES,WORKING LINKS,2016967601,"283,022.00"
Department for Work and Pensions,Employment Programmes,08/09/2010,EP GENERIC PROVIDER PAYMENTS,EG EMPLOYMENT PROGRAMMES,REED IN PARTNERSHIP,2017051958,"281,250.00"
Department for Work and Pensions,Employment Programmes,17/09/2010,RESIDENTIAL TRAINING,EG EMPLOYMENT PROGRAMMES,ST LOYES COLLEGE FOUNDATION,2017178886,"279,273.33"
Department for Work and Pensions,Employment Programmes,13/09/2010,YOUNG PERSONS GUARANTEE (YPG) AND FUTURE JOBS FUND (FJF),EG EMPLOYMENT PROGRAMMES,BRADFORD METROPOLITAN DISTRICT COUNCIL,2017074651,"279,000.00"
Department for Work and Pensions,Employment Programmes,20/09/2010,YOUNG PERSONS GUARANTEE (YPG) AND FUTURE JOBS FUND (FJF),EG EMPLOYMENT PROGRAMMES,LEICESTER CITY COUNCIL,2017185581,"277,950.00"
Department for Work and Pensions,Employment Programmes,08/09/2010,EP GENERIC PROVIDER PAYMENTS,EG EMPLOYMENT PROGRAMMES,A4E LTD,2016997740,"276,631.67"
Department for Work and Pensions,Jobcentre Plus,30/09/2010,EMPLOYMENT PROGRAMMES,HQ BALANCE SHEET ,WORKING LINKS EMPLOYMENT LTD,2017388398,"276,309.68"
Department for Work and Pensions,Employment Programmes,08/09/2010,EP GENERIC PROVIDER PAYMENTS,EG EMPLOYMENT PROGRAMMES,PERTEMPS,2017048769,"274,593.67"
Department for Work and Pensions,Employment Programmes,24/09/2010,YOUNG PERSONS GUARANTEE (YPG) AND FUTURE JOBS FUND (FJF),EG EMPLOYMENT PROGRAMMES,LONDON BOROUGH OF HACKNEY HOST BOROUGH UNIT,2017285235,"273,600.00"
Department for Work and Pensions,Employment Programmes,17/09/2010,RESIDENTIAL TRAINING,EG EMPLOYMENT PROGRAMMES,QUEEN ELIZABETHS FOUNDATION TRAINING COLLEGE,2017178355,"273,567.47"
Department for Work and Pensions,Employment Programmes,07/09/2010,YOUNG PERSONS GUARANTEE (YPG) AND FUTURE JOBS FUND (FJF),EG EMPLOYMENT PROGRAMMES,INVERCLYDE COUNCIL,2016985367,"273,000.00"
Department for Work and Pensions,Housing Benefits,14/09/2010,HB COOL DEL PROGRAMME,WWG HOUSING BENEFIT,LONDON BOROUGH OF GREENWICH,2017081914,"272,849.00"
Department for Work and Pensions,Corporate,08/09/2010,NI & OGDs,WWG ,H M REVENUE & CUSTOMS,2002117,"270,580.38"
Department for Work and Pensions,Corporate,30/09/2010,PRIME CHARGES,GROUP FINANCE,TELEREAL TRILLIUM,2017388154,"270,282.52"
Department for Work and Pensions,Housing Benefits,14/09/2010,HB COOL DEL PROGRAMME,WWG HOUSING BENEFIT,LONDON BOROUGH OF WANDSWORTH,2017081933,"267,990.00"
Department for Work and Pensions,Employment Programmes,08/09/2010,EP GENERIC PROVIDER PAYMENTS,EG EMPLOYMENT PROGRAMMES,INGEUS UK LTD,2017019959,"267,935.00"
Department for Work and Pensions,Housing Benefits,14/09/2010,HB COOL DEL PROGRAMME,WWG HOUSING BENEFIT,WOLVERHAMPTON CITY COUNCIL,2017082109,"266,735.00"
Department for Work and Pensions,Employment Programmes,21/09/2010,EMPLOYMENT ZONES,EG EMPLOYMENT PROGRAMMES,REED IN PARTNERSHIP HACKNEY LTD,2017197171,"264,670.00"
Department for Work and Pensions,Employment Programmes,22/09/2010,EMPLOYMENT ZONES,EG EMPLOYMENT PROGRAMMES,WORKING LINKS,2017271832,"261,012.00"
Department for Work and Pensions,Employment Programmes,08/09/2010,EP GENERIC PROVIDER PAYMENTS,EG EMPLOYMENT PROGRAMMES,A4E LTD,2016997740,"258,168.34"
Department for Work and Pensions,Jobcentre Plus,23/09/2010,EMPLOYMENT PROGRAMMES,HQ BALANCE SHEET ,WORKING LINKS EMPLOYMENT LTD,2017279968,"257,850.63"
Department for Work and Pensions,Housing Benefits,14/09/2010,HB COOL DEL PROGRAMME,WWG HOUSING BENEFIT,LONDON BOROUGH OF BARNET,2017081907,"257,064.00"
Department for Work and Pensions,Housing Benefits,14/09/2010,HB COOL DEL PROGRAMME,WWG HOUSING BENEFIT,DONCASTER METROPOLITAN BOROUGH COUNCIL,2017081828,"256,645.00"
Department for Work and Pensions,Employment Programmes,08/09/2010,EP GENERIC PROVIDER PAYMENTS,EG EMPLOYMENT PROGRAMMES,A4E LTD,2016997740,"256,507.50"
Department for Work and Pensions,Housing Benefits,14/09/2010,HB COOL DEL PROGRAMME,WWG HOUSING BENEFIT,SOUTH LANARKSHIRE COUNCIL,2017082033,"255,246.00"
Department for Work and Pensions,Corporate,09/09/2010,IS/IT,CORPORATE IT,HP ENTERPRISE SERVICES UK LTD,2017071504,"254,741.27"
Department for Work and Pensions,Employment Programmes,30/09/2010,WORKSTEP,EG EMPLOYMENT PROGRAMMES,RBLI EMPLOYMENT SERVICES,2017387353,"254,669.55"
Department for Work and Pensions,Corporate,14/09/2010,COMPUTER SERVICES,CORPORATE IT,BT SYNTEGRA,2017083243,"254,611.71"
Department for Work and Pensions,Jobcentre Plus,03/09/2010,EMPLOYMENT PROGRAMMES,HQ BALANCE SHEET ,ROYAL BRITISH LEGION INDUSTRIES LTD,2016972875,"254,145.00"
Department for Work and Pensions,Employment Programmes,21/09/2010,YOUNG PERSONS GUARANTEE (YPG) AND FUTURE JOBS FUND (FJF),EG EMPLOYMENT PROGRAMMES,BRIGHTON & HOVE CITY COUNCIL,2017189279,"252,600.00"
Department for Work and Pensions,Employment Programmes,03/09/2010,YOUNG PERSONS GUARANTEE (YPG) AND FUTURE JOBS FUND (FJF),EG EMPLOYMENT PROGRAMMES,GROUNDWORK UK,2016971255,"251,811.00"
Department for Work and Pensions,Corporate,23/09/2010,PROFESSIONAL FEES,PENSIONS CLIENT DIRECTORATE,IMPROVEMENT & DEVELOPMENT AGENCY,2017277502,"251,005.00"
Department for Work and Pensions,Employment Programmes,08/09/2010,EP GENERIC PROVIDER PAYMENTS,EG EMPLOYMENT PROGRAMMES,PINNACLE PEOPLE,2017048785,"250,993.59"
Department for Work and Pensions,Corporate,06/09/2010,COMPUTER SERVICES,GROUP FINANCE,HP ENTERPRISE SERVICES UK LTD,2016977815,"250,902.00"
Department for Work and Pensions,Housing Benefits,14/09/2010,HB COOL DEL PROGRAMME,WWG HOUSING BENEFIT,NEWCASTLE CITY COUNCIL,2017081955,"250,524.00"
Department for Work and Pensions,Employment Programmes,15/09/2010,YOUNG PERSONS GUARANTEE (YPG) AND FUTURE JOBS FUND (FJF),EG EMPLOYMENT PROGRAMMES,NORTH LANARKSHIRE COUNCIL,2017144604,"250,500.00"
Department for Work and Pensions,Housing Benefits,14/09/2010,HB COOL DEL PROGRAMME,WWG HOUSING BENEFIT,SALFORD CITY COUNCIL,2017082010,"249,571.00"
Department for Work and Pensions,"Pension, Disability Carers Services",07/09/2010,APPS DEV,PDCS CHANGE ,HP ENTERPRISE SERVICES UK LTD,2016985252,"249,338.63"
Department for Work and Pensions,Employment Programmes,01/09/2010,JOBCENTRE PLUS PATHWAYS TO WORK,EG EMPLOYMENT PROGRAMMES,CUMBRIA PARTNERSHIP FOUNDATION NHS TRUST,2016958413,"247,924.61"
Department for Work and Pensions,Employment Programmes,22/09/2010,EMPLOYMENT ZONES,EG EMPLOYMENT PROGRAMMES,THE WISE GROUP,2017269788,"247,896.00"
Department for Work and Pensions,Jobcentre Plus,03/09/2010,EMPLOYMENT PROGRAMMES,HQ BALANCE SHEET ,TNG LTD,2016973432,"247,222.37"
Department for Work and Pensions,Employment Programmes,27/09/2010,YOUNG PERSONS GUARANTEE (YPG) AND FUTURE JOBS FUND (FJF),EG EMPLOYMENT PROGRAMMES,NORTH TYNESIDE COUNCIL,2017292236,"246,750.00"
Department for Work and Pensions,Corporate,08/09/2010,COMPUTER SERVICES,SHARED SERVICES ,FUJITSU SERVICES,2017015398,"246,570.83"
Department for Work and Pensions,Corporate,06/09/2010,MISCELLANEOUS EXPENDITURE,EG,CENTRE FOR SOCIAL INCLUSION,2016975813,"246,047.00"
Department for Work and Pensions,Corporate,14/09/2010,COMPUTER SERVICES,CORPORATE IT,HP ENTERPRISE SERVICES UK LTD,2017085801,"246,000.00"
Department for Work and Pensions,Jobcentre Plus,03/09/2010,EMPLOYMENT PROGRAMMES,HQ BALANCE SHEET ,TOMORROWS PEOPLE LTD,2016973438,"245,511.30"
Department for Work and Pensions,Employment Programmes,15/09/2010,RESIDENTIAL TRAINING,EG EMPLOYMENT PROGRAMMES,FINCHALE TRAINING COLLEGE,2017114365,"245,299.98"
Department for Work and Pensions,Housing Benefits,14/09/2010,HB COOL DEL PROGRAMME,WWG HOUSING BENEFIT,LONDON BOROUGH OF WALTHAM FOREST,2017081932,"244,198.00"
Department for Work and Pensions,Employment Programmes,29/09/2010,OTHER CURRENT,EG EMPLOYMENT PROGRAMMES,SCOTTISH GOVERNMENT,2017373365,"243,065.00"
Department for Work and Pensions,Jobcentre Plus,30/09/2010,EMPLOYMENT PROGRAMMES,HQ BALANCE SHEET ,TNG NETWORK LTD,2017388213,"243,014.90"
Department for Work and Pensions,Jobcentre Plus,30/09/2010,EMPLOYMENT PROGRAMMES,HQ BALANCE SHEET ,WORKING LINKS,2017388393,"242,362.05"
Department for Work and Pensions,Employment Programmes,15/09/2010,OTHER CURRENT,EG EMPLOYMENT PROGRAMMES,OFSTED,2017144799,"242,293.00"
Department for Work and Pensions,Housing Benefits,14/09/2010,HB COOL DEL PROGRAMME,WWG HOUSING BENEFIT,CITY OF WESTMINSTER,2017081805,"242,253.00"
Department for Work and Pensions,Jobcentre Plus,23/09/2010,EMPLOYMENT PROGRAMMES,HQ BALANCE SHEET ,SHAW TRUST LTD,2017279610,"242,206.16"
Department for Work and Pensions,Jobcentre Plus,23/09/2010,EMPLOYMENT PROGRAMMES,HQ BALANCE SHEET ,INGEUS UK LTD,2017277505,"240,712.15"
Department for Work and Pensions,Employment Programmes,01/09/2010,YOUNG PERSONS GUARANTEE (YPG) AND FUTURE JOBS FUND (FJF),EG EMPLOYMENT PROGRAMMES,MERTHYR TYDFIL COUNTY BOROUGH COUNCIL,2016961999,"239,700.00"
Department for Work and Pensions,Housing Benefits,14/09/2010,HB COOL DEL PROGRAMME,WWG HOUSING BENEFIT,WILTSHIRE COUNCIL,2017082103,"237,896.00"
Department for Work and Pensions,Housing Benefits,14/09/2010,HB COOL DEL PROGRAMME,WWG HOUSING BENEFIT,DUDLEY METROPOLITAN BOROUGH COUNCIL,2017081830,"237,479.00"
Department for Work and Pensions,Jobcentre Plus,13/09/2010,COMPUTER SERVICES,TPM PROGRAMMES,HP ENTERPRISE SERVICES UK LTD,2017078127,"236,312.83"
Department for Work and Pensions,Corporate,30/09/2010,PRIME BUSINESS RATES,GROUP FINANCE,TELEREAL TRILLIUM,2017388155,"234,595.94"
Department for Work and Pensions,Employment Programmes,07/09/2010,YOUNG PERSONS GUARANTEE (YPG) AND FUTURE JOBS FUND (FJF),EG EMPLOYMENT PROGRAMMES,SOCIAL ENTERPRISE LONDON,2016990224,"234,000.00"
Department for Work and Pensions,Housing Benefits,14/09/2010,HB COOL DEL PROGRAMME,WWG HOUSING BENEFIT,WIGAN BOROUGH COUNCIL,2017082102,"233,860.00"
Department for Work and Pensions,Employment Programmes,06/09/2010,JOBCENTRE PLUS PATHWAYS TO WORK,EG EMPLOYMENT PROGRAMMES,NHS GREATER GLASGOW & CLYDE,2016978830,"233,551.00"
Department for Work and Pensions,Employment Programmes,08/09/2010,EP GENERIC PROVIDER PAYMENTS,EG EMPLOYMENT PROGRAMMES,PINNACLE PEOPLE,2017048785,"233,101.09"
Department for Work and Pensions,Employment Programmes,08/09/2010,EP GENERIC PROVIDER PAYMENTS,EG EMPLOYMENT PROGRAMMES,JHP GROUP LTD,2017027031,"232,596.42"
Department for Work and Pensions,Corporate,22/09/2010,CONTRACTED OUT OFFICE SERVICES,SHARED SERVICES ,MINISTRY OF DEFENCE,2017249685,"232,584.11"
Department for Work and Pensions,Housing Benefits,14/09/2010,HB COOL DEL PROGRAMME,WWG HOUSING BENEFIT,STOKE ON TRENT CITY COUNCIL,2017082053,"228,040.00"
Department for Work and Pensions,Corporate,28/09/2010,ACCOMMODATION,GROUP FINANCE,TELEREAL TRILLIUM,2017304897,"226,411.06"
Department for Work and Pensions,Employment Programmes,27/09/2010,YOUNG PERSONS GUARANTEE (YPG) AND FUTURE JOBS FUND (FJF),EG EMPLOYMENT PROGRAMMES,GROUNDWORK WEST MIDLANDS,2017290912,"225,900.00"
Department for Work and Pensions,"Pension, Disability Carers Services",07/09/2010,APPS DEV,PDCS CHANGE ,HP ENTERPRISE SERVICES UK LTD,2016985252,"225,701.36"
Department for Work and Pensions,"Pension, Disability Carers Services",30/09/2010,ACCOMMODATION,PDCS CORE,TELEREAL TRILLIUM,2017388158,"225,669.72"
Department for Work and Pensions,Jobcentre Plus,03/09/2010,EMPLOYMENT PROGRAMMES,HQ BALANCE SHEET ,WORKING LINKS,2016973567,"225,410.83"
Department for Work and Pensions,Corporate,13/09/2010,INTERNATIONAL PROGRAMMES,WWG ,THE BRITISH COUNCIL,2017080467,"225,000.00"
Department for Work and Pensions,Housing Benefits,14/09/2010,HB COOL DEL PROGRAMME,WWG HOUSING BENEFIT,SEFTON METROPOLITAN BOROUGH COUNCIL,2017082015,"224,789.00"
Department for Work and Pensions,Jobcentre Plus,28/09/2010,TEMPORARY (TEMP) STAFF COSTS,CHIEF OPERATING OFFICER,HM LAND REGISTRY,2017298891,"224,510.66"
Department for Work and Pensions,Jobcentre Plus,30/09/2010,MEDICAL SERVICES CONTRACT,CHIEF OPERATING OFFICER,ATOS ORIGIN MEDICAL SERVICES,2002181,"222,880.13"
Department for Work and Pensions,Employment Programmes,08/09/2010,EP GENERIC PROVIDER PAYMENTS,EG EMPLOYMENT PROGRAMMES,SEETEC BUSINESS TECHNOLOGY CENTRE LTD,2017060178,"222,223.17"
Department for Work and Pensions,Corporate,24/09/2010,NETWORK,CORPORATE IT,BT SYNTEGRA,2017282276,"222,002.89"
Department for Work and Pensions,Employment Programmes,07/09/2010,YOUNG PERSONS GUARANTEE (YPG) AND FUTURE JOBS FUND (FJF),EG EMPLOYMENT PROGRAMMES,THE FOOTBALL LEAGUE COMMUNITY LTD,2016990555,"221,000.00"
Department for Work and Pensions,Employment Programmes,14/09/2010,YOUNG PERSONS GUARANTEE (YPG) AND FUTURE JOBS FUND (FJF),EG EMPLOYMENT PROGRAMMES,SANDWELL METROPOLITAN BOROUGH COUNCIL,2017090868,"220,950.00"
Department for Work and Pensions,Jobcentre Plus,30/09/2010,EMPLOYMENT PROGRAMMES,HQ BALANCE SHEET ,TNG BUSINESS SUPPORT LTD.,2017388208,"220,833.71"
Department for Work and Pensions,Housing Benefits,14/09/2010,HB COOL DEL PROGRAMME,WWG HOUSING BENEFIT,LONDON BOROUGH OF HOUNSLOW,2017081920,"220,464.00"
Department for Work and Pensions,Employment Programmes,08/09/2010,EP GENERIC PROVIDER PAYMENTS,EG EMPLOYMENT PROGRAMMES,TNG LTD,2017063719,"220,239.34"
Department for Work and Pensions,Corporate,22/09/2010,CONTRACTED OUT OFFICE SERVICES,SHARED SERVICES ,HOME OFFICE,2017225829,"219,809.95"
Department for Work and Pensions,Corporate,14/09/2010,APPS DEV,SHARED SERVICES ,HP ENTERPRISE SERVICES UK LTD,2017085801,"218,361.48"
Department for Work and Pensions,Housing Benefits,14/09/2010,HB COOL DEL PROGRAMME,WWG HOUSING BENEFIT,BOLTON METROPOLITAN BOROUGH COUNCIL,2017081762,"218,051.00"
Department for Work and Pensions,Corporate,15/09/2010,HOSTING,CORPORATE IT,HP ENTERPRISE SERVICES UK LTD,2017118165,"217,269.45"
Department for Work and Pensions,Jobcentre Plus,30/09/2010,EMPLOYMENT PROGRAMMES,HQ BALANCE SHEET ,A4E WALES LTD,2017390182,"217,053.33"
Department for Work and Pensions,Corporate,14/09/2010,NETWORK,CHANGE MANAGEMENT DIRECTORATE,BT SYNTEGRA,2017083243,"215,275.90"
Department for Work and Pensions,Corporate,21/09/2010,EMPLOYMENT ZONES,GROUP FINANCE,MANCHESTER CREDIT UNION,2017195694,"215,247.00"
Department for Work and Pensions,Jobcentre Plus,03/09/2010,EMPLOYMENT PROGRAMMES,HQ BALANCE SHEET ,BTCV,2016969206,"214,554.18"
Department for Work and Pensions,Employment Programmes,28/09/2010,WORKSTEP,EG EMPLOYMENT PROGRAMMES,THE PLUSS ORGANISATION LTD,2017304911,"213,972.40"
Department for Work and Pensions,Corporate,07/09/2010,COMMUNICATIONS & PUBLICITY,DIRECTGOV ,CENTRAL OFFICE OF INFORMATION,2016982635,"213,582.10"
Department for Work and Pensions,Corporate,21/09/2010,CAPITAL GRANTS,GROUP FINANCE,MANCHESTER CREDIT UNION,2017195694,"211,625.00"
Department for Work and Pensions,Jobcentre Plus,03/09/2010,EMPLOYMENT PROGRAMMES,HQ BALANCE SHEET ,THE INTRAINING GROUP,2016973405,"209,994.39"
Department for Work and Pensions,Employment Programmes,20/09/2010,YOUNG PERSONS GUARANTEE (YPG) AND FUTURE JOBS FUND (FJF),EG EMPLOYMENT PROGRAMMES,HAMPSHIRE COUNTY COUNCIL,2017184870,"209,452.21"
Department for Work and Pensions,Corporate,17/09/2010,TEMPORARY (TEMP) STAFF COSTS,CORPORATE IT,CAPITA RESOURCING LIMITED,2017175185,"208,511.07"
Department for Work and Pensions,Corporate,21/09/2010,CAPITAL GRANTS,GROUP FINANCE,RIVERSIDE CREDIT UNION,2017197193,"208,270.00"
Department for Work and Pensions,Corporate,21/09/2010,MANAGEMENT CONSULTANCY,GROUP FINANCE,DELOITTE LLP,2017190660,"207,272.00"
Department for Work and Pensions,Housing Benefits,14/09/2010,HB COOL DEL PROGRAMME,WWG HOUSING BENEFIT,PLYMOUTH CITY COUNCIL,2017081985,"207,141.00"
Department for Work and Pensions,Housing Benefits,14/09/2010,HB COOL DEL PROGRAMME,WWG HOUSING BENEFIT,ROTHERHAM BOROUGH COUNCIL,2017082002,"207,046.00"
Department for Work and Pensions,Employment Programmes,13/09/2010,YOUNG PERSONS GUARANTEE (YPG) AND FUTURE JOBS FUND (FJF),EG EMPLOYMENT PROGRAMMES,NORFOLK COUNTY COUNCIL,2017079448,"206,700.00"
Department for Work and Pensions,Housing Benefits,14/09/2010,HB COOL DEL PROGRAMME,WWG HOUSING BENEFIT,STOCKPORT BOROUGH COUNCIL,2017082051,"206,416.00"
Department for Work and Pensions,Employment Programmes,22/09/2010,EMPLOYMENT ZONES,EG EMPLOYMENT PROGRAMMES,WORKING LINKS,2017271832,"206,303.00"
Department for Work and Pensions,Corporate,02/09/2010,EMPLOYMENT ZONES,WWG,COI CENTRAL OFFICE OF INFORMATION,2016962890,"205,665.00"
Department for Work and Pensions,Housing Benefits,14/09/2010,HB COOL DEL PROGRAMME,WWG HOUSING BENEFIT,NORTHUMBERLAND COUNCIL,2017081973,"205,095.00"
Department for Work and Pensions,Housing Benefits,14/09/2010,HB COOL DEL PROGRAMME,WWG HOUSING BENEFIT,TAMESIDE BOROUGH COUNCIL,2017082062,"204,336.00"
Department for Work and Pensions,European Social Fund,30/09/2010,MA ESF(D) LA NON-PREFUNDED EXPENDITURE,WWEG EUROPEAN SOCIAL FUND,BEDFORDSHIRE COUNTY COUNCIL,2017382466,"204,066.00"
Department for Work and Pensions,Housing Benefits,14/09/2010,HB COOL DEL PROGRAMME,WWG HOUSING BENEFIT,LONDON BOROUGH OF HAMMERSMITH & FULHAM,2017081915,"203,286.00"
Department for Work and Pensions,Corporate,27/09/2010,COMPUTER SERVICES,CHANGE MANAGEMENT DIRECTORATE,ATOS ORIGIN IT SERVICES UK LTD,2017288378,"203,030.58"
Department for Work and Pensions,Housing Benefits,14/09/2010,HB COOL DEL PROGRAMME,WWG HOUSING BENEFIT,CHESHIRE EAST BOROUGH COUNCIL,2017081796,"202,726.00"
Department for Work and Pensions,Housing Benefits,14/09/2010,HB COOL DEL PROGRAMME,WWG HOUSING BENEFIT,LONDON BOROUGH OF HILLINGDON,2017081919,"202,106.00"
Department for Work and Pensions,Housing Benefits,14/09/2010,HB COOL DEL PROGRAMME,WWG HOUSING BENEFIT,CHESHIRE WEST & CHESTER COUNCIL,2017081797,"201,169.00"
Department for Work and Pensions,Housing Benefits,14/09/2010,HB COOL DEL PROGRAMME,WWG HOUSING BENEFIT,RHONDA CYNON TAFF COUNTY BOROUGH COUNCIL,2017081995,"199,622.00"
Department for Work and Pensions,Housing Benefits,14/09/2010,HB COOL DEL PROGRAMME,WWG HOUSING BENEFIT,PORTSMOUTH CITY COUNCIL,2017081987,"199,580.00"
Department for Work and Pensions,Jobcentre Plus,21/09/2010,APPS DEV,TPM PROGRAMMES,HP ENTERPRISE SERVICES UK LTD,2017192783,"199,053.33"
Department for Work and Pensions,Employment Programmes,22/09/2010,EMPLOYMENT ZONES,EG EMPLOYMENT PROGRAMMES,WORKING LINKS,2017271832,"198,997.00"
Department for Work and Pensions,Corporate,03/09/2010,PRINTING STATIONERY IT & CONSUMABLES,GROUP FINANCE,XEROX UK LIMITED 3W,2016973582,"198,888.00"
Department for Work and Pensions,Employment Programmes,08/09/2010,EP GENERIC PROVIDER PAYMENTS,EG EMPLOYMENT PROGRAMMES,A4E LTD,2016997740,"198,836.66"
Department for Work and Pensions,Housing Benefits,14/09/2010,HB COOL DEL PROGRAMME,WWG HOUSING BENEFIT,MEDWAY TOWNS COUNCIL,2017081940,"198,271.00"
Department for Work and Pensions,Corporate,23/09/2010,TEMPORARY (TEMP) STAFF COSTS,CORPORATE IT,CAPITA RESOURCING LIMITED,2017275498,"197,851.12"
Department for Work and Pensions,Employment Programmes,07/09/2010,YOUNG PERSONS GUARANTEE (YPG) AND FUTURE JOBS FUND (FJF),EG EMPLOYMENT PROGRAMMES,PROJECT SCOTLAND,2016988787,"197,600.00"
Department for Work and Pensions,Jobcentre Plus,30/09/2010,EMPLOYMENT PROGRAMMES,HQ BALANCE SHEET ,ROYAL BRITISH LEGION INDUSTRIES LTD,2017387408,"196,391.90"
Department for Work and Pensions,Housing Benefits,14/09/2010,HB COOL DEL PROGRAMME,WWG HOUSING BENEFIT,SOUTHAMPTON CITY COUNCIL,2017082041,"196,264.00"
Department for Work and Pensions,Employment Programmes,08/09/2010,EP GENERIC PROVIDER PAYMENTS,EG EMPLOYMENT PROGRAMMES,JHP GROUP LTD,2017027031,"195,794.50"
Department for Work and Pensions,Employment Programmes,16/09/2010,EMPLOYMENT ZONES,EG EMPLOYMENT PROGRAMMES,TNG WORKZONE LTD,2017174280,"195,271.00"
Department for Work and Pensions,Corporate,28/09/2010,ACCOMMODATION,GROUP FINANCE,TELEREAL TRILLIUM,2017304897,"194,619.92"
Department for Work and Pensions,Corporate,03/09/2010,COMPUTER SERVICES,CORPORATE IT,ATOS ORIGIN IT SERVICES UK LTD,2016969088,"192,803.11"
Department for Work and Pensions,Corporate,24/09/2010,COMPUTER SERVICES,CORPORATE IT,ATOS ORIGIN IT SERVICES UK LTD,2017282151,"192,803.11"
Department for Work and Pensions,Corporate,06/09/2010,TEMPORARY (TEMP) STAFF COSTS,CORPORATE IT,CAPITA RESOURCING LIMITED,2016975800,"192,158.36"
Department for Work and Pensions,Employment Programmes,08/09/2010,EP GENERIC PROVIDER PAYMENTS,EG EMPLOYMENT PROGRAMMES,CAPITAL TRAINING GROUP LTD,2017004702,"191,899.17"
Department for Work and Pensions,Housing Benefits,14/09/2010,HB COOL DEL PROGRAMME,WWG HOUSING BENEFIT,EAST RIDING OF YORKSHIRE BOROUGH COUNCIL,2017081845,"191,851.00"
Department for Work and Pensions,Employment Programmes,03/09/2010,YOUNG PERSONS GUARANTEE (YPG) AND FUTURE JOBS FUND (FJF),EG EMPLOYMENT PROGRAMMES,PROSPECT SERVICES LTD,2016972696,"191,555.00"
Department for Work and Pensions,Corporate,07/09/2010,IS/IT,CORPORATE IT,HP ENTERPRISE SERVICES UK LTD,2016985252,"191,344.82"
Department for Work and Pensions,Employment Programmes,07/09/2010,YOUNG PERSONS GUARANTEE (YPG) AND FUTURE JOBS FUND (FJF),EG EMPLOYMENT PROGRAMMES,WEST DUNBARTONSHIRE COUNCIL,2016990830,"190,260.00"
Department for Work and Pensions,Employment Programmes,23/09/2010,YOUNG PERSONS GUARANTEE (YPG) AND FUTURE JOBS FUND (FJF),EG EMPLOYMENT PROGRAMMES,NATIONAL SKILLS ACADEMY FOR SPORT & ACTIVE LEISURE,2017278800,"189,150.00"
Department for Work and Pensions,Housing Benefits,14/09/2010,HB COOL DEL PROGRAMME,WWG HOUSING BENEFIT,BARNSLEY BOROUGH COUNCIL,2017081749,"188,968.00"
Department for Work and Pensions,Housing Benefits,14/09/2010,HB COOL DEL PROGRAMME,WWG HOUSING BENEFIT,MILTON KEYNES BOROUGH COUNCIL,2017081949,"188,743.00"
Department for Work and Pensions,Housing Benefits,14/09/2010,HB COOL DEL PROGRAMME,WWG HOUSING BENEFIT,LONDON BOROUGH OF KENSINGTON & CHELSEA,2017081922,"188,446.00"
Department for Work and Pensions,Housing Benefits,14/09/2010,HB COOL DEL PROGRAMME,WWG HOUSING BENEFIT,ROCHDALE BOROUGH COUNCIL,2017081998,"188,330.00"
Department for Work and Pensions,Jobcentre Plus,03/09/2010,EMPLOYMENT PROGRAMMES,HQ BALANCE SHEET ,COMMUNITY  LINKS,2016969461,"188,199.56"
Department for Work and Pensions,Employment Programmes,14/09/2010,YOUNG PERSONS GUARANTEE (YPG) AND FUTURE JOBS FUND (FJF),EG EMPLOYMENT PROGRAMMES,CSV,2017083894,"187,950.00"
Department for Work and Pensions,Corporate,02/09/2010,COMPUTER SERVICES,CORPORATE IT,AMTEC CONSULTING GROUP,2016962394,"187,859.00"
Department for Work and Pensions,Corporate,22/09/2010,COMPUTER SERVICES,CORPORATE IT,AMTEC CONSULTING GROUP,2017206159,"187,723.28"
Department for Work and Pensions,Housing Benefits,14/09/2010,HB COOL DEL PROGRAMME,WWG HOUSING BENEFIT,DERBY CITY COUNCIL,2017081826,"186,935.00"
Department for Work and Pensions,Corporate,07/09/2010,AR PRIME RECOVERIES,HQ BALANCE SHEET ,TELEREAL TRILLIUM,2016987076,"186,806.40"
Department for Work and Pensions,Corporate,14/09/2010,AMS,CORPORATE IT,HP ENTERPRISE SERVICES UK LTD,2017085801,"186,668.87"
Department for Work and Pensions,Corporate,29/09/2010,OFFICE MACHINERY HIRE & MAINTENANCE,WWG ,DEPARTMENT OF HEALTH,2002173,"186,553.00"
Department for Work and Pensions,Housing Benefits,14/09/2010,HB COOL DEL PROGRAMME,WWG HOUSING BENEFIT,SWANSEA CITY COUNCIL,2017082060,"185,902.00"
Department for Work and Pensions,"Pension, Disability Carers Services",14/09/2010,CONTRACTED OUT OFFICE SERVICES,PDCS CORE,CAPITA BUSINESS SERVICES LTD,2017083789,"185,742.88"
Department for Work and Pensions,Employment Programmes,06/09/2010,JOBCENTRE PLUS PATHWAYS TO WORK,EG EMPLOYMENT PROGRAMMES,CWM TAF LHB,2016980937,"185,569.25"
Department for Work and Pensions,Jobcentre Plus,29/09/2010,ACCOMMODATION,CHIEF OPERATING OFFICER,TELEREAL TRILLIUM,2017376756,"185,387.79"
Department for Work and Pensions,Employment Programmes,13/09/2010,JOBCENTRE PLUS PATHWAYS TO WORK,EG EMPLOYMENT PROGRAMMES,NHS GREATER GLASGOW & CLYDE,2017079439,"185,265.00"
Department for Work and Pensions,Corporate,01/09/2010,COMPUTER SERVICES,CHANGE MANAGEMENT DIRECTORATE,ATOS ORIGIN IT SERVICES UK LTD,2016958181,"184,366.69"
Department for Work and Pensions,Jobcentre Plus,13/09/2010,APPS DEV,CHIEF OPERATING OFFICER,HP ENTERPRISE SERVICES UK LTD,2017078127,"184,027.56"
Department for Work and Pensions,Housing Benefits,14/09/2010,HB COOL DEL PROGRAMME,WWG HOUSING BENEFIT,LONDON BOROUGH OF HARROW,2017081917,"183,286.00"
Department for Work and Pensions,Housing Benefits,14/09/2010,HB COOL DEL PROGRAMME,WWG HOUSING BENEFIT,OLDHAM BOROUGH COUNCIL,2017081978,"183,161.00"
Department for Work and Pensions,Jobcentre Plus,09/09/2010,EMPLOYMENT PROGRAMMES,HQ BALANCE SHEET ,CAREERS DEVELOPMENT GROUP,2017074037,"183,129.23"
Department for Work and Pensions,Housing Benefits,14/09/2010,HB COOL DEL PROGRAMME,WWG HOUSING BENEFIT,LONDON BOROUGH OF BROMLEY,2017081910,"182,362.00"
Department for Work and Pensions,Jobcentre Plus,03/09/2010,EMPLOYMENT PROGRAMMES,HQ BALANCE SHEET ,MBW TRAINING SERVICES,2016972289,"181,613.34"
Department for Work and Pensions,Jobcentre Plus,07/09/2010,APPS DEV,TPM PROGRAMMES,HP ENTERPRISE SERVICES UK LTD,2016985252,"181,370.37"
Department for Work and Pensions,Employment Programmes,06/09/2010,YOUNG PERSONS GUARANTEE (YPG) AND FUTURE JOBS FUND (FJF),EG EMPLOYMENT PROGRAMMES,LONDON BOROUGH OF LEWISHAM SOUTH BANK EMPLOYERS,2016978458,"181,295.48"
Department for Work and Pensions,Housing Benefits,14/09/2010,HB COOL DEL PROGRAMME,WWG HOUSING BENEFIT,LONDON BOROUGH OF BARKING & DAGENHAM,2017081906,"180,605.00"
Department for Work and Pensions,Housing Benefits,14/09/2010,HB COOL DEL PROGRAMME,WWG HOUSING BENEFIT,KNOWSLEY BOROUGH COUNCIL,2017081898,"179,845.00"
Department for Work and Pensions,Jobcentre Plus,30/09/2010,EMPLOYMENT PROGRAMMES,HQ BALANCE SHEET ,BTCV,2017382522,"179,553.99"
Department for Work and Pensions,Housing Benefits,14/09/2010,HB COOL DEL PROGRAMME,WWG HOUSING BENEFIT,GATESHEAD BOROUGH COUNCIL,2017081864,"178,509.00"
Department for Work and Pensions,Employment Programmes,08/09/2010,EP GENERIC PROVIDER PAYMENTS,EG EMPLOYMENT PROGRAMMES,INGEUS UK LTD,2017019959,"178,073.10"
Department for Work and Pensions,Corporate,23/09/2010,INTERNATIONAL PROGRAMMES,WWG ,SPECIALIST SCHOOLS & ACADEMIES TRUST,2017279649,"177,941.00"
Department for Work and Pensions,Employment Programmes,24/09/2010,YOUNG PERSONS GUARANTEE (YPG) AND FUTURE JOBS FUND (FJF),EG EMPLOYMENT PROGRAMMES,ENABLE,2017284148,"176,100.00"
Department for Work and Pensions,Jobcentre Plus,23/09/2010,EMPLOYMENT PROGRAMMES,HQ BALANCE SHEET ,SEETEC BUSINESS TECHNOLOGY CENTRE LTD,2017279597,"175,145.96"
Department for Work and Pensions,Employment Programmes,16/09/2010,JOBCENTRE PLUS PATHWAYS TO WORK,EG EMPLOYMENT PROGRAMMES,GATESHEAD PRIMARY CARE TRUST,2017171150,"174,564.00"
Department for Work and Pensions,Employment Programmes,13/09/2010,YOUNG PERSONS GUARANTEE (YPG) AND FUTURE JOBS FUND (FJF),EG EMPLOYMENT PROGRAMMES,LONDON BOROUGH OF HARINGEY,2017078953,"174,000.00"
Department for Work and Pensions,Employment Programmes,20/09/2010,YOUNG PERSONS GUARANTEE (YPG) AND FUTURE JOBS FUND (FJF),EG EMPLOYMENT PROGRAMMES,JARVIS EMPLOYMENT & TRAINING PROJECTS CIC,2017185222,"173,676.84"
Department for Work and Pensions,Housing Benefits,14/09/2010,HB COOL DEL PROGRAMME,WWG HOUSING BENEFIT,SHROPSHIRE COUNCIL,2017082021,"172,840.00"
Department for Work and Pensions,Employment Programmes,30/09/2010,JOBCENTRE PLUS PATHWAYS TO WORK,EG EMPLOYMENT PROGRAMMES,CWM TAF LHB,2017390190,"172,829.00"
Department for Work and Pensions,Corporate,08/09/2010,COMPUTER SERVICES,SHARED SERVICES ,FUJITSU SERVICES LTD,2017015399,"172,003.59"
Department for Work and Pensions,Employment Programmes,08/09/2010,EP GENERIC PROVIDER PAYMENTS,EG EMPLOYMENT PROGRAMMES,INGEUS UK LTD,2017019959,"171,274.17"
Department for Work and Pensions,Housing Benefits,14/09/2010,HB COOL DEL PROGRAMME,WWG HOUSING BENEFIT,LONDON BOROUGH OF REDBRIDGE,2017081927,"171,241.00"
Department for Work and Pensions,Housing Benefits,14/09/2010,HB COOL DEL PROGRAMME,WWG HOUSING BENEFIT,STOCKTON  BOROUGH COUNCIL,2017082052,"170,880.00"
Department for Work and Pensions,Corporate,30/09/2010,EMPLOYMENT ZONES,GROUP FINANCE,EAST LANCS MONEYLINE,2017384523,"170,742.00"
Department for Work and Pensions,Corporate,07/09/2010,ACCOMMODATION,GROUP FINANCE,TELEREAL TRILLIUM,2016987076,"170,106.10"
Department for Work and Pensions,Employment Programmes,29/09/2010,YOUNG PERSONS GUARANTEE (YPG) AND FUTURE JOBS FUND (FJF),EG EMPLOYMENT PROGRAMMES,LONDON BOROUGH OF GREENWICH,2017351082,"169,200.00"
Department for Work and Pensions,Employment Programmes,06/09/2010,YOUNG PERSONS GUARANTEE (YPG) AND FUTURE JOBS FUND (FJF),EG EMPLOYMENT PROGRAMMES,BRIGHTON & HOVE CITY COUNCIL,2016975617,"169,000.00"
Department for Work and Pensions,Housing Benefits,14/09/2010,HB COOL DEL PROGRAMME,WWG HOUSING BENEFIT,RENFREWSHIRE COUNCIL,2017081994,"168,749.00"
Department for Work and Pensions,Employment Programmes,07/09/2010,YOUNG PERSONS GUARANTEE (YPG) AND FUTURE JOBS FUND (FJF),EG EMPLOYMENT PROGRAMMES,SCOTTISH WILDLIFE TRUST,2016990154,"168,740.00"
Department for Work and Pensions,Corporate,14/09/2010,COMPUTER SERVICES,CORPORATE IT,BT SYNTEGRA,2017083243,"168,550.22"
Department for Work and Pensions,Corporate,03/09/2010,COMPUTER SERVICES,CORPORATE IT,ATOS ORIGIN IT SERVICES UK LTD,2016969088,"168,473.32"
Department for Work and Pensions,Corporate,14/09/2010,NON PRIME CHARGES,GROUP FINANCE,SOUTHERN ELECTRIC PLC,2017090965,"168,467.12"
Department for Work and Pensions,Housing Benefits,14/09/2010,HB COOL DEL PROGRAMME,WWG HOUSING BENEFIT,NORTHAMPTON BOROUGH COUNCIL,2017081972,"168,364.00"
Department for Work and Pensions,Corporate,22/09/2010,POSTAGE,GROUP FINANCE,TNT UK LTD,2017269898,"168,090.14"
Department for Work and Pensions,Jobcentre Plus,30/09/2010,EMPLOYMENT PROGRAMMES,HQ BALANCE SHEET ,COMMUNITY  LINKS,2017382908,"167,662.37"
Department for Work and Pensions,Jobcentre Plus,30/09/2010,EMPLOYMENT PROGRAMMES,HQ BALANCE SHEET ,MBW TRAINING SERVICES,2017386573,"167,639.31"
Department for Work and Pensions,Housing Benefits,14/09/2010,HB COOL DEL PROGRAMME,WWG HOUSING BENEFIT,BLACKPOOL BOROUGH COUNCIL,2017081759,"167,396.00"
Department for Work and Pensions,Corporate,07/09/2010,STAFF COSTS,Corporate and Support Services,RIGHT CORECARE,2016989275,"167,370.69"
Department for Work and Pensions,Jobcentre Plus,03/09/2010,EMPLOYMENT PROGRAMMES,HQ BALANCE SHEET ,YMCA TRAINING LTD,2016973595,"167,058.64"
Department for Work and Pensions,Housing Benefits,14/09/2010,HB COOL DEL PROGRAMME,WWG HOUSING BENEFIT,SOUTH GLOUCESTERSHIRE COUNCIL,2017082028,"165,637.00"
Department for Work and Pensions,Jobcentre Plus,23/09/2010,EMPLOYMENT PROGRAMMES,HQ BALANCE SHEET ,VT SOUTHERN CAREERS LTD COMMUNITY OUTREACH SERVICE,2017279907,"165,393.00"
Department for Work and Pensions,Housing Benefits,14/09/2010,HB COOL DEL PROGRAMME,WWG HOUSING BENEFIT,CALDERDALE BOROUGH COUNCIL,2017081783,"165,327.00"
Department for Work and Pensions,Housing Benefits,14/09/2010,HB COOL DEL PROGRAMME,WWG HOUSING BENEFIT,MIDDLESBROUGH COUNCIL,2017081947,"165,270.00"
Department for Work and Pensions,Employment Programmes,08/09/2010,EP GENERIC PROVIDER PAYMENTS,EG EMPLOYMENT PROGRAMMES,A4E LTD,2016997740,"165,176.67"
Department for Work and Pensions,Employment Programmes,01/09/2010,NDDP,EG EMPLOYMENT PROGRAMMES,SENCIA LTD,2016960877,"164,514.02"
Department for Work and Pensions,Housing Benefits,14/09/2010,HB COOL DEL PROGRAMME,WWG HOUSING BENEFIT,THANET DISTRICT COUNCIL,2017082070,"164,294.00"
Department for Work and Pensions,Housing Benefits,14/09/2010,HB COOL DEL PROGRAMME,WWG HOUSING BENEFIT,PETERBOROUGH CITY COUNCIL,2017081984,"163,738.00"
Department for Work and Pensions,Housing Benefits,14/09/2010,HB COOL DEL PROGRAMME,WWG HOUSING BENEFIT,DUNDEE CITY COUNCIL,2017081832,"163,220.00"
Department for Work and Pensions,Employment Programmes,22/09/2010,YOUNG PERSONS GUARANTEE (YPG) AND FUTURE JOBS FUND (FJF),EG EMPLOYMENT PROGRAMMES,WALES COUNCIL FOR VOLUNTARY ACTION,2017271771,"163,200.00"
Department for Work and Pensions,Employment Programmes,06/09/2010,YOUNG PERSONS GUARANTEE (YPG) AND FUTURE JOBS FUND (FJF),EG EMPLOYMENT PROGRAMMES,COVENTRY CITY COUNCIL,2016975849,"162,500.00"
Department for Work and Pensions,Corporate,17/09/2010,INTERNATIONAL PROGRAMMES,WWG ,BRITISH COUNCIL,2017174948,"160,591.00"
Department for Work and Pensions,Housing Benefits,14/09/2010,HB COOL DEL PROGRAMME,WWG HOUSING BENEFIT,NORTH TYNESIDE BOROUGH COUNCIL,2017081969,"160,371.00"
Department for Work and Pensions,Housing Benefits,14/09/2010,HB COOL DEL PROGRAMME,WWG HOUSING BENEFIT,NORTH EAST LINCOLNSHIRE COUNCIL,2017081962,"159,711.00"
Department for Work and Pensions,Housing Benefits,14/09/2010,HB COOL DEL PROGRAMME,WWG HOUSING BENEFIT,ST HELENS BOROUGH COUNCIL,2017082046,"159,652.00"
Department for Work and Pensions,Employment Programmes,03/09/2010,YOUNG PERSONS GUARANTEE (YPG) AND FUTURE JOBS FUND (FJF),EG EMPLOYMENT PROGRAMMES,SARINA RUSSO JOB ACCESS GB PTY LTD,2016973181,"159,311.00"
Department for Work and Pensions,Jobcentre Plus,17/09/2010,EMPLOYMENT PROGRAMMES,HQ BALANCE SHEET ,TRIAGE CENTRAL LTD,2017179064,"159,034.20"
Department for Work and Pensions,Employment Programmes,08/09/2010,YOUNG PERSONS GUARANTEE (YPG) AND FUTURE JOBS FUND (FJF),EG EMPLOYMENT PROGRAMMES,CHESHIRE WEST & CHESTER COUNCIL,2017004797,"157,950.00"
Department for Work and Pensions,Housing Benefits,14/09/2010,HB COOL DEL PROGRAMME,WWG HOUSING BENEFIT,HIGHLAND COUNCIL,2017081885,"157,800.00"
Department for Work and Pensions,Employment Programmes,07/09/2010,YOUNG PERSONS GUARANTEE (YPG) AND FUTURE JOBS FUND (FJF),EG EMPLOYMENT PROGRAMMES,REDCAR & CLEVELAND BOROUGH COUNCIL,2016989260,"156,000.00"
Department for Work and Pensions,Employment Programmes,29/09/2010,YOUNG PERSONS GUARANTEE (YPG) AND FUTURE JOBS FUND (FJF),EG EMPLOYMENT PROGRAMMES,CITY & COUNTY OF SWANSEA,2017319305,"156,000.00"
Department for Work and Pensions,Jobcentre Plus,09/09/2010,EMPLOYMENT PROGRAMMES,HQ BALANCE SHEET ,TNG BUSINESS SUPPORT LTD.,2017074143,"155,604.32"
Department for Work and Pensions,Jobcentre Plus,20/09/2010,MEDICAL SERVICES CONTRACT,CHIEF OPERATING OFFICER,ATOS ORIGIN MEDICAL SERVICES,2017182695,"155,508.22"
Department for Work and Pensions,Housing Benefits,14/09/2010,HB COOL DEL PROGRAMME,WWG HOUSING BENEFIT,LUTON BOROUGH COUNCIL,2017081934,"155,469.00"
Department for Work and Pensions,Jobcentre Plus,06/09/2010,JOBCENTRE PLUS PATHWAYS TO WORK,CHIEF OPERATING OFFICER,SOMERSET PCT,2016979544,"155,289.00"
Department for Work and Pensions,Employment Programmes,29/09/2010,YOUNG PERSONS GUARANTEE (YPG) AND FUTURE JOBS FUND (FJF),EG EMPLOYMENT PROGRAMMES,SOUTH LANARKSHIRE COUNCIL,2017373825,"155,250.00"
Department for Work and Pensions,Corporate,14/09/2010,APPS DEV,CHANGE MANAGEMENT DIRECTORATE,HP ENTERPRISE SERVICES UK LTD,2017085801,"154,866.32"
Department for Work and Pensions,Housing Benefits,14/09/2010,HB COOL DEL PROGRAMME,WWG HOUSING BENEFIT,BOURNEMOUTH BOROUGH COUNCIL,2017081767,"154,527.00"
Department for Work and Pensions,Corporate,14/09/2010,PROFESSIONAL FEES,Corporate and Support Services,NATIONAL CENTRE FOR SOCIAL RESEARCH NCSR,2017088881,"154,376.50"
Department for Work and Pensions,Jobcentre Plus,03/09/2010,EMPLOYMENT PROGRAMMES,HQ BALANCE SHEET ,TRIAGE CENTRAL LTD,2016973451,"153,090.18"
Department for Work and Pensions,"Pension, Disability Carers Services",15/09/2010,TOTAL SUPPLIES & SERVICES,PDCS CORE,ROYAL MAIL GROUP PLC,2017150523,"153,063.76"
Department for Work and Pensions,Jobcentre Plus,30/09/2010,EMPLOYMENT PROGRAMMES,HQ BALANCE SHEET ,TRIAGE CENTRAL LTD,2017388233,"152,837.77"
Department for Work and Pensions,Corporate,03/09/2010,NETWORK,CORPORATE IT,BT SYNTEGRA,2016969205,"152,730.64"
Department for Work and Pensions,Housing Benefits,14/09/2010,HB COOL DEL PROGRAMME,WWG HOUSING BENEFIT,NORTH SOMERSET COUNCIL,2017081968,"151,415.00"
Department for Work and Pensions,Corporate,30/09/2010,CAPITAL GRANTS,GROUP FINANCE,EAST LANCS MONEYLINE,2017384523,"151,209.00"
Department for Work and Pensions,Housing Benefits,14/09/2010,HB COOL DEL PROGRAMME,WWG HOUSING BENEFIT,SOUTHEND ON SEA BOROUGH COUNCIL,2017082042,"151,050.00"
Department for Work and Pensions,Employment Programmes,24/09/2010,YOUNG PERSONS GUARANTEE (YPG) AND FUTURE JOBS FUND (FJF),EG EMPLOYMENT PROGRAMMES,LONDON BOROUGH OF ISLINGTON,2017285238,"150,900.00"
Department for Work and Pensions,Jobcentre Plus,23/09/2010,EMPLOYMENT PROGRAMMES,HQ BALANCE SHEET ,TNG LTD,2017279823,"150,783.36"
Department for Work and Pensions,Employment Programmes,08/09/2010,EP GENERIC PROVIDER PAYMENTS,EG EMPLOYMENT PROGRAMMES,JHP GROUP LTD,2017027031,"150,258.67"
Department for Work and Pensions,Corporate,24/09/2010,COMPUTER SERVICES,CORPORATE IT,ATOS ORIGIN IT SERVICES UK LTD,2017282151,"150,146.34"
Department for Work and Pensions,Employment Programmes,15/09/2010,RESIDENTIAL TRAINING,EG EMPLOYMENT PROGRAMMES,PORTLAND COLLEGE,2017147338,"150,069.00"
Department for Work and Pensions,Corporate,27/09/2010,EMPLOYMENT ZONES,GROUP FINANCE,CAPITAL CREDIT UNION LTD,2017288713,"150,000.00"
Department for Work and Pensions,Corporate,15/09/2010,TOTAL SUPPLIES & SERVICES,WWG ,ROYAL MAIL GROUP PLC,2017150523,"149,554.34"
Department for Work and Pensions,Housing Benefits,14/09/2010,HB COOL DEL PROGRAMME,WWG HOUSING BENEFIT,BASILDON DISTRICT COUNCIL,2017081751,"148,283.00"
Department for Work and Pensions,Employment Programmes,07/09/2010,YOUNG PERSONS GUARANTEE (YPG) AND FUTURE JOBS FUND (FJF),EG EMPLOYMENT PROGRAMMES,NEATH PORT TALBOT COUNTY BOROUGH COUNCIL,2016988221,"148,200.00"
Department for Work and Pensions,Corporate,30/09/2010,EMPLOYMENT ZONES,GROUP FINANCE,NORRIS GREEN COMMUNITY CREDIT UNION,2017386809,"148,108.00"
Department for Work and Pensions,Employment Programmes,13/09/2010,YOUNG PERSONS GUARANTEE (YPG) AND FUTURE JOBS FUND (FJF),EG EMPLOYMENT PROGRAMMES,WALES COUNCIL FOR VOLUNTARY ACTION,2017080634,"147,600.00"
Department for Work and Pensions,Corporate,01/09/2010,IS/IT,CORPORATE IT,SPECIALIST COMPUTER CENTRES PLC,2016960922,"147,406.08"
Department for Work and Pensions,Employment Programmes,02/09/2010,YOUNG PERSONS GUARANTEE (YPG) AND FUTURE JOBS FUND (FJF),EG EMPLOYMENT PROGRAMMES,KENT COUNTY COUNCIL,2016965498,"147,150.00"
Department for Work and Pensions,Housing Benefits,14/09/2010,HB COOL DEL PROGRAMME,WWG HOUSING BENEFIT,TRAFFORD BOROUGH COUNCIL,2017082078,"146,887.00"
Department for Work and Pensions,Housing Benefits,14/09/2010,HB COOL DEL PROGRAMME,WWG HOUSING BENEFIT,TORBAY  COUNCIL,2017082075,"146,185.00"
Department for Work and Pensions,"Pension, Disability Carers Services",07/09/2010,ACCOMMODATION,PDCS CORE,TELEREAL TRILLIUM,2016987076,"145,689.92"
Department for Work and Pensions,Housing Benefits,14/09/2010,HB COOL DEL PROGRAMME,WWG HOUSING BENEFIT,SWINDON BOROUGH COUNCIL,2017082061,"145,515.00"
Department for Work and Pensions,Employment Programmes,13/09/2010,YOUNG PERSONS GUARANTEE (YPG) AND FUTURE JOBS FUND (FJF),EG EMPLOYMENT PROGRAMMES,LONDON EAST CONNEXIONS PARTNERSHIP LTD,2017078957,"144,585.95"
Department for Work and Pensions,Housing Benefits,14/09/2010,HB COOL DEL PROGRAMME,WWG HOUSING BENEFIT,SOUTH TYNESIDE METROPOLITAN BOROUGH COUNCIL,2017082040,"144,443.00"
Department for Work and Pensions,Housing Benefits,14/09/2010,HB COOL DEL PROGRAMME,WWG HOUSING BENEFIT,BOROUGH OF TELFORD  & WREKIN COUNCIL,2017081764,"143,989.00"
Department for Work and Pensions,Employment Programmes,07/09/2010,YOUNG PERSONS GUARANTEE (YPG) AND FUTURE JOBS FUND (FJF),EG EMPLOYMENT PROGRAMMES,STRIDE SHARP TRADING LEICESTER LTD,2016990264,"143,864.00"
Department for Work and Pensions,Employment Programmes,08/09/2010,FND,EG EMPLOYMENT PROGRAMMES,SKILLS TRAINING UK LIMITED,2017060412,"143,800.00"
Department for Work and Pensions,Housing Benefits,14/09/2010,HB COOL DEL PROGRAMME,WWG HOUSING BENEFIT,LONDON BOROUGH OF BEXLEY,2017081908,"143,580.00"
Department for Work and Pensions,Corporate,30/09/2010,EMPLOYMENT ZONES,GROUP FINANCE,SHEFFIELD CREDIT UNION,2017387894,"143,399.00"
Department for Work and Pensions,Employment Programmes,29/09/2010,NDDP,EG EMPLOYMENT PROGRAMMES,SENCIA LTD,2017373431,"143,032.89"
Department for Work and Pensions,Corporate,14/09/2010,PRINTING STATIONERY IT & CONSUMABLES,GROUP FINANCE,XEROX UK LIMITED 3W,2017091600,"142,792.02"
Department for Work and Pensions,Employment Programmes,24/09/2010,YOUNG PERSONS GUARANTEE (YPG) AND FUTURE JOBS FUND (FJF),EG EMPLOYMENT PROGRAMMES,NORTHAMPTONSHIRE ENTERPRISE LTD,2017285689,"142,200.00"
Department for Work and Pensions,Housing Benefits,14/09/2010,HB COOL DEL PROGRAMME,WWG HOUSING BENEFIT,LONDON BOROUGH OF HAVERING,2017081918,"141,829.00"
Department for Work and Pensions,Housing Benefits,14/09/2010,HB COOL DEL PROGRAMME,WWG HOUSING BENEFIT,BURY METROPOLITAN BOROUGH COUNCIL,2017081781,"141,220.00"
Department for Work and Pensions,Corporate,14/09/2010,APPS DEV,CORPORATE IT,HP ENTERPRISE SERVICES UK LTD,2017085801,"140,477.29"
Department for Work and Pensions,Jobcentre Plus,09/09/2010,EMPLOYMENT PROGRAMMES,HQ BALANCE SHEET ,SHAW TRUST LTD,2017074127,"140,447.98"
Department for Work and Pensions,"Pension, Disability Carers Services",13/09/2010,CONTRACTED OUT OFFICE SERVICES,PDCS CORE,CAPITA BUSINESS SERVICES LTD,2017074897,"140,032.60"
Department for Work and Pensions,Corporate,28/09/2010,,EG,WELSH ASSEMBLY GOVERNMENT,1004433,"139,723.61"
Department for Work and Pensions,Jobcentre Plus,03/09/2010,EMPLOYMENT PROGRAMMES,HQ BALANCE SHEET ,THE WISE GROUP,2016973418,"138,896.74"
Department for Work and Pensions,Housing Benefits,14/09/2010,HB COOL DEL PROGRAMME,WWG HOUSING BENEFIT,CAERPHILLY COUNTY BOROUGH COUNCIL,2017081782,"138,881.00"
Department for Work and Pensions,Corporate,14/09/2010,TEMPORARY (TEMP) STAFF COSTS,CORPORATE IT,CAPITA RESOURCING LIMITED,2017083790,"138,823.89"
Department for Work and Pensions,Employment Programmes,27/09/2010,YOUNG PERSONS GUARANTEE (YPG) AND FUTURE JOBS FUND (FJF),EG EMPLOYMENT PROGRAMMES,RCT HOMES,2017292616,"138,600.00"
Department for Work and Pensions,Housing Benefits,14/09/2010,HB COOL DEL PROGRAMME,WWG HOUSING BENEFIT,ABERDEEN CITY COUNCIL,2017081737,"138,401.00"
Department for Work and Pensions,Housing Benefits,14/09/2010,HB COOL DEL PROGRAMME,WWG HOUSING BENEFIT,LONDON BOROUGH OF SUTTON,2017081930,"137,857.00"
Department for Work and Pensions,Housing Benefits,14/09/2010,HB COOL DEL PROGRAMME,WWG HOUSING BENEFIT,NORTH AYRSHIRE COUNCIL,2017081958,"137,720.00"
Department for Work and Pensions,Jobcentre Plus,30/09/2010,EMPLOYMENT PROGRAMMES,HQ BALANCE SHEET ,THE WISE GROUP,2017388195,"136,245.90"
Department for Work and Pensions,Jobcentre Plus,30/09/2010,EMPLOYMENT PROGRAMMES,HQ BALANCE SHEET ,KENNEDY SCOTT LTD,2017385788,"135,704.52"
Department for Work and Pensions,Employment Programmes,23/09/2010,YOUNG PERSONS GUARANTEE (YPG) AND FUTURE JOBS FUND (FJF),EG EMPLOYMENT PROGRAMMES,LANCASHIRE COUNTY COUNCIL,2017278296,"135,450.00"
Department for Work and Pensions,Employment Programmes,29/09/2010,YOUNG PERSONS GUARANTEE (YPG) AND FUTURE JOBS FUND (FJF),EG EMPLOYMENT PROGRAMMES,FUTURE JOBS SOUTH LONDON BUSINESS,2017328878,"135,150.00"
Department for Work and Pensions,Corporate,07/09/2010,EMPLOYMENT ZONES,WWG,COI CENTRAL OFFICE OF INFORMATION,2016982683,"135,000.00"
Department for Work and Pensions,Jobcentre Plus,17/09/2010,EMPLOYMENT PROGRAMMES,HQ BALANCE SHEET ,WORKING LINKS,2017179173,"134,936.85"
Department for Work and Pensions,Corporate,14/09/2010,APPS DEV,CORPORATE IT,HP ENTERPRISE SERVICES UK LTD,2017085801,"134,098.42"
Department for Work and Pensions,Jobcentre Plus,23/09/2010,EMPLOYMENT PROGRAMMES,HQ BALANCE SHEET ,A4E LTD,2017275082,"133,627.60"
Department for Work and Pensions,Housing Benefits,14/09/2010,HB COOL DEL PROGRAMME,WWG HOUSING BENEFIT,REDCAR & CLEVELAND  BOROUGH COUNCIL,2017081992,"133,309.00"
Department for Work and Pensions,Jobcentre Plus,30/09/2010,EMPLOYMENT PROGRAMMES,HQ BALANCE SHEET ,WORKING LINKS,2017388392,"132,980.57"
Department for Work and Pensions,Jobcentre Plus,30/09/2010,PRIME BUSINESS RATES,CHIEF OPERATING OFFICER,TELEREAL TRILLIUM,2017388155,"132,930.12"
Department for Work and Pensions,Jobcentre Plus,09/09/2010,EMPLOYMENT PROGRAMMES,HQ BALANCE SHEET ,PERTEMPS EMPLOYMENT ALLIANCE,2017074103,"132,545.09"
Department for Work and Pensions,Corporate,30/09/2010,PRIME BUSINESS RATES,SHARED SERVICES ,TELEREAL TRILLIUM,2017388155,"132,386.47"
Department for Work and Pensions,Employment Programmes,14/09/2010,YOUNG PERSONS GUARANTEE (YPG) AND FUTURE JOBS FUND (FJF),EG EMPLOYMENT PROGRAMMES,LANCASHIRE COUNTY COUNCIL,2017087712,"131,700.00"
Department for Work and Pensions,Jobcentre Plus,30/09/2010,EMPLOYMENT PROGRAMMES,HQ BALANCE SHEET ,YMCA TRAINING LTD,2017388420,"131,680.68"
Department for Work and Pensions,Housing Benefits,14/09/2010,HB COOL DEL PROGRAMME,WWG HOUSING BENEFIT,NORWICH CITY COUNCIL,2017081974,"131,294.00"
Department for Work and Pensions,Employment Programmes,17/09/2010,JSP ESF DEL P COSTS,EG EMPLOYMENT PROGRAMMES,THE INTRAINING GROUP,2017179029,"130,921.05"
Department for Work and Pensions,Jobcentre Plus,30/09/2010,EMPLOYMENT PROGRAMMES,HQ BALANCE SHEET ,PROSPECTS SERVICES LTD 2,2017387122,"130,782.27"
Department for Work and Pensions,Housing Benefits,14/09/2010,HB COOL DEL PROGRAMME,WWG HOUSING BENEFIT,LONDON BOROUGH OF MERTON,2017081925,"130,534.00"
Department for Work and Pensions,Housing Benefits,14/09/2010,HB COOL DEL PROGRAMME,WWG HOUSING BENEFIT,TENDRING DISTRICT COUNCIL,2017082067,"130,075.00"
Department for Work and Pensions,Employment Programmes,07/09/2010,YOUNG PERSONS GUARANTEE (YPG) AND FUTURE JOBS FUND (FJF),EG EMPLOYMENT PROGRAMMES,CITY & COUNTY OF SWANSEA,2016982648,"130,000.00"
Department for Work and Pensions,Employment Programmes,08/09/2010,EP GENERIC PROVIDER PAYMENTS,EG EMPLOYMENT PROGRAMMES,WORKING LINKS,2017065727,"129,710.00"
Department for Work and Pensions,Corporate,20/09/2010,PUBLICITY,Corporate and Support Services,COI CENTRAL OFFICE OF INFORMATION,2017183031,"129,396.38"
Department for Work and Pensions,Housing Benefits,14/09/2010,HB COOL DEL PROGRAMME,WWG HOUSING BENEFIT,WEST LOTHIAN COUNCIL,2017082098,"129,196.00"
Department for Work and Pensions,Jobcentre Plus,30/09/2010,EMPLOYMENT PROGRAMMES,HQ BALANCE SHEET ,SEETEC,2017387876,"129,003.53"
Department for Work and Pensions,Jobcentre Plus,03/09/2010,EMPLOYMENT PROGRAMMES,HQ BALANCE SHEET ,TNG NETWORK LTD,2016973436,"128,231.21"
Department for Work and Pensions,Housing Benefits,14/09/2010,HB COOL DEL PROGRAMME,WWG HOUSING BENEFIT,CENTRAL BEDFORDSHIRE DISTRICT COUNCIL,2017081790,"128,079.00"
Department for Work and Pensions,Jobcentre Plus,23/09/2010,EMPLOYMENT PROGRAMMES,HQ BALANCE SHEET ,WORKING LINKS EMPLOYMENT LIMITED,2017279967,"127,941.42"
Department for Work and Pensions,Corporate,27/09/2010,COMPUTER SERVICES,CORPORATE IT,ACCENTURE UK LTD,2017288328,"127,446.57"
Department for Work and Pensions,Housing Benefits,14/09/2010,HB COOL DEL PROGRAMME,WWG HOUSING BENEFIT,BLACKBURN BOROUGH COUNCIL,2017081758,"127,143.00"
Department for Work and Pensions,Employment Programmes,17/09/2010,JSP ESF DEL P COSTS,EG EMPLOYMENT PROGRAMMES,SEETEC BUSINESS TECHNOLOGY CENTRE LTD,2017178840,"127,052.92"
Department for Work and Pensions,Jobcentre Plus,23/09/2010,EMPLOYMENT PROGRAMMES,HQ BALANCE SHEET ,SHAW TRUST LTD,2017279609,"126,633.50"
Department for Work and Pensions,Corporate,08/09/2010,STAFF COSTS,Corporate and Support Services,RIGHT CORECARE,2017051984,"125,583.33"
Department for Work and Pensions,Employment Programmes,17/09/2010,RESIDENTIAL TRAINING,EG EMPLOYMENT PROGRAMMES,RNCB HEREFORD,2017178527,"125,230.00"
Department for Work and Pensions,Housing Benefits,14/09/2010,HB COOL DEL PROGRAMME,WWG HOUSING BENEFIT,CARMARTHENSHIRE COUNTY COUNCIL,2017081788,"124,993.00"
Department for Work and Pensions,Housing Benefits,14/09/2010,HB COOL DEL PROGRAMME,WWG HOUSING BENEFIT,SOLIHULL METROPOLITAN BOROUGH COUNCIL,2017082023,"124,893.00"
Department for Work and Pensions,Corporate,21/09/2010,EMPLOYMENT ZONES,GROUP FINANCE,RIVERSIDE CREDIT UNION,2017197193,"124,608.00"
Department for Work and Pensions,Housing Benefits,14/09/2010,HB COOL DEL PROGRAMME,WWG HOUSING BENEFIT,NORTH LINCOLNSHIRE COUNCIL,2017081966,"124,405.00"
Department for Work and Pensions,Jobcentre Plus,17/09/2010,EMPLOYMENT PROGRAMMES,HQ BALANCE SHEET ,TWL TRAINING LTD,2017179072,"123,670.40"
Department for Work and Pensions,Employment Programmes,06/09/2010,YOUNG PERSONS GUARANTEE (YPG) AND FUTURE JOBS FUND (FJF),EG EMPLOYMENT PROGRAMMES,CITY OF EDINBURGH COUNCIL,2016975823,"123,500.00"
Department for Work and Pensions,Housing Benefits,14/09/2010,HB COOL DEL PROGRAMME,WWG HOUSING BENEFIT,DUMFRIES & GALLOWAY COUNCIL,2017081831,"123,430.00"
Department for Work and Pensions,Housing Benefits,14/09/2010,HB COOL DEL PROGRAMME,WWG HOUSING BENEFIT,ISLE OF WIGHT COUNTY COUNCIL,2017081893,"123,038.00"
Department for Work and Pensions,Corporate,13/09/2010,COMPUTER SERVICES,CORPORATE IT,ORANGE PCS LTD,2017079481,"122,531.23"
Department for Work and Pensions,Jobcentre Plus,09/09/2010,EMPLOYMENT PROGRAMMES,HQ BALANCE SHEET ,A4E LTD,2017074017,"121,734.92"
Department for Work and Pensions,Corporate,24/09/2010,COMPUTER SERVICES,CORPORATE IT,ACCENTURE,2017282075,"121,636.19"
Department for Work and Pensions,Corporate,14/09/2010,MANAGEMENT CONSULTANCY,GROUP FINANCE,PRICEWATERHOUSE COOPERS LLP,2017089448,"121,205.11"
Department for Work and Pensions,Employment Programmes,08/09/2010,FND,EG EMPLOYMENT PROGRAMMES,SERCO LTD,2017060189,"121,068.00"
Department for Work and Pensions,Employment Programmes,07/09/2010,YOUNG PERSONS GUARANTEE (YPG) AND FUTURE JOBS FUND (FJF),EG EMPLOYMENT PROGRAMMES,WEST LOTHIAN COUNCIL,2016990834,"120,900.00"
Department for Work and Pensions,Corporate,13/09/2010,APPS DEV,GROUP FINANCE,HP ENTERPRISE SERVICES UK LTD,2017078127,"120,692.42"
Department for Work and Pensions,Corporate,21/09/2010,INTERNATIONAL PROGRAMMES,WWG ,BRITISH COUNCIL,2017189280,"120,591.00"
Department for Work and Pensions,Housing Benefits,14/09/2010,HB COOL DEL PROGRAMME,WWG HOUSING BENEFIT,NEATH PORT TALBOT COUNTY BOROUGH COUNCIL,2017081952,"120,509.00"
Department for Work and Pensions,Housing Benefits,14/09/2010,HB COOL DEL PROGRAMME,WWG HOUSING BENEFIT,SLOUGH BOROUGH COUNCIL,2017082022,"120,272.00"
Department for Work and Pensions,Corporate,21/09/2010,COMPUTER SERVICES,CORPORATE IT,HP ENTERPRISE SERVICES UK LTD,2017192783,"120,163.37"
Department for Work and Pensions,Housing Benefits,14/09/2010,HB COOL DEL PROGRAMME,WWG HOUSING BENEFIT,READING BOROUGH COUNCIL,2017081991,"119,744.00"
Department for Work and Pensions,Jobcentre Plus,03/09/2010,EMPLOYMENT PROGRAMMES,HQ BALANCE SHEET ,ASL RECRUITMENT LTD,2016969083,"119,700.00"
Department for Work and Pensions,Corporate,01/09/2010,COMPUTER SERVICES,WWG,CAPGEMINI UK PLC,2016958344,"119,507.32"
Department for Work and Pensions,Jobcentre Plus,30/09/2010,EMPLOYMENT PROGRAMMES,HQ BALANCE SHEET ,CLAVERHOUSE GROUP,2017382890,"119,393.24"
Department for Work and Pensions,Corporate,14/09/2010,NETWORK,CORPORATE IT,BT SYNTEGRA,2017083243,"118,680.88"
Department for Work and Pensions,Jobcentre Plus,23/09/2010,EMPLOYMENT PROGRAMMES,HQ BALANCE SHEET ,ROYAL BRITISH LEGION INDUSTRIES LTD,2017279266,"118,323.62"
Department for Work and Pensions,Employment Programmes,29/09/2010,YOUNG PERSONS GUARANTEE (YPG) AND FUTURE JOBS FUND (FJF),EG EMPLOYMENT PROGRAMMES,LANCASHIRE COUNTY COUNCIL,2017350777,"117,900.00"
Department for Work and Pensions,Jobcentre Plus,30/09/2010,EMPLOYMENT PROGRAMMES,HQ BALANCE SHEET ,TOMORROWS PEOPLE LTD,2017388217,"117,785.79"
Department for Work and Pensions,Housing Benefits,14/09/2010,HB COOL DEL PROGRAMME,WWG HOUSING BENEFIT,BEDFORD BOROUGH COUNCIL,2017081755,"117,297.00"
Department for Work and Pensions,Housing Benefits,14/09/2010,HB COOL DEL PROGRAMME,WWG HOUSING BENEFIT,FALKIRK DISTRICT COUNCIL,2017081856,"117,213.00"
Department for Work and Pensions,Housing Benefits,14/09/2010,HB COOL DEL PROGRAMME,WWG HOUSING BENEFIT,NEWPORT CITY COUNCIL,2017081957,"117,056.00"
Department for Work and Pensions,Employment Programmes,07/09/2010,YOUNG PERSONS GUARANTEE (YPG) AND FUTURE JOBS FUND (FJF),EG EMPLOYMENT PROGRAMMES,ENABLE,2016984647,"117,000.00"
Department for Work and Pensions,Jobcentre Plus,23/09/2010,EMPLOYMENT PROGRAMMES,HQ BALANCE SHEET ,THE INTRAINING GROUP,2017279798,"115,805.33"
Department for Work and Pensions,Housing Benefits,14/09/2010,HB COOL DEL PROGRAMME,WWG HOUSING BENEFIT,HALTON BOROUGH COUNCIL,2017081873,"115,761.00"
Department for Work and Pensions,Employment Programmes,14/09/2010,YOUNG PERSONS GUARANTEE (YPG) AND FUTURE JOBS FUND (FJF),EG EMPLOYMENT PROGRAMMES,MIDDLESBROUGH COUNCIL,2017088535,"115,350.00"
Department for Work and Pensions,Employment Programmes,01/09/2010,YOUNG PERSONS GUARANTEE (YPG) AND FUTURE JOBS FUND (FJF),EG EMPLOYMENT PROGRAMMES,THE ROYAL SOCIETY OF WILDLIFE TRUSTS,2016961008,"114,900.00"
Department for Work and Pensions,Jobcentre Plus,30/09/2010,EMPLOYMENT PROGRAMMES,HQ BALANCE SHEET ,TNG NETWORK LTD,2017388214,"114,776.42"
Department for Work and Pensions,Employment Programmes,13/09/2010,YOUNG PERSONS GUARANTEE (YPG) AND FUTURE JOBS FUND (FJF),EG EMPLOYMENT PROGRAMMES,LONDON BOROUGH OF LAMBETH LEMBETH FIRST,2017078955,"114,544.16"
Department for Work and Pensions,Housing Benefits,14/09/2010,HB COOL DEL PROGRAMME,WWG HOUSING BENEFIT,ABERDEENSHIRE COUNCIL,2017081738,"114,236.00"
Department for Work and Pensions,Corporate,13/09/2010,EMPLOYMENT ZONES,GROUP FINANCE,RIVERSIDE HOUSING,2017079899,"113,929.00"
Department for Work and Pensions,Jobcentre Plus,30/09/2010,EMPLOYMENT PROGRAMMES,HQ BALANCE SHEET ,TRIAGE CENTRAL LTD,2017388234,"113,897.84"
Department for Work and Pensions,Jobcentre Plus,03/09/2010,EMPLOYMENT PROGRAMMES,HQ BALANCE SHEET ,SEETEC,2016973200,"113,700.13"
Department for Work and Pensions,Jobcentre Plus,09/09/2010,EMPLOYMENT PROGRAMMES,HQ BALANCE SHEET ,REMPLOY,2017074116,"113,601.55"
Department for Work and Pensions,Housing Benefits,14/09/2010,HB COOL DEL PROGRAMME,WWG HOUSING BENEFIT,HASTINGS BOROUGH COUNCIL,2017081880,"113,573.00"
Department for Work and Pensions,Employment Programmes,08/09/2010,YOUNG PERSONS GUARANTEE (YPG) AND FUTURE JOBS FUND (FJF),EG EMPLOYMENT PROGRAMMES,CORNWALL COUNCIL,2017005042,"113,550.00"
Department for Work and Pensions,Employment Programmes,06/09/2010,YOUNG PERSONS GUARANTEE (YPG) AND FUTURE JOBS FUND (FJF),EG EMPLOYMENT PROGRAMMES,INSPIRE FUTURES LTD,2016977852,"113,520.00"
Department for Work and Pensions,Employment Programmes,08/09/2010,YOUNG PERSONS GUARANTEE (YPG) AND FUTURE JOBS FUND (FJF),EG EMPLOYMENT PROGRAMMES,DUDLEY METROPOLITAN BOROUGH COUNCIL,2017012156,"113,400.00"
Department for Work and Pensions,Employment Programmes,14/09/2010,YOUNG PERSONS GUARANTEE (YPG) AND FUTURE JOBS FUND (FJF),EG EMPLOYMENT PROGRAMMES,WORCESTERSHIRE COUNTY COUNCIL,2017091590,"113,362.60"
Department for Work and Pensions,Housing Benefits,14/09/2010,HB COOL DEL PROGRAMME,WWG HOUSING BENEFIT,WARRINGTON BOROUGH COUNCIL,2017082085,"113,346.00"
Department for Work and Pensions,Corporate,28/09/2010,CONTRACTED OUT OFFICE SERVICES,SHARED SERVICES ,HMRC,2017298893,"113,329.86"
Department for Work and Pensions,Jobcentre Plus,03/09/2010,EMPLOYMENT PROGRAMMES,HQ BALANCE SHEET ,CROSBY TRAINING,2016969483,"113,283.41"
Department for Work and Pensions,Jobcentre Plus,02/09/2010,ACCOMMODATION,CHIEF OPERATING OFFICER,TELEREAL TRILLIUM,2016965730,"112,958.30"
Department for Work and Pensions,Housing Benefits,14/09/2010,HB COOL DEL PROGRAMME,WWG HOUSING BENEFIT,THURROCK BOROUGH COUNCIL,2017082073,"112,753.00"
Department for Work and Pensions,Jobcentre Plus,22/09/2010,ACCOMMODATION,CHIEF OPERATING OFFICER,TELEREAL TRILLIUM,2017269756,"112,642.76"
Department for Work and Pensions,Employment Programmes,15/09/2010,YOUNG PERSONS GUARANTEE (YPG) AND FUTURE JOBS FUND (FJF),EG EMPLOYMENT PROGRAMMES,SHAW TRUST LTD,2017158498,"112,230.00"
Department for Work and Pensions,Housing Benefits,14/09/2010,HB COOL DEL PROGRAMME,WWG HOUSING BENEFIT,GLOUCESTER CITY COUNCIL,2017081866,"111,995.00"
Department for Work and Pensions,Corporate,14/09/2010,COMPUTER SERVICES,CORPORATE IT,BT SYNTEGRA,2017083243,"111,887.03"
Department for Work and Pensions,Jobcentre Plus,30/09/2010,EMPLOYMENT PROGRAMMES,HQ BALANCE SHEET ,BIRMINGHAM CHAMBER TRAINING,2017382480,"111,755.97"
Department for Work and Pensions,Employment Programmes,30/09/2010,FND,EG EMPLOYMENT PROGRAMMES,SERCO LTD,2017387882,"111,510.00"
Department for Work and Pensions,Housing Benefits,14/09/2010,HB COOL DEL PROGRAMME,WWG HOUSING BENEFIT,EAST AYRSHIRE COUNCIL FINANCE DEPARTMENT,2017081834,"111,448.00"
Department for Work and Pensions,Jobcentre Plus,03/09/2010,EMPLOYMENT PROGRAMMES,HQ BALANCE SHEET ,PROSPECTS SERVICES LTD 2,2016972697,"111,227.97"
Department for Work and Pensions,Housing Benefits,14/09/2010,HB COOL DEL PROGRAMME,WWG HOUSING BENEFIT,HARTLEPOOL BOROUGH COUNCIL,2017081879,"111,096.00"
Department for Work and Pensions,Employment Programmes,07/09/2010,YOUNG PERSONS GUARANTEE (YPG) AND FUTURE JOBS FUND (FJF),EG EMPLOYMENT PROGRAMMES,COLCHESTER BOROUGH COUNCIL,2016982684,"111,003.20"
Department for Work and Pensions,Employment Programmes,21/09/2010,YOUNG PERSONS GUARANTEE (YPG) AND FUTURE JOBS FUND (FJF),EG EMPLOYMENT PROGRAMMES,LONDON BOROUGH OF GREENWICH,2017194889,"110,700.00"
Department for Work and Pensions,Corporate,03/09/2010,PROFESSIONAL FEES,Corporate and Support Services,ORC INTERNATIONAL LIMITED,2016972489,"110,416.67"
Department for Work and Pensions,Corporate,24/09/2010,PROFESSIONAL FEES,Corporate and Support Services,ORC INTERNATIONAL LIMITED,2017285718,"110,416.67"
Department for Work and Pensions,Housing Benefits,14/09/2010,HB COOL DEL PROGRAMME,WWG HOUSING BENEFIT,HEREFORDSHIRE COUNCIL,2017081882,"110,319.00"
Department for Work and Pensions,Housing Benefits,14/09/2010,HB COOL DEL PROGRAMME,WWG HOUSING BENEFIT,EAST LINDSEY DISTRICT COUNCIL,2017081841,"110,221.00"
Department for Work and Pensions,Employment Programmes,03/09/2010,YOUNG PERSONS GUARANTEE (YPG) AND FUTURE JOBS FUND (FJF),EG EMPLOYMENT PROGRAMMES,WALSALL METROPOLITAN BOROUGH COUNCIL,2016973539,"110,100.00"
Department for Work and Pensions,Jobcentre Plus,09/09/2010,EMPLOYMENT PROGRAMMES,HQ BALANCE SHEET ,TRIAGE CENTRAL LTD,2017074150,"109,919.31"
Department for Work and Pensions,Employment Programmes,20/09/2010,YOUNG PERSONS GUARANTEE (YPG) AND FUTURE JOBS FUND (FJF),EG EMPLOYMENT PROGRAMMES,PETERBOROUGH CITY COUNCIL,2017186116,"109,500.00"
Department for Work and Pensions,Employment Programmes,17/09/2010,JSP ESF DEL P COSTS,EG EMPLOYMENT PROGRAMMES,WORKING LINKS,2017179175,"109,340.00"
Department for Work and Pensions,Housing Benefits,14/09/2010,HB COOL DEL PROGRAMME,WWG HOUSING BENEFIT,CITY OF YORK COUNCIL,2017081806,"109,314.00"
Department for Work and Pensions,Jobcentre Plus,03/09/2010,EMPLOYMENT PROGRAMMES,HQ BALANCE SHEET ,TNG LTD,2016973431,"109,269.75"
Department for Work and Pensions,Employment Programmes,06/09/2010,YOUNG PERSONS GUARANTEE (YPG) AND FUTURE JOBS FUND (FJF),EG EMPLOYMENT PROGRAMMES,HCT GROUP FUTURE JOBS FUND,2016977797,"109,200.00"
Department for Work and Pensions,Housing Benefits,14/09/2010,HB COOL DEL PROGRAMME,WWG HOUSING BENEFIT,BRAINTREE DISTRICT COUNCIL,2017081770,"109,167.00"
Department for Work and Pensions,Corporate,30/09/2010,EMPLOYMENT ZONES,GROUP FINANCE,ENTERPRISE CREDIT UNION,2017384547,"109,118.00"
Department for Work and Pensions,Housing Benefits,14/09/2010,HB COOL DEL PROGRAMME,WWG HOUSING BENEFIT,BRIDGEND COUNTY BOROUGH COUNCIL,2017081773,"109,114.00"
Department for Work and Pensions,Corporate,30/09/2010,PRIME CHARGES,GROUP FINANCE,TELEREAL TRILLIUM,2017388154,"108,959.98"
Department for Work and Pensions,"Pension, Disability Carers Services",15/09/2010,CONTRACTED OUT OFFICE SERVICES,PDCS CORE,XEROX UK LIMITED,2017163865,"108,763.57"
Department for Work and Pensions,Jobcentre Plus,30/09/2010,EMPLOYMENT PROGRAMMES,HQ BALANCE SHEET ,RENOVO EMPLOYMENT GROUP LTD,2017387377,"108,450.00"
Department for Work and Pensions,Employment Programmes,17/09/2010,JSP ESF DEL P COSTS,EG EMPLOYMENT PROGRAMMES,ESG HOLDINGS LTD,2017176724,"108,435.16"
Department for Work and Pensions,Corporate,30/09/2010,PRIME BUSINESS RATES,GROUP FINANCE,TELEREAL TRILLIUM,2017388155,"108,347.35"
Department for Work and Pensions,Corporate,08/09/2010,COMPUTER SERVICES,SHARED SERVICES ,FUJITSU SERVICES LTD,2017015399,"108,309.77"
Department for Work and Pensions,Housing Benefits,14/09/2010,HB COOL DEL PROGRAMME,WWG HOUSING BENEFIT,WEST DUNBARTONSHIRE COUNCIL,2017082095,"108,268.00"
Department for Work and Pensions,Jobcentre Plus,30/09/2010,EMPLOYMENT PROGRAMMES,HQ BALANCE SHEET ,SCVO,2017387865,"108,118.91"
Department for Work and Pensions,Employment Programmes,17/09/2010,RESIDENTIAL TRAINING,EG EMPLOYMENT PROGRAMMES,DONCASTER DEAF TRUST,2017175514,"107,560.97"
Department for Work and Pensions,Housing Benefits,14/09/2010,HB COOL DEL PROGRAMME,WWG HOUSING BENEFIT,LONDON BOROUGH OF RICHMOND UPON THAMES,2017081928,"107,300.00"
Department for Work and Pensions,Jobcentre Plus,17/09/2010,EMPLOYMENT PROGRAMMES,HQ BALANCE SHEET ,ASL RECRUITMENT LTD,2017174842,"107,100.00"
Department for Work and Pensions,Employment Programmes,07/09/2010,YOUNG PERSONS GUARANTEE (YPG) AND FUTURE JOBS FUND (FJF),EG EMPLOYMENT PROGRAMMES,SCOUT ENTERPRISES WESTERN LTD,2016990156,"106,600.00"
Department for Work and Pensions,Employment Programmes,14/09/2010,YOUNG PERSONS GUARANTEE (YPG) AND FUTURE JOBS FUND (FJF),EG EMPLOYMENT PROGRAMMES,COMMUNITY ENTERPRISE DERBY CIC,2017083869,"106,200.00"
Department for Work and Pensions,Corporate,16/09/2010,INTERNATIONAL PROGRAMMES,WWG ,BRITISH COUNCIL,2017168863,"106,064.52"
Department for Work and Pensions,Corporate,30/09/2010,PRIME CHARGES,GROUP FINANCE,TELEREAL TRILLIUM,2017388154,"105,909.95"
Department for Work and Pensions,Employment Programmes,22/09/2010,WORKSTEP,EG EMPLOYMENT PROGRAMMES,MERTHYR TYDFIL INSTITUTE FOR THE BLIND,2017273273,"105,576.15"
Department for Work and Pensions,Jobcentre Plus,09/09/2010,EMPLOYMENT PROGRAMMES,HQ BALANCE SHEET ,THE INTRAINING GROUP,2017074138,"105,316.56"
Department for Work and Pensions,Employment Programmes,01/09/2010,YOUNG PERSONS GUARANTEE (YPG) AND FUTURE JOBS FUND (FJF),EG EMPLOYMENT PROGRAMMES,WALSALL METROPOLITAN BOROUGH COUNCIL,2016961074,"105,300.00"
Department for Work and Pensions,Employment Programmes,21/09/2010,YOUNG PERSONS GUARANTEE (YPG) AND FUTURE JOBS FUND (FJF),EG EMPLOYMENT PROGRAMMES,LONDON BOROUGH OF BARKING & DAGENHAM MEMORANDUM ACCOUNT CAMDEN COUNCIL,2017194887,"105,300.00"
Department for Work and Pensions,Corporate,23/09/2010,TEMPORARY (TEMP) STAFF COSTS,CORPORATE IT,CAPITA RESOURCING LIMITED,2017275498,"104,827.38"
Department for Work and Pensions,Housing Benefits,14/09/2010,HB COOL DEL PROGRAMME,WWG HOUSING BENEFIT,SCARBOROUGH BOROUGH COUNCIL,2017082012,"104,362.00"
Department for Work and Pensions,Corporate,14/09/2010,NON PRIME CHARGES,GROUP FINANCE,VALUATION OFFICE AGENCY,2002144,"103,954.31"
Department for Work and Pensions,Housing Benefits,14/09/2010,HB COOL DEL PROGRAMME,WWG HOUSING BENEFIT,IPSWICH BOROUGH COUNCIL,2017081891,"103,741.00"
Department for Work and Pensions,Employment Programmes,08/09/2010,YOUNG PERSONS GUARANTEE (YPG) AND FUTURE JOBS FUND (FJF),EG EMPLOYMENT PROGRAMMES,CALDERDALE METROPOLITAN BOROUGH COUNCIL,2017004691,"103,350.00"
Department for Work and Pensions,Employment Programmes,22/09/2010,YOUNG PERSONS GUARANTEE (YPG) AND FUTURE JOBS FUND (FJF),EG EMPLOYMENT PROGRAMMES,SUSTRANS LTD,2017266896,"103,350.00"
Department for Work and Pensions,Housing Benefits,14/09/2010,HB COOL DEL PROGRAMME,WWG HOUSING BENEFIT,PRESTON BOROUGH COUNCIL,2017081989,"103,075.00"
Department for Work and Pensions,Corporate,30/09/2010,PRIME CHARGES,GROUP FINANCE,TELEREAL TRILLIUM,2017388154,"102,940.11"
Department for Work and Pensions,Jobcentre Plus,03/09/2010,EMPLOYMENT PROGRAMMES,HQ BALANCE SHEET ,TNG BUSINESS SUPPORT,2016973427,"102,870.32"
Department for Work and Pensions,Housing Benefits,14/09/2010,HB COOL DEL PROGRAMME,WWG HOUSING BENEFIT,BATH & NORTH EAST SOMERSET COUNCIL,2017081754,"102,809.00"
Department for Work and Pensions,Employment Programmes,28/09/2010,YOUNG PERSONS GUARANTEE (YPG) AND FUTURE JOBS FUND (FJF),EG EMPLOYMENT PROGRAMMES,RENAISI LTD,2017303462,"102,600.00"
Department for Work and Pensions,Housing Benefits,14/09/2010,HB COOL DEL PROGRAMME,WWG HOUSING BENEFIT,ARUN DISTRICT COUNCIL,2017081744,"102,168.00"
Department for Work and Pensions,Employment Programmes,29/09/2010,YOUNG PERSONS GUARANTEE (YPG) AND FUTURE JOBS FUND (FJF),EG EMPLOYMENT PROGRAMMES,WESTMINSTER CITY COUNCIL,2017378771,"102,150.00"
Department for Work and Pensions,Employment Programmes,03/09/2010,EP GENERIC PROVIDER PAYMENTS,EG EMPLOYMENT PROGRAMMES,NORD ANGLIA EDUCATION PARTNERSHIPS LTD,2016972455,"102,041.00"
Department for Work and Pensions,Corporate,23/09/2010,CAPITAL GRANTS,GROUP FINANCE,CITY SAVE CREDIT UNION LTD,2017275524,"101,898.00"
Department for Work and Pensions,Jobcentre Plus,30/09/2010,EMPLOYMENT PROGRAMMES,HQ BALANCE SHEET ,BOURNEMOUTH & POOLE COLLEGE,2017382500,"101,765.21"
Department for Work and Pensions,Housing Benefits,14/09/2010,HB COOL DEL PROGRAMME,WWG HOUSING BENEFIT,SWALE BOROUGH COUNCIL,2017082059,"101,716.00"
Department for Work and Pensions,Corporate,30/09/2010,BANK COMMISSIONS,GROUP FINANCE,HSBC BANK PLC,2017384964,"101,680.41"
Department for Work and Pensions,Employment Programmes,15/09/2010,RESIDENTIAL TRAINING,EG EMPLOYMENT PROGRAMMES,QUEEN ALEXANDRA COLLEGE,2017147396,"101,676.66"
Department for Work and Pensions,Housing Benefits,14/09/2010,HB COOL DEL PROGRAMME,WWG HOUSING BENEFIT,KINGS LYNN & WEST NORFOLK BOROUGH COUNCIL,2017081895,"101,560.00"
Department for Work and Pensions,Corporate,22/09/2010,TOTAL SUPPLIES & SERVICES,GROUP FINANCE,H M REVENUE & CUSTOMS,2002160,"101,436.19"
Department for Work and Pensions,Corporate,01/09/2010,NI & OGDs,PENSIONS CLIENT DIRECTORATE,HMRC,2002112,"101,325.71"
Department for Work and Pensions,Employment Programmes,27/09/2010,NDLP,EG EMPLOYMENT PROGRAMMES,WORKING LINKS,2017293288,"101,219.46"
Department for Work and Pensions,Jobcentre Plus,09/09/2010,EMPLOYMENT PROGRAMMES,HQ BALANCE SHEET ,TWL TRAINING LTD,2017074151,"100,424.22"
Department for Work and Pensions,Corporate,14/09/2010,COMPUTER SERVICES,Corporate and Support Services,HP ENTERPRISE SERVICES UK LTD,2017085801,"100,301.10"
Department for Work and Pensions,Housing Benefits,14/09/2010,HB COOL DEL PROGRAMME,WWG HOUSING BENEFIT,COLCHESTER BOROUGH COUNCIL,2017081808,"100,055.00"
Department for Work and Pensions,Corporate,21/09/2010,JCP ESF STAFF COSTS,WWG ,LONDON DEVELOPMENT AGENCY,1004425,"100,000.00"
Department for Work and Pensions,Corporate,30/09/2010,CAPITAL GRANTS,GROUP FINANCE,DERWENT & SOLWAY HOUSING ASSOCIATION,2017383255,"100,000.00"
Department for Work and Pensions,Employment Programmes,13/09/2010,YOUNG PERSONS GUARANTEE (YPG) AND FUTURE JOBS FUND (FJF),EG EMPLOYMENT PROGRAMMES,SCOTTISH GOVERNMENT,2002142,"100,000.00"
Department for Work and Pensions,Jobcentre Plus,03/09/2010,EMPLOYMENT PROGRAMMES,HQ BALANCE SHEET ,BOURNEMOUTH & POOLE COLLEGE,2016969182,"99,917.26"
Department for Work and Pensions,Jobcentre Plus,03/09/2010,EMPLOYMENT PROGRAMMES,HQ BALANCE SHEET ,KENNEDY SCOTT LTD,2016971854,"99,703.50"
Department for Work and Pensions,Employment Programmes,17/09/2010,JSP ESF DEL P COSTS,EG EMPLOYMENT PROGRAMMES,SEETEC BUSINESS TECHNOLOGY CENTRE LTD,2017178840,"99,572.84"
Department for Work and Pensions,Jobcentre Plus,03/09/2010,EMPLOYMENT PROGRAMMES,HQ BALANCE SHEET ,REMPLOY,2016972848,"99,383.53"
Department for Work and Pensions,Jobcentre Plus,30/09/2010,EMPLOYMENT PROGRAMMES,HQ BALANCE SHEET ,REMPLOY,2017387372,"99,383.53"
Department for Work and Pensions,Jobcentre Plus,03/09/2010,EMPLOYMENT PROGRAMMES,HQ BALANCE SHEET ,TRIAGE CENTRAL LTD,2016973450,"99,018.58"
Department for Work and Pensions,Employment Programmes,02/09/2010,YOUNG PERSONS GUARANTEE (YPG) AND FUTURE JOBS FUND (FJF),EG EMPLOYMENT PROGRAMMES,EAST AYRSHIRE COUNCIL,2016964492,"98,977.56"
Department for Work and Pensions,Jobcentre Plus,30/09/2010,EMPLOYMENT PROGRAMMES,HQ BALANCE SHEET ,SEETEC,2017387873,"98,946.37"
Department for Work and Pensions,Employment Programmes,16/09/2010,YOUNG PERSONS GUARANTEE (YPG) AND FUTURE JOBS FUND (FJF),EG EMPLOYMENT PROGRAMMES,SUFFOLK COUNTY COUNCIL,2017174088,"98,713.02"
Department for Work and Pensions,Employment Programmes,21/09/2010,WORKSTEP,EG EMPLOYMENT PROGRAMMES,THE PAPWORTH TRUST,2017198593,"98,466.10"
Department for Work and Pensions,"Pension, Disability Carers Services",15/09/2010,MEDICAL SERVICES,PDCS CORE,ATOS ORIGIN IT SERVICES UK LTD,2017097902,"97,323.19"
Department for Work and Pensions,Corporate,14/09/2010,APPS DEV,CHANGE MANAGEMENT DIRECTORATE,HP ENTERPRISE SERVICES UK LTD,2017085801,"97,247.03"
Department for Work and Pensions,Jobcentre Plus,29/09/2010,COMPUTER SERVICES,TPM PROGRAMMES,ACCENTURE UK LTD,2017312343,"97,098.52"
Department for Work and Pensions,Housing Benefits,14/09/2010,HB COOL DEL PROGRAMME,WWG HOUSING BENEFIT,WAVENEY DISTRICT COUNCIL,2017082088,"97,072.00"
Department for Work and Pensions,Employment Programmes,22/09/2010,YOUNG PERSONS GUARANTEE (YPG) AND FUTURE JOBS FUND (FJF),EG EMPLOYMENT PROGRAMMES,GLASGOW CITY COUNCIL,2017224114,"97,050.00"
Department for Work and Pensions,Housing Benefits,14/09/2010,HB COOL DEL PROGRAMME,WWG HOUSING BENEFIT,INVERCLYDE DISTRICT COUNCIL,2017081890,"96,959.00"
Department for Work and Pensions,Housing Benefits,14/09/2010,HB COOL DEL PROGRAMME,WWG HOUSING BENEFIT,ROYAL BOROUGH OF KINGSTON UPON THAMES,2017082003,"96,273.00"
Department for Work and Pensions,Employment Programmes,27/09/2010,NDDP,EG EMPLOYMENT PROGRAMMES,SHAW TRUST LTD,2017292991,"96,077.43"
Department for Work and Pensions,Employment Programmes,14/09/2010,YOUNG PERSONS GUARANTEE (YPG) AND FUTURE JOBS FUND (FJF),EG EMPLOYMENT PROGRAMMES,LONDON BOROUGH OF ISLINGTON,2017087768,"96,000.00"
Department for Work and Pensions,Jobcentre Plus,17/09/2010,EMPLOYMENT PROGRAMMES,HQ BALANCE SHEET ,WORKING LINKS EMPLOYMENT LIMITED,2017179177,"95,983.57"
Department for Work and Pensions,Housing Benefits,14/09/2010,HB COOL DEL PROGRAMME,WWG HOUSING BENEFIT,SOUTH SOMERSET DISTRICT COUNCIL,2017082038,"95,932.00"
Department for Work and Pensions,Jobcentre Plus,23/09/2010,EMPLOYMENT PROGRAMMES,HQ BALANCE SHEET ,SEETEC,2017279594,"95,352.64"
Department for Work and Pensions,Jobcentre Plus,09/09/2010,EMPLOYMENT PROGRAMMES,HQ BALANCE SHEET ,BTCV ENTERPRISES LTD,2017074034,"95,254.68"
Department for Work and Pensions,Jobcentre Plus,03/09/2010,EMPLOYMENT PROGRAMMES,HQ BALANCE SHEET ,BIRMINGHAM CHAMBER TRAINING,2016969170,"95,132.82"
Department for Work and Pensions,Jobcentre Plus,30/09/2010,EMPLOYMENT PROGRAMMES,HQ BALANCE SHEET ,BISCOM RESOURCE MANAGEMENT,2017382487,"94,989.03"
Department for Work and Pensions,Employment Programmes,23/09/2010,YOUNG PERSONS GUARANTEE (YPG) AND FUTURE JOBS FUND (FJF),EG EMPLOYMENT PROGRAMMES,GLASGOW CITY COUNCIL,2017277386,"94,950.00"
Department for Work and Pensions,Employment Programmes,24/09/2010,YOUNG PERSONS GUARANTEE (YPG) AND FUTURE JOBS FUND (FJF),EG EMPLOYMENT PROGRAMMES,INVERCLYDE COUNCIL,2017284514,"94,950.00"
Department for Work and Pensions,Housing Benefits,14/09/2010,HB COOL DEL PROGRAMME,WWG HOUSING BENEFIT,FLINTSHIRE COUNTY COUNCIL,2017081860,"94,926.00"
Department for Work and Pensions,Employment Programmes,13/09/2010,JOBCENTRE PLUS PATHWAYS TO WORK,EG EMPLOYMENT PROGRAMMES,AYRSHIRE & ARRAN HEALTH BOARD,2017074536,"94,809.83"
Department for Work and Pensions,Employment Programmes,08/09/2010,FND,EG EMPLOYMENT PROGRAMMES,SERCO LTD,2017060189,"94,808.00"
Department for Work and Pensions,Employment Programmes,14/09/2010,YOUNG PERSONS GUARANTEE (YPG) AND FUTURE JOBS FUND (FJF),EG EMPLOYMENT PROGRAMMES,CARDIFF COUNTY COUNCIL,2017083792,"94,800.00"
Department for Work and Pensions,Jobcentre Plus,30/09/2010,EMPLOYMENT PROGRAMMES,HQ BALANCE SHEET ,VT SOUTHERN CAREERS LTD COMMUNITY OUTREACH SERVICE,2017388313,"94,229.07"
Department for Work and Pensions,Housing Benefits,14/09/2010,HB COOL DEL PROGRAMME,WWG HOUSING BENEFIT,GREAT YARMOUTH COUNCIL,2017081869,"94,191.00"
Department for Work and Pensions,Corporate,13/09/2010,PRINTING STATIONERY IT & CONSUMABLES,GROUP FINANCE,XEROX UK LIMITED 3W,2017080669,"94,150.82"
Department for Work and Pensions,Corporate,13/09/2010,MANAGEMENT CONSULTANCY,CORPORATE IT,ATKINS LTD,2017074526,"94,050.00"
Department for Work and Pensions,Housing Benefits,14/09/2010,HB COOL DEL PROGRAMME,WWG HOUSING BENEFIT,BASINGSTOKE DISTRICT COUNCIL,2017081752,"93,841.00"
Department for Work and Pensions,Employment Programmes,06/09/2010,YOUNG PERSONS GUARANTEE (YPG) AND FUTURE JOBS FUND (FJF),EG EMPLOYMENT PROGRAMMES,SURREY COUNTY COUNCIL,2016979578,"93,600.00"
Department for Work and Pensions,Housing Benefits,14/09/2010,HB COOL DEL PROGRAMME,WWG HOUSING BENEFIT,BURNLEY BOROUGH COUNCIL,2017081780,"93,465.00"
Department for Work and Pensions,Housing Benefits,14/09/2010,HB COOL DEL PROGRAMME,WWG HOUSING BENEFIT,HUNTINGDON DISTRICT COUNCIL,2017081888,"93,448.00"
Department for Work and Pensions,Jobcentre Plus,23/09/2010,EMPLOYMENT PROGRAMMES,HQ BALANCE SHEET ,TNG NETWORK LTD,2017279826,"92,701.99"
Department for Work and Pensions,Housing Benefits,14/09/2010,HB COOL DEL PROGRAMME,WWG HOUSING BENEFIT,LANCASTER CITY COUNCIL,2017081899,"92,695.00"
Department for Work and Pensions,Employment Programmes,17/09/2010,WORKSTEP,EG EMPLOYMENT PROGRAMMES,ENHAM,2017176721,"92,658.85"
Department for Work and Pensions,Employment Programmes,23/09/2010,YOUNG PERSONS GUARANTEE (YPG) AND FUTURE JOBS FUND (FJF),EG EMPLOYMENT PROGRAMMES,DORSET COUNTY COUNCIL,2017275808,"92,550.00"
Department for Work and Pensions,Jobcentre Plus,30/09/2010,EMPLOYMENT PROGRAMMES,HQ BALANCE SHEET ,TNG LTD,2017388210,"92,409.05"
Department for Work and Pensions,Housing Benefits,14/09/2010,HB COOL DEL PROGRAMME,WWG HOUSING BENEFIT,PERTH & KINROSS COUNCIL,2017081983,"92,250.00"
Department for Work and Pensions,Housing Benefits,14/09/2010,HB COOL DEL PROGRAMME,WWG HOUSING BENEFIT,OXFORD CITY COUNCIL,2017081980,"92,017.00"
Department for Work and Pensions,Jobcentre Plus,03/09/2010,EMPLOYMENT PROGRAMMES,HQ BALANCE SHEET ,CLAVERHOUSE GROUP,2016969446,"91,640.48"
Department for Work and Pensions,Employment Programmes,06/09/2010,YOUNG PERSONS GUARANTEE (YPG) AND FUTURE JOBS FUND (FJF),EG EMPLOYMENT PROGRAMMES,LANCASHIRE COUNTY COUNCIL,2016978424,"91,000.00"
Department for Work and Pensions,Employment Programmes,07/09/2010,YOUNG PERSONS GUARANTEE (YPG) AND FUTURE JOBS FUND (FJF),EG EMPLOYMENT PROGRAMMES,NORTH AYRSHIRE COUNCIL,2016988239,"91,000.00"
Department for Work and Pensions,Housing Benefits,14/09/2010,HB COOL DEL PROGRAMME,WWG HOUSING BENEFIT,DARLINGTON BOROUGH COUNCIL,2017081822,"90,659.00"
Department for Work and Pensions,Housing Benefits,14/09/2010,HB COOL DEL PROGRAMME,WWG HOUSING BENEFIT,PENDLE BOROUGH COUNCIL,2017081982,"90,567.00"
Department for Work and Pensions,Jobcentre Plus,03/09/2010,EMPLOYMENT PROGRAMMES,HQ BALANCE SHEET ,ARGYLL & BUTE COUNCIL,2016969076,"90,258.49"
Department for Work and Pensions,Housing Benefits,14/09/2010,HB COOL DEL PROGRAMME,WWG HOUSING BENEFIT,EASTBOURNE BOROUGH COUNCIL,2017081847,"90,212.00"
Department for Work and Pensions,Employment Programmes,16/09/2010,YOUNG PERSONS GUARANTEE (YPG) AND FUTURE JOBS FUND (FJF),EG EMPLOYMENT PROGRAMMES,CITY OF EDINBURGH COUNCIL,2017169192,"90,000.00"
Department for Work and Pensions,Housing Benefits,14/09/2010,HB COOL DEL PROGRAMME,WWG HOUSING BENEFIT,NEW FOREST DISTRICT COUNCIL,2017081953,"89,980.00"
Department for Work and Pensions,Corporate,15/09/2010,IS/IT,CORPORATE IT,SPECIALIST COMPUTER CENTRE PLC,2017158890,"89,843.44"
Department for Work and Pensions,Housing Benefits,14/09/2010,HB COOL DEL PROGRAMME,WWG HOUSING BENEFIT,POOLE BOROUGH COUNCIL,2017081986,"89,656.00"
Department for Work and Pensions,Employment Programmes,08/09/2010,EP GENERIC PROVIDER PAYMENTS,EG EMPLOYMENT PROGRAMMES,REED IN PARTNERSHIP,2017051958,"89,486.25"
Department for Work and Pensions,Employment Programmes,22/09/2010,YOUNG PERSONS GUARANTEE (YPG) AND FUTURE JOBS FUND (FJF),EG EMPLOYMENT PROGRAMMES,RESOURCE PLUS FUTURE JOB FUND,2017258306,"89,400.96"
Department for Work and Pensions,Jobcentre Plus,30/09/2010,EMPLOYMENT PROGRAMMES,HQ BALANCE SHEET ,ASL RECRUITMENT LTD,2017382354,"89,400.00"
Department for Work and Pensions,Housing Benefits,14/09/2010,HB COOL DEL PROGRAMME,WWG HOUSING BENEFIT,NUNEATON BOROUGH COUNCIL,2017081976,"88,903.00"
Department for Work and Pensions,Corporate,24/09/2010,PROFESSIONAL FEES,PENSIONS CLIENT DIRECTORATE,NATCEN,2017285662,"88,650.00"
Department for Work and Pensions,Housing Benefits,14/09/2010,HB COOL DEL PROGRAMME,WWG HOUSING BENEFIT,SOUTH AYRSHIRE COUNCIL,2017082024,"88,629.00"
Department for Work and Pensions,Employment Programmes,23/09/2010,FND,EG EMPLOYMENT PROGRAMMES,SERCO LTD,2017279601,"87,615.00"
Department for Work and Pensions,Housing Benefits,14/09/2010,HB COOL DEL PROGRAMME,WWG HOUSING BENEFIT,CANTERBURY CITY COUNCIL,2017081786,"87,010.00"
Department for Work and Pensions,Housing Benefits,14/09/2010,HB COOL DEL PROGRAMME,WWG HOUSING BENEFIT,ASHFIELD DISTRICT COUNCIL,2017081745,"86,990.00"
Department for Work and Pensions,Jobcentre Plus,30/09/2010,EMPLOYMENT PROGRAMMES,HQ BALANCE SHEET ,CROSBY TRAINING,2017382944,"86,894.42"
Department for Work and Pensions,Jobcentre Plus,03/09/2010,EMPLOYMENT PROGRAMMES,HQ BALANCE SHEET ,MAY & STEPHENS LTD,2016972284,"86,700.00"
Department for Work and Pensions,Employment Programmes,22/09/2010,WORKSTEP,EG EMPLOYMENT PROGRAMMES,NORTHAMPTONSHIRE COUNTY COUNCIL,2017252537,"86,608.75"
Department for Work and Pensions,Housing Benefits,14/09/2010,HB COOL DEL PROGRAMME,WWG HOUSING BENEFIT,WYCOMBE DISTRICT COUNCIL,2017082114,"86,428.00"
Department for Work and Pensions,Employment Programmes,01/09/2010,YOUNG PERSONS GUARANTEE (YPG) AND FUTURE JOBS FUND (FJF),EG EMPLOYMENT PROGRAMMES,CAMBRIDGESHIRE COUNTY COUNCIL,2016958343,"85,863.37"
Department for Work and Pensions,Housing Benefits,14/09/2010,HB COOL DEL PROGRAMME,WWG HOUSING BENEFIT,CHERWELL DISTRICT COUNCIL,2017081795,"85,571.00"
Department for Work and Pensions,Jobcentre Plus,03/09/2010,EMPLOYMENT PROGRAMMES,HQ BALANCE SHEET ,TNG INBIZ LTD,2016973430,"85,553.96"
Department for Work and Pensions,Housing Benefits,14/09/2010,HB COOL DEL PROGRAMME,WWG HOUSING BENEFIT,CHELMSFORD BOROUGH COUNCIL,2017081793,"85,486.00"
Department for Work and Pensions,Jobcentre Plus,07/09/2010,MANAGEMENT CONSULTANCY,TPM PROGRAMMES,CAPGEMINI UK PLC,2016982608,"85,405.80"
Department for Work and Pensions,Jobcentre Plus,30/09/2010,EMPLOYMENT PROGRAMMES,HQ BALANCE SHEET ,ARGYLL & BUTE COUNCIL,2017382345,"85,341.40"
Department for Work and Pensions,Housing Benefits,14/09/2010,HB COOL DEL PROGRAMME,WWG HOUSING BENEFIT,SCOTTISH BORDERS COUNCIL,2017082013,"85,328.00"
Department for Work and Pensions,Housing Benefits,14/09/2010,HB COOL DEL PROGRAMME,WWG HOUSING BENEFIT,MAIDSTONE BOROUGH COUNCIL,2017081935,"85,164.00"
Department for Work and Pensions,Housing Benefits,14/09/2010,HB COOL DEL PROGRAMME,WWG HOUSING BENEFIT,CHESTERFIELD BOROUGH COUNCIL,2017081798,"85,112.00"
Department for Work and Pensions,Housing Benefits,14/09/2010,HB COOL DEL PROGRAMME,WWG HOUSING BENEFIT,MANSFIELD DISTRICT COUNCIL,2017081939,"84,753.00"
Department for Work and Pensions,Jobcentre Plus,30/09/2010,EMPLOYMENT PROGRAMMES,HQ BALANCE SHEET ,MIDDLETON MURRAY BUSINESS SOLUTIONS LTD,2017386595,"84,600.00"
Department for Work and Pensions,Employment Programmes,06/09/2010,YOUNG PERSONS GUARANTEE (YPG) AND FUTURE JOBS FUND (FJF),EG EMPLOYMENT PROGRAMMES,IXION HOLDINGS LTD,2016977861,"84,500.00"
Department for Work and Pensions,Employment Programmes,07/09/2010,YOUNG PERSONS GUARANTEE (YPG) AND FUTURE JOBS FUND (FJF),EG EMPLOYMENT PROGRAMMES,IXION HOLDINGS LTD,2016985369,"84,500.00"
Department for Work and Pensions,Employment Programmes,07/09/2010,YOUNG PERSONS GUARANTEE (YPG) AND FUTURE JOBS FUND (FJF),EG EMPLOYMENT PROGRAMMES,RCT HOMES,2016989252,"84,500.00"
Department for Work and Pensions,Corporate,07/09/2010,NON PRIME CHARGES,SHARED SERVICES ,DEPARTMENT FOR EDUCATION & SKILLS,2016983366,"84,431.50"
Department for Work and Pensions,Housing Benefits,14/09/2010,HB COOL DEL PROGRAMME,WWG HOUSING BENEFIT,DACORUM BOROUGH COUNCIL,2017081821,"84,358.00"
Department for Work and Pensions,Housing Benefits,14/09/2010,HB COOL DEL PROGRAMME,WWG HOUSING BENEFIT,TORFAEN BOROUGH COUNCIL,2017082076,"84,272.00"
Department for Work and Pensions,Employment Programmes,22/09/2010,YOUNG PERSONS GUARANTEE (YPG) AND FUTURE JOBS FUND (FJF),EG EMPLOYMENT PROGRAMMES,BRISTOL CITY COUNCIL,2017207630,"84,000.00"
Department for Work and Pensions,Housing Benefits,14/09/2010,HB COOL DEL PROGRAMME,WWG HOUSING BENEFIT,WEST BERKSHIRE COUNCIL,2017082092,"83,927.00"
Department for Work and Pensions,Housing Benefits,14/09/2010,HB COOL DEL PROGRAMME,WWG HOUSING BENEFIT,PEMBROKESHIRE COUNTY COUNCIL,2017081981,"83,843.00"
Department for Work and Pensions,Housing Benefits,14/09/2010,HB COOL DEL PROGRAMME,WWG HOUSING BENEFIT,CRAWLEY BOROUGH COUNCIL,2017081819,"83,771.00"
Department for Work and Pensions,Employment Programmes,17/09/2010,YOUNG PERSONS GUARANTEE (YPG) AND FUTURE JOBS FUND (FJF),EG EMPLOYMENT PROGRAMMES,CUMBRIA COUNTY COUNCIL,2017175273,"83,550.00"
Department for Work and Pensions,Housing Benefits,14/09/2010,HB COOL DEL PROGRAMME,WWG HOUSING BENEFIT,SHEPWAY DISTRICT COUNCIL,2017082019,"83,516.00"
Department for Work and Pensions,Jobcentre Plus,30/09/2010,EMPLOYMENT PROGRAMMES,HQ BALANCE SHEET ,CORNWALL COUNTY COUNCIL,2017382923,"83,324.01"
Department for Work and Pensions,Employment Programmes,21/09/2010,YOUNG PERSONS GUARANTEE (YPG) AND FUTURE JOBS FUND (FJF),EG EMPLOYMENT PROGRAMMES,CAMBRIDGESHIRE COUNTY COUNCIL,2017189843,"83,035.98"
Department for Work and Pensions,Housing Benefits,14/09/2010,HB COOL DEL PROGRAMME,WWG HOUSING BENEFIT,AYLESBURY VALE DISTRICT COUNCIL,2017081747,"82,876.00"
Department for Work and Pensions,Jobcentre Plus,30/09/2010,EMPLOYMENT PROGRAMMES,HQ BALANCE SHEET ,SEETEC,2017387875,"82,777.73"
Department for Work and Pensions,Housing Benefits,14/09/2010,HB COOL DEL PROGRAMME,WWG HOUSING BENEFIT,DOVER DISTRICT COUNCIL,2017081829,"82,732.00"
Department for Work and Pensions,Housing Benefits,14/09/2010,HB COOL DEL PROGRAMME,WWG HOUSING BENEFIT,GEDLING BOROUGH COUNCIL,2017081865,"82,667.00"
Department for Work and Pensions,Jobcentre Plus,03/09/2010,EMPLOYMENT PROGRAMMES,HQ BALANCE SHEET ,SEETEC,2016973199,"82,472.38"
Department for Work and Pensions,Housing Benefits,14/09/2010,HB COOL DEL PROGRAMME,WWG HOUSING BENEFIT,GUILDFORD BOROUGH COUNCIL,2017081870,"82,366.00"
Department for Work and Pensions,Employment Programmes,02/09/2010,YOUNG PERSONS GUARANTEE (YPG) AND FUTURE JOBS FUND (FJF),EG EMPLOYMENT PROGRAMMES,FIFE COUNCIL,2016964573,"82,350.00"
Department for Work and Pensions,Jobcentre Plus,03/09/2010,EMPLOYMENT PROGRAMMES,HQ BALANCE SHEET ,MIDDLETON MURRAY BUSINESS SOLUTIONS LTD,2016972307,"82,200.00"
Department for Work and Pensions,Jobcentre Plus,22/09/2010,APPS DEV,TPMD,HP ENTERPRISE SERVICES UK LTD,2017225831,"82,129.22"
Department for Work and Pensions,Employment Programmes,28/09/2010,YOUNG PERSONS GUARANTEE (YPG) AND FUTURE JOBS FUND (FJF),EG EMPLOYMENT PROGRAMMES,CORNWALL COUNCIL,2017296253,"82,050.00"
Department for Work and Pensions,Corporate,23/09/2010,EMPLOYMENT ZONES,GROUP FINANCE,CITY SAVE CREDIT UNION LTD,2017275524,"82,029.00"
Department for Work and Pensions,Housing Benefits,14/09/2010,HB COOL DEL PROGRAMME,WWG HOUSING BENEFIT,WREXHAM COUNTY BOROUGH COUNCIL,2017082112,"81,833.00"
Department for Work and Pensions,Housing Benefits,14/09/2010,HB COOL DEL PROGRAMME,WWG HOUSING BENEFIT,CONWY COUNTY BOROUGH COUNCIL,2017081810,"81,561.00"
Department for Work and Pensions,Housing Benefits,14/09/2010,HB COOL DEL PROGRAMME,WWG HOUSING BENEFIT,WYRE FOREST DISTRICT COUNCIL,2017082116,"81,314.00"
Department for Work and Pensions,Housing Benefits,14/09/2010,HB COOL DEL PROGRAMME,WWG HOUSING BENEFIT,TEIGNBRIDGE DISTRICT COUNCIL,2017082066,"81,249.00"
Department for Work and Pensions,Housing Benefits,14/09/2010,HB COOL DEL PROGRAMME,WWG HOUSING BENEFIT,BRECKLAND DISTRICT COUNCIL,2017081771,"81,244.00"
Department for Work and Pensions,Housing Benefits,14/09/2010,HB COOL DEL PROGRAMME,WWG HOUSING BENEFIT,CHARNWOOD BOROUGH COUNCIL,2017081792,"80,708.00"
Department for Work and Pensions,"Pension, Disability Carers Services",14/09/2010,APPS DEV,PDCS CORE,HP ENTERPRISE SERVICES UK LTD,2017085801,"80,106.10"
Department for Work and Pensions,Jobcentre Plus,20/09/2010,COMPUTER SERVICES,TPM PROGRAMMES,ACCENTURE UK LTD,2017182642,"80,039.39"
Department for Work and Pensions,Housing Benefits,14/09/2010,HB COOL DEL PROGRAMME,WWG HOUSING BENEFIT,HAVANT BOROUGH COUNCIL,2017081881,"80,018.00"
Department for Work and Pensions,"Pension, Disability Carers Services",01/09/2010,COMPUTER SERVICES,PDCS CHANGE ,ATOS ORIGIN IT SERVICES UK LTD,2016958182,"79,918.64"
Department for Work and Pensions,Housing Benefits,14/09/2010,HB COOL DEL PROGRAMME,WWG HOUSING BENEFIT,NEWCASTLE UNDER LYME BOROUGH COUNCIL,2017081956,"79,579.00"
Department for Work and Pensions,Housing Benefits,14/09/2010,HB COOL DEL PROGRAMME,WWG HOUSING BENEFIT,VALE OF GLAMORGAN COUNCIL,2017082081,"79,455.00"
Department for Work and Pensions,Employment Programmes,27/09/2010,YOUNG PERSONS GUARANTEE (YPG) AND FUTURE JOBS FUND (FJF),EG EMPLOYMENT PROGRAMMES,THE ROYAL SOCIETY OF WILDLIFE TRUSTS,2017293173,"79,350.00"
Department for Work and Pensions,Housing Benefits,14/09/2010,HB COOL DEL PROGRAMME,WWG HOUSING BENEFIT,NORTH HERTFORDSHIRE DISTRICT COUNCIL,2017081963,"79,174.00"
Department for Work and Pensions,Employment Programmes,08/09/2010,YOUNG PERSONS GUARANTEE (YPG) AND FUTURE JOBS FUND (FJF),EG EMPLOYMENT PROGRAMMES,WAKEFIELD METROPLITAN DISTRICT COUNCIL,2017065650,"79,104.80"
Department for Work and Pensions,Jobcentre Plus,09/09/2010,EMPLOYMENT PROGRAMMES,HQ BALANCE SHEET ,RENOVO EMPLOYMENT GROUP LTD,2017074117,"79,050.00"
Department for Work and Pensions,Corporate,30/09/2010,PRIME CHARGES,GROUP FINANCE,TELEREAL TRILLIUM,2017388154,"79,044.32"
Department for Work and Pensions,Housing Benefits,14/09/2010,HB COOL DEL PROGRAMME,WWG HOUSING BENEFIT,HARROGATE BOROUGH COUNCIL,2017081877,"78,900.00"
Department for Work and Pensions,Housing Benefits,14/09/2010,HB COOL DEL PROGRAMME,WWG HOUSING BENEFIT,AMBER VALLEY BOROUGH COUNCIL,2017081741,"78,207.00"
Department for Work and Pensions,Employment Programmes,30/09/2010,YOUNG PERSONS GUARANTEE (YPG) AND FUTURE JOBS FUND (FJF),EG EMPLOYMENT PROGRAMMES,ROYAL BOROUGH OF WINDSOR & MAIDENHEAD,2017387407,"78,150.00"
Department for Work and Pensions,Housing Benefits,14/09/2010,HB COOL DEL PROGRAMME,WWG HOUSING BENEFIT,GWYNEDD COUNCIL,2017081871,"78,115.00"
Department for Work and Pensions,Housing Benefits,14/09/2010,HB COOL DEL PROGRAMME,WWG HOUSING BENEFIT,HYNDBURN BOROUGH COUNCIL,2017081889,"78,005.00"
Department for Work and Pensions,Employment Programmes,06/09/2010,YOUNG PERSONS GUARANTEE (YPG) AND FUTURE JOBS FUND (FJF),EG EMPLOYMENT PROGRAMMES,NEW TESTAMENT ASSEMBLY OPEN DOOR CONSORTIUM,2016978820,"78,000.00"
Department for Work and Pensions,Employment Programmes,07/09/2010,YOUNG PERSONS GUARANTEE (YPG) AND FUTURE JOBS FUND (FJF),EG EMPLOYMENT PROGRAMMES,SOLIHULL METROPOLITAN BOROUGH COUNCIL,2016990225,"78,000.00"
Department for Work and Pensions,"Pension, Disability Carers Services",14/09/2010,APPS DEV,PDCS CORE,HP ENTERPRISE SERVICES UK LTD,2017085801,"77,543.83"
Department for Work and Pensions,Housing Benefits,14/09/2010,HB COOL DEL PROGRAMME,WWG HOUSING BENEFIT,CHELTENHAM BOROUGH COUNCIL,2017081794,"77,454.00"
Department for Work and Pensions,Employment Programmes,20/09/2010,WORKSTEP,EG EMPLOYMENT PROGRAMMES,RHONDDA CYNON TAFF CBC,2017187093,"77,013.00"
Department for Work and Pensions,Employment Programmes,08/09/2010,YOUNG PERSONS GUARANTEE (YPG) AND FUTURE JOBS FUND (FJF),EG EMPLOYMENT PROGRAMMES,PINNACLE PEOPLE ENTERPRISES CIC,2017048786,"76,874.59"
Department for Work and Pensions,Employment Programmes,30/09/2010,YOUNG PERSONS GUARANTEE (YPG) AND FUTURE JOBS FUND (FJF),EG EMPLOYMENT PROGRAMMES,FIFE COUNCIL,2017384623,"76,800.00"
Department for Work and Pensions,Housing Benefits,14/09/2010,HB COOL DEL PROGRAMME,WWG HOUSING BENEFIT,FENLAND DISTRICT COUNCIL,2017081858,"76,681.00"
Department for Work and Pensions,Housing Benefits,14/09/2010,HB COOL DEL PROGRAMME,WWG HOUSING BENEFIT,EAST STAFFORDSHIRE DISTRICT COUNCIL,2017081846,"76,561.00"
Department for Work and Pensions,Housing Benefits,14/09/2010,HB COOL DEL PROGRAMME,WWG HOUSING BENEFIT,WYRE BOROUGH COUNCIL,2017082115,"76,506.00"
Department for Work and Pensions,Employment Programmes,30/09/2010,FND,EG EMPLOYMENT PROGRAMMES,SERCO LTD,2017387882,"76,375.00"
Department for Work and Pensions,Housing Benefits,14/09/2010,HB COOL DEL PROGRAMME,WWG HOUSING BENEFIT,HARLOW DISTRICT COUNCIL,2017081876,"76,367.00"
Department for Work and Pensions,Housing Benefits,14/09/2010,HB COOL DEL PROGRAMME,WWG HOUSING BENEFIT,BASSETLAW DISTRICT COUNCIL,2017081753,"76,153.00"
Department for Work and Pensions,Employment Programmes,22/09/2010,ACCESS TO WORK,EG EMPLOYMENT PROGRAMMES,ROLLS ROYCE PLC,2017258444,"76,088.79"
Department for Work and Pensions,Jobcentre Plus,14/09/2010,APPS DEV,TPM PROGRAMMES,HP ENTERPRISE SERVICES UK LTD,2017085801,"76,027.95"
Department for Work and Pensions,Corporate,03/09/2010,TEMPORARY (TEMP) STAFF COSTS,DIRECTGOV ,RETHINK RECRUITMENT SOLUTIONS LTD,2016972853,"76,007.52"
Department for Work and Pensions,Housing Benefits,14/09/2010,HB COOL DEL PROGRAMME,WWG HOUSING BENEFIT,EREWASH BOROUGH COUNCIL,2017081854,"75,994.00"
Department for Work and Pensions,Corporate,24/09/2010,STAFF COSTS,Corporate and Support Services,FLETCHER CONSULTANCY,2017284219,"75,700.00"
Department for Work and Pensions,Housing Benefits,14/09/2010,HB COOL DEL PROGRAMME,WWG HOUSING BENEFIT,LINCOLN CITY COUNCIL,2017081904,"75,622.00"
Department for Work and Pensions,Jobcentre Plus,03/09/2010,EMPLOYMENT PROGRAMMES,HQ BALANCE SHEET ,CALIBRE SEARCH & SELECTION,2016969390,"75,150.00"
Department for Work and Pensions,Employment Programmes,28/09/2010,YOUNG PERSONS GUARANTEE (YPG) AND FUTURE JOBS FUND (FJF),EG EMPLOYMENT PROGRAMMES,BEDFORD BOROUGH COUNCIL,2017295517,"75,082.20"
Department for Work and Pensions,Employment Programmes,17/09/2010,ND 18-24 GATEWAY,EG EMPLOYMENT PROGRAMMES,MANAGEMENT INTRODUCTIONS LTD,2017177932,"75,045.24"
Department for Work and Pensions,Employment Programmes,30/09/2010,YOUNG PERSONS GUARANTEE (YPG) AND FUTURE JOBS FUND (FJF),EG EMPLOYMENT PROGRAMMES,WILTSHIRE COUNCIL,2017388377,"74,859.42"
Department for Work and Pensions,Housing Benefits,14/09/2010,HB COOL DEL PROGRAMME,WWG HOUSING BENEFIT,WORTHING BOROUGH COUNCIL,2017082111,"74,846.00"
Department for Work and Pensions,Housing Benefits,14/09/2010,HB COOL DEL PROGRAMME,WWG HOUSING BENEFIT,EXETER CITY COUNCIL,2017081855,"74,806.00"
Department for Work and Pensions,Corporate,08/09/2010,EMPLOYMENT ZONES,WWG ,COI CENTRAL OFFICE OF INFO,2017005028,"74,767.95"
Department for Work and Pensions,Jobcentre Plus,17/09/2010,EMPLOYMENT PROGRAMMES,HQ BALANCE SHEET ,KENNEDY SCOTT LTD,2017177501,"74,740.45"
Department for Work and Pensions,Jobcentre Plus,30/09/2010,EMPLOYMENT PROGRAMMES,HQ BALANCE SHEET ,STOKE ON TRENT COLLEGE,2017387980,"74,684.54"
Department for Work and Pensions,Jobcentre Plus,23/09/2010,EMPLOYMENT PROGRAMMES,HQ BALANCE SHEET ,ARGYLL & BUTE COUNCIL,2017275137,"74,635.93"
Department for Work and Pensions,Jobcentre Plus,13/09/2010,APPS DEV,ISD,HP ENTERPRISE SERVICES UK LTD,2017078127,"74,613.08"
Department for Work and Pensions,Housing Benefits,14/09/2010,HB COOL DEL PROGRAMME,WWG HOUSING BENEFIT,ANGUS COUNCIL,2017081742,"74,533.00"
Department for Work and Pensions,Corporate,14/09/2010,COMPUTER SERVICES,CORPORATE IT,BT SYNTEGRA,2017083243,"74,223.06"
Department for Work and Pensions,"Pension, Disability Carers Services",15/09/2010,TOTAL SUPPLIES & SERVICES,PDCS CORE,ROYAL MAIL GROUP PLC,2017150523,"74,103.84"
Department for Work and Pensions,Employment Programmes,06/09/2010,YOUNG PERSONS GUARANTEE (YPG) AND FUTURE JOBS FUND (FJF),EG EMPLOYMENT PROGRAMMES,NEWHAM COLLEGE OF FURTHER EDUCATION,2016978825,"74,100.00"
Department for Work and Pensions,Employment Programmes,07/09/2010,YOUNG PERSONS GUARANTEE (YPG) AND FUTURE JOBS FUND (FJF),EG EMPLOYMENT PROGRAMMES,WARWICKSHIRE COUNTY COUNCIL,2016990823,"74,100.00"
Department for Work and Pensions,Employment Programmes,07/09/2010,YOUNG PERSONS GUARANTEE (YPG) AND FUTURE JOBS FUND (FJF),EG EMPLOYMENT PROGRAMMES,DEVON COUNTY COUNCIL,2016983371,"74,000.00"
Department for Work and Pensions,Housing Benefits,14/09/2010,HB COOL DEL PROGRAMME,WWG HOUSING BENEFIT,SOUTH KESTEVEN DISTRICT COUNCIL,2017082031,"73,880.00"
Department for Work and Pensions,Housing Benefits,14/09/2010,HB COOL DEL PROGRAMME,WWG HOUSING BENEFIT,POWYS COUNTY COUNCIL,2017081988,"73,529.00"
Department for Work and Pensions,Housing Benefits,14/09/2010,HB COOL DEL PROGRAMME,WWG HOUSING BENEFIT,SEDGEMOOR DISTRICT COUNCIL,2017082014,"73,043.00"
Department for Work and Pensions,Housing Benefits,14/09/2010,HB COOL DEL PROGRAMME,WWG HOUSING BENEFIT,WARWICK DISTRICT COUNCIL,2017082086,"72,993.00"
Department for Work and Pensions,Employment Programmes,22/09/2010,YOUNG PERSONS GUARANTEE (YPG) AND FUTURE JOBS FUND (FJF),EG EMPLOYMENT PROGRAMMES,PROJECT SCOTLAND,2017255283,"72,900.00"
Department for Work and Pensions,Housing Benefits,14/09/2010,HB COOL DEL PROGRAMME,WWG HOUSING BENEFIT,TAUNTON DEANE BOROUGH COUNCIL,2017082065,"72,812.00"
Department for Work and Pensions,Housing Benefits,14/09/2010,HB COOL DEL PROGRAMME,WWG HOUSING BENEFIT,WEST LANCASHIRE DISTRICT COUNCIL,2017082096,"72,811.00"
Department for Work and Pensions,Jobcentre Plus,17/09/2010,EMPLOYMENT PROGRAMMES,HQ BALANCE SHEET ,TOMORROWS PEOPLE LTD,2017179054,"72,757.53"
Department for Work and Pensions,Jobcentre Plus,30/09/2010,EMPLOYMENT PROGRAMMES,HQ BALANCE SHEET ,MAY & STEPHENS LTD,2017386568,"72,750.00"
Department for Work and Pensions,Corporate,30/09/2010,PRIME CHARGES,GROUP FINANCE,TELEREAL TRILLIUM,2017388154,"72,600.14"
Department for Work and Pensions,Employment Programmes,07/09/2010,ACCESS TO WORK,EG EMPLOYMENT PROGRAMMES,CENTRE FOR DEAF STUDIES UNI OF BRISTOL,2016982637,"72,510.93"
Department for Work and Pensions,Corporate,13/09/2010,MISCELLANEOUS EXPENDITURE,EG,MDRC,3004072,"72,459.50"
Department for Work and Pensions,Housing Benefits,14/09/2010,HB COOL DEL PROGRAMME,WWG HOUSING BENEFIT,CAMBRIDGE CITY COUNCIL,2017081784,"71,908.00"
Department for Work and Pensions,Housing Benefits,14/09/2010,HB COOL DEL PROGRAMME,WWG HOUSING BENEFIT,GRAVESHAM BOROUGH COUNCIL,2017081868,"71,733.00"
Department for Work and Pensions,Jobcentre Plus,03/09/2010,EMPLOYMENT PROGRAMMES,HQ BALANCE SHEET ,RENOVO EMPLOYMENT GROUP LTD,2016972852,"71,700.00"
Department for Work and Pensions,Housing Benefits,14/09/2010,HB COOL DEL PROGRAMME,WWG HOUSING BENEFIT,BROXTOWE BOROUGH COUNCIL,2017081779,"71,621.00"
Department for Work and Pensions,Employment Programmes,14/09/2010,YOUNG PERSONS GUARANTEE (YPG) AND FUTURE JOBS FUND (FJF),EG EMPLOYMENT PROGRAMMES,ANGUS COUNCIL,2017082926,"71,550.00"
Department for Work and Pensions,Employment Programmes,22/09/2010,YOUNG PERSONS GUARANTEE (YPG) AND FUTURE JOBS FUND (FJF),EG EMPLOYMENT PROGRAMMES,HASTINGS BOROUGH COUNCIL,2017225733,"71,550.00"
Department for Work and Pensions,Housing Benefits,14/09/2010,HB COOL DEL PROGRAMME,WWG HOUSING BENEFIT,CANNOCK CHASE DISTRICT COUNCIL,2017081785,"71,539.00"
Department for Work and Pensions,Employment Programmes,07/09/2010,YOUNG PERSONS GUARANTEE (YPG) AND FUTURE JOBS FUND (FJF),EG EMPLOYMENT PROGRAMMES,WEST SUSSEX COUNTY COUNCIL,2016990838,"71,500.00"
Department for Work and Pensions,Jobcentre Plus,03/09/2010,EMPLOYMENT PROGRAMMES,HQ BALANCE SHEET ,ARMSTRONG LEARNING LTD,2016969077,"71,031.24"
Department for Work and Pensions,Housing Benefits,14/09/2010,HB COOL DEL PROGRAMME,WWG HOUSING BENEFIT,HERTSMERE BOROUGH COUNCIL,2017081883,"71,022.00"
Department for Work and Pensions,Housing Benefits,14/09/2010,HB COOL DEL PROGRAMME,WWG HOUSING BENEFIT,DENBIGHSHIRE COUNTY COUNCIL,2017081825,"70,973.00"
Department for Work and Pensions,Employment Programmes,27/09/2010,NDDP,EG EMPLOYMENT PROGRAMMES,THE WISE GROUP,2017293177,"70,556.92"
Department for Work and Pensions,Employment Programmes,20/09/2010,WORKSTEP,EG EMPLOYMENT PROGRAMMES,PURE INNOVATIONS,2017186152,"70,530.30"
Department for Work and Pensions,Employment Programmes,20/09/2010,YOUNG PERSONS GUARANTEE (YPG) AND FUTURE JOBS FUND (FJF),EG EMPLOYMENT PROGRAMMES,WOLSELEY COMMUNITY ECONOMIC DEVELOPMENT TRUST,2017186924,"70,280.80"
Department for Work and Pensions,Employment Programmes,07/09/2010,YOUNG PERSONS GUARANTEE (YPG) AND FUTURE JOBS FUND (FJF),EG EMPLOYMENT PROGRAMMES,SCOTTISH WILDLIFE TRUST,2016990153,"70,092.00"
Department for Work and Pensions,Corporate,02/09/2010,INTERNATIONAL PROGRAMMES,WWG ,NORLAND MANAGED SERVICES LTD,2016966311,"69,636.34"
Department for Work and Pensions,Jobcentre Plus,30/09/2010,EMPLOYMENT PROGRAMMES,HQ BALANCE SHEET ,CHESHIRE TRAINING ASSOCIATES LTD,2017382865,"69,564.24"
Department for Work and Pensions,Housing Benefits,14/09/2010,HB COOL DEL PROGRAMME,WWG HOUSING BENEFIT,WELWYN HATFIELD DISTRICT COUNCIL,2017082091,"69,302.00"
Department for Work and Pensions,Employment Programmes,17/09/2010,JSP ESF DEL P COSTS,EG EMPLOYMENT PROGRAMMES,REED IN PARTNERSHIP,2017178503,"69,022.55"
Department for Work and Pensions,Corporate,13/09/2010,CFERS PAID TO HM TREASURY,HQ BALANCE SHEET ,CONSOLIDATED FUND,2002131,"69,000.00"
Department for Work and Pensions,Housing Benefits,14/09/2010,HB COOL DEL PROGRAMME,WWG HOUSING BENEFIT,REIGATE & BANSTEAD BOROUGH COUNCIL,2017081993,"68,821.00"
Department for Work and Pensions,Jobcentre Plus,03/09/2010,EMPLOYMENT PROGRAMMES,HQ BALANCE SHEET ,SCVO,2016973193,"68,769.57"
Department for Work and Pensions,Employment Programmes,14/09/2010,FND,EG EMPLOYMENT PROGRAMMES,SERCO LTD,2017090896,"68,499.00"
Department for Work and Pensions,Jobcentre Plus,03/09/2010,EMPLOYMENT PROGRAMMES,HQ BALANCE SHEET ,MACLEOD ASSOCIATES VIA INTERIM,2016972273,"68,400.00"
Department for Work and Pensions,Housing Benefits,14/09/2010,HB COOL DEL PROGRAMME,WWG HOUSING BENEFIT,BLAENAU GWENT COUNTY BOROUGH COUNCIL,2017081760,"68,398.00"
Department for Work and Pensions,Housing Benefits,14/09/2010,HB COOL DEL PROGRAMME,WWG HOUSING BENEFIT,ARGYLL & BUTE COUNCIL,2017081743,"68,314.00"
Department for Work and Pensions,Employment Programmes,03/09/2010,YOUNG PERSONS GUARANTEE (YPG) AND FUTURE JOBS FUND (FJF),EG EMPLOYMENT PROGRAMMES,NEATH PORT TALBOT COUNTY BOROUGH COUNCIL,2016972436,"68,250.00"
Department for Work and Pensions,Housing Benefits,14/09/2010,HB COOL DEL PROGRAMME,WWG HOUSING BENEFIT,NORTH DEVON DISTRICT COUNCIL,2017081959,"68,168.00"
Department for Work and Pensions,Jobcentre Plus,03/09/2010,EMPLOYMENT PROGRAMMES,HQ BALANCE SHEET ,TNG BUSINESS SUPPORT LTD,2016973428,"68,096.54"
Department for Work and Pensions,Jobcentre Plus,03/09/2010,EMPLOYMENT PROGRAMMES,HQ BALANCE SHEET ,CHESHIRE TRAINING ASSOCIATES LTD,2016969427,"67,983.91"
Department for Work and Pensions,Corporate,13/09/2010,COMPUTER SERVICES,GROUP FINANCE,SIEMENS IT SOLUTIONS & SERVICES LTD,2017080270,"67,977.21"
Department for Work and Pensions,Employment Programmes,24/09/2010,YOUNG PERSONS GUARANTEE (YPG) AND FUTURE JOBS FUND (FJF),EG EMPLOYMENT PROGRAMMES,LONDON BOROUGH OF HARINGEY,2017285236,"67,950.00"
Department for Work and Pensions,Employment Programmes,24/09/2010,YOUNG PERSONS GUARANTEE (YPG) AND FUTURE JOBS FUND (FJF),EG EMPLOYMENT PROGRAMMES,DEVON COUNTY COUNCIL,2017282843,"67,800.00"
Department for Work and Pensions,Employment Programmes,29/09/2010,YOUNG PERSONS GUARANTEE (YPG) AND FUTURE JOBS FUND (FJF),EG EMPLOYMENT PROGRAMMES,BLACKPOOL COUNCIL,2017314095,"67,800.00"
Department for Work and Pensions,Employment Programmes,06/09/2010,YOUNG PERSONS GUARANTEE (YPG) AND FUTURE JOBS FUND (FJF),EG EMPLOYMENT PROGRAMMES,LONDON YOUTH,2016978460,"67,600.00"
Department for Work and Pensions,Housing Benefits,14/09/2010,HB COOL DEL PROGRAMME,WWG HOUSING BENEFIT,WINDSOR & MAIDENHEAD BOROUGH COUNCIL,2017082105,"67,397.00"
Department for Work and Pensions,Jobcentre Plus,28/09/2010,ACCOMMODATION,CHIEF OPERATING OFFICER,TELEREAL TRILLIUM,2017304897,"67,361.54"
Department for Work and Pensions,Housing Benefits,14/09/2010,HB COOL DEL PROGRAMME,WWG HOUSING BENEFIT,EAST DEVON DISTRICT COUNCIL,2017081836,"67,273.00"
Department for Work and Pensions,Housing Benefits,14/09/2010,HB COOL DEL PROGRAMME,WWG HOUSING BENEFIT,NORTH NORFOLK DISTRICT COUNCIL,2017081967,"67,074.00"
Department for Work and Pensions,Housing Benefits,14/09/2010,HB COOL DEL PROGRAMME,WWG HOUSING BENEFIT,BROXBOURNE BOROUGH COUNCIL,2017081778,"67,028.00"
Department for Work and Pensions,Jobcentre Plus,09/09/2010,EMPLOYMENT PROGRAMMES,HQ BALANCE SHEET ,INGEUS UK LTD,2017074076,"66,985.65"
Department for Work and Pensions,Housing Benefits,14/09/2010,HB COOL DEL PROGRAMME,WWG HOUSING BENEFIT,STROUD DISTRICT COUNCIL,2017082055,"66,743.00"
Department for Work and Pensions,Jobcentre Plus,23/09/2010,EMPLOYMENT PROGRAMMES,HQ BALANCE SHEET ,SHAW TRUST LTD,2017279607,"66,666.50"
Department for Work and Pensions,Housing Benefits,14/09/2010,HB COOL DEL PROGRAMME,WWG HOUSING BENEFIT,WORCESTER CITY COUNCIL,2017082110,"66,530.00"
Department for Work and Pensions,Housing Benefits,14/09/2010,HB COOL DEL PROGRAMME,WWG HOUSING BENEFIT,ASHFORD BOROUGH COUNCIL,2017081746,"66,491.00"
Department for Work and Pensions,Corporate,03/09/2010,TEMPORARY (TEMP) STAFF COSTS,DIRECTGOV ,RETHINK RECRUITMENT SOLUTIONS LTD,2016972853,"66,476.69"
Department for Work and Pensions,Housing Benefits,14/09/2010,HB COOL DEL PROGRAMME,WWG HOUSING BENEFIT,MENDIP DISTRICT COUNCIL,2017081942,"66,396.00"
Department for Work and Pensions,Housing Benefits,14/09/2010,HB COOL DEL PROGRAMME,WWG HOUSING BENEFIT,CITY OF CARLISLE DISTRICT COUNCIL,2017081803,"66,220.00"
Department for Work and Pensions,"Pension, Disability Carers Services",07/09/2010,CONTRACTED OUT OFFICE SERVICES,PDCS CORE,CAPITA BUSINESS SERVICES LTD,2016982609,"66,071.93"
Department for Work and Pensions,Employment Programmes,22/09/2010,YOUNG PERSONS GUARANTEE (YPG) AND FUTURE JOBS FUND (FJF),EG EMPLOYMENT PROGRAMMES,ST PAULS COMMUNITY DEVELOPMENT TRUST,2017266874,"65,806.40"
Department for Work and Pensions,Corporate,14/09/2010,COMPUTER SERVICES,PENSIONS CLIENT DIRECTORATE,HP ENTERPRISE SERVICES UK LTD,2017085801,"65,753.00"
Department for Work and Pensions,Employment Programmes,08/09/2010,FND,EG EMPLOYMENT PROGRAMMES,PERTEMPS,2017048769,"65,718.00"
Department for Work and Pensions,Employment Programmes,08/09/2010,FND,EG EMPLOYMENT PROGRAMMES,WORKING LINKS,2017065727,"65,478.00"
Department for Work and Pensions,Housing Benefits,14/09/2010,HB COOL DEL PROGRAMME,WWG HOUSING BENEFIT,EPPING FOREST DISTRICT COUNCIL,2017081852,"65,360.00"
Department for Work and Pensions,Housing Benefits,14/09/2010,HB COOL DEL PROGRAMME,WWG HOUSING BENEFIT,NEWARK DISTRICT COUNCIL,2017081954,"65,237.00"
Department for Work and Pensions,Jobcentre Plus,01/09/2010,IS/IT,ISD,SPECIALIST COMPUTER CENTRES PLC,2016960922,"65,196.25"
Department for Work and Pensions,Housing Benefits,14/09/2010,HB COOL DEL PROGRAMME,WWG HOUSING BENEFIT,STEVENAGE BOROUGH COUNCIL,2017082049,"65,002.00"
Department for Work and Pensions,Employment Programmes,28/09/2010,YOUNG PERSONS GUARANTEE (YPG) AND FUTURE JOBS FUND (FJF),EG EMPLOYMENT PROGRAMMES,FUTURE JOBS SOUTH LONDON BUSINESS,2017298360,"64,950.00"
Department for Work and Pensions,Employment Programmes,06/09/2010,YOUNG PERSONS GUARANTEE (YPG) AND FUTURE JOBS FUND (FJF),EG EMPLOYMENT PROGRAMMES,LONDON EAST CONNEXIONS PARTNERSHIP LTD,2016978459,"64,924.60"
Department for Work and Pensions,Housing Benefits,14/09/2010,HB COOL DEL PROGRAMME,WWG HOUSING BENEFIT,ALLERDALE DISTRICT COUNCIL,2017081740,"64,906.00"
Department for Work and Pensions,Employment Programmes,08/09/2010,YOUNG PERSONS GUARANTEE (YPG) AND FUTURE JOBS FUND (FJF),EG EMPLOYMENT PROGRAMMES,RHYL CITY STRATEGY COMMUNITY INTEREST COMPANY,2017051976,"64,800.00"
Department for Work and Pensions,Employment Programmes,13/09/2010,YOUNG PERSONS GUARANTEE (YPG) AND FUTURE JOBS FUND (FJF),EG EMPLOYMENT PROGRAMMES,RENFREWSHIRE COUNCIL,2017079885,"64,760.48"
Department for Work and Pensions,Housing Benefits,14/09/2010,HB COOL DEL PROGRAMME,WWG HOUSING BENEFIT,CHICHESTER DISTRICT COUNCIL,2017081799,"64,727.00"
Department for Work and Pensions,Jobcentre Plus,17/09/2010,EMPLOYMENT PROGRAMMES,HQ BALANCE SHEET ,SENCIA LTD,2017178843,"64,717.73"
Department for Work and Pensions,Housing Benefits,14/09/2010,HB COOL DEL PROGRAMME,WWG HOUSING BENEFIT,WEALDEN DISTRICT COUNCIL,2017082090,"64,682.00"
Department for Work and Pensions,Employment Programmes,27/09/2010,YOUNG PERSONS GUARANTEE (YPG) AND FUTURE JOBS FUND (FJF),EG EMPLOYMENT PROGRAMMES,CARDIFF CITY COUNCIL,2017293336,"64,650.00"
Department for Work and Pensions,Employment Programmes,16/09/2010,FND,EG EMPLOYMENT PROGRAMMES,MAXIMUS EMPLOYMENT UK LTD,2017172830,"64,416.00"
Department for Work and Pensions,Housing Benefits,14/09/2010,HB COOL DEL PROGRAMME,WWG HOUSING BENEFIT,EAST HERTFORDSHIRE DISTRICT COUNCIL,2017081840,"64,322.00"
Department for Work and Pensions,Employment Programmes,08/09/2010,FND,EG EMPLOYMENT PROGRAMMES,A4E LTD,2016997740,"64,098.00"
Department for Work and Pensions,Employment Programmes,23/09/2010,YOUNG PERSONS GUARANTEE (YPG) AND FUTURE JOBS FUND (FJF),EG EMPLOYMENT PROGRAMMES,CITY & COUNTY OF SWANSEA,2017275522,"63,750.00"
Department for Work and Pensions,Employment Programmes,07/09/2010,YOUNG PERSONS GUARANTEE (YPG) AND FUTURE JOBS FUND (FJF),EG EMPLOYMENT PROGRAMMES,LUTON BOROUGH COUNCIL,2016987143,"63,720.00"
Department for Work and Pensions,Employment Programmes,29/09/2010,FND,EG EMPLOYMENT PROGRAMMES,SERCO LTD,2017373433,"63,720.00"
Department for Work and Pensions,Housing Benefits,14/09/2010,HB COOL DEL PROGRAMME,WWG HOUSING BENEFIT,BOROUGH OF REDDITCH,2017081763,"63,669.00"
Department for Work and Pensions,Jobcentre Plus,03/09/2010,EMPLOYMENT PROGRAMMES,HQ BALANCE SHEET ,BTCV ENTERPRISES LTD,2016969207,"63,613.80"
Department for Work and Pensions,Employment Programmes,01/09/2010,JOBCENTRE PLUS PATHWAYS TO WORK,EG EMPLOYMENT PROGRAMMES,DUMFRIES & GALLOWAY HEALTH BOARD,2002110,"63,209.00"
Department for Work and Pensions,Housing Benefits,14/09/2010,HB COOL DEL PROGRAMME,WWG HOUSING BENEFIT,SOUTH NORFOLK DISTRICT COUNCIL,2017082034,"63,103.00"
Department for Work and Pensions,Employment Programmes,24/09/2010,FND,EG EMPLOYMENT PROGRAMMES,A4E LTD,2017282061,"63,087.00"
Department for Work and Pensions,Housing Benefits,14/09/2010,HB COOL DEL PROGRAMME,WWG HOUSING BENEFIT,ROTHER DISTRICT COUNCIL,2017082001,"62,881.00"
Department for Work and Pensions,"Pension, Disability Carers Services",14/09/2010,NETWORK,PDCS CHANGE ,BT SYNTEGRA,2017083243,"62,572.28"
Department for Work and Pensions,Employment Programmes,01/09/2010,YOUNG PERSONS GUARANTEE (YPG) AND FUTURE JOBS FUND (FJF),EG EMPLOYMENT PROGRAMMES,WEST DUNBARTONSHIRE COUNCIL,2016961080,"62,513.40"
Department for Work and Pensions,Corporate,13/09/2010,PROFESSIONAL FEES,WWG,WELSH ASSEMBLY GOVERNMENT,2017080640,"62,416.00"
Department for Work and Pensions,Corporate,23/09/2010,TEMPORARY (TEMP) STAFF COSTS,GROUP FINANCE,CAPITA RESOURCING LIMITED,2017275498,"62,103.08"
Department for Work and Pensions,Jobcentre Plus,14/09/2010,APPS DEV,ISD,HP ENTERPRISE SERVICES UK LTD,2017085801,"61,809.96"
Department for Work and Pensions,Housing Benefits,14/09/2010,HB COOL DEL PROGRAMME,WWG HOUSING BENEFIT,RUGBY BOROUGH COUNCIL,2017082004,"61,670.00"
Department for Work and Pensions,Jobcentre Plus,30/09/2010,ACCOMMODATION,CHIEF OPERATING OFFICER,TELEREAL TRILLIUM,2017388156,"61,597.49"
Department for Work and Pensions,Housing Benefits,14/09/2010,HB COOL DEL PROGRAMME,WWG HOUSING BENEFIT,ST EDMUNDSBURY BOROUGH COUNCIL,2017082045,"61,554.00"
Department for Work and Pensions,Employment Programmes,06/09/2010,YOUNG PERSONS GUARANTEE (YPG) AND FUTURE JOBS FUND (FJF),EG EMPLOYMENT PROGRAMMES,ACACIA DESTINY CIC,2016975462,"61,524.40"
Department for Work and Pensions,Housing Benefits,14/09/2010,HB COOL DEL PROGRAMME,WWG HOUSING BENEFIT,TONBRIDGE & MALLING DISTRICT COUNCIL,2017082074,"61,460.00"
Department for Work and Pensions,Housing Benefits,14/09/2010,HB COOL DEL PROGRAMME,WWG HOUSING BENEFIT,EAST LOTHIAN DISTRICT COUNCIL,2017081842,"61,452.00"
Department for Work and Pensions,Jobcentre Plus,30/09/2010,EMPLOYMENT PROGRAMMES,HQ BALANCE SHEET ,BTCV ENTERPRISES LTD,2017382524,"61,389.95"
Department for Work and Pensions,Housing Benefits,14/09/2010,HB COOL DEL PROGRAMME,WWG HOUSING BENEFIT,SUFFOLK COASTAL DISTRICT COUNCIL,2017082056,"61,138.00"
Department for Work and Pensions,Employment Programmes,07/09/2010,YOUNG PERSONS GUARANTEE (YPG) AND FUTURE JOBS FUND (FJF),EG EMPLOYMENT PROGRAMMES,LEEDS CITY COUNCIL,2016987090,"61,100.00"
Department for Work and Pensions,Housing Benefits,14/09/2010,HB COOL DEL PROGRAMME,WWG HOUSING BENEFIT,BARROW BOROUGH COUNCIL,2017081750,"61,035.00"
Department for Work and Pensions,Jobcentre Plus,07/09/2010,ACCOMMODATION,CHIEF OPERATING OFFICER,TELEREAL TRILLIUM,2016987075,"61,029.65"
Department for Work and Pensions,Employment Programmes,29/09/2010,FND,EG EMPLOYMENT PROGRAMMES,PERTEMPS,2017362139,"60,850.00"
Department for Work and Pensions,Housing Benefits,14/09/2010,HB COOL DEL PROGRAMME,WWG HOUSING BENEFIT,CASTLE POINT DISTRICT COUNCIL,2017081789,"60,724.00"
Department for Work and Pensions,Employment Programmes,08/09/2010,ACCESS TO WORK,EG EMPLOYMENT PROGRAMMES,ROYAL BRITISH LEGION INDUSTRIES,2017052115,"60,540.30"
Department for Work and Pensions,Employment Programmes,17/09/2010,YOUNG PERSONS GUARANTEE (YPG) AND FUTURE JOBS FUND (FJF),EG EMPLOYMENT PROGRAMMES,CAMDEN COUNCIL,2017175180,"60,311.30"
Department for Work and Pensions,Housing Benefits,14/09/2010,HB COOL DEL PROGRAMME,WWG HOUSING BENEFIT,CHORLEY BOROUGH COUNCIL,2017081801,"60,170.00"
Department for Work and Pensions,Employment Programmes,08/09/2010,FND,EG EMPLOYMENT PROGRAMMES,SERCO LTD,2017060189,"60,125.00"
Department for Work and Pensions,Corporate,13/09/2010,OTHER GRANTS IN AID,WWG ,MOTABILITY,2017079299,"60,000.00"
Department for Work and Pensions,Housing Benefits,14/09/2010,HB COOL DEL PROGRAMME,WWG HOUSING BENEFIT,LEWES DISTRICT COUNCIL,2017081902,"59,934.00"
Department for Work and Pensions,Employment Programmes,23/09/2010,ND 18-24 GATEWAY,EG EMPLOYMENT PROGRAMMES,CLAVERHOUSE GROUP,2017275527,"59,934.00"
Department for Work and Pensions,Corporate,13/09/2010,MARKETING,Corporate and Support Services,ATOMIC MULITIMEDIA,2017074527,"59,925.00"
Department for Work and Pensions,Housing Benefits,14/09/2010,HB COOL DEL PROGRAMME,WWG HOUSING BENEFIT,WYCHAVON DISTRICT COUNCIL,2017082113,"59,905.00"
Department for Work and Pensions,Housing Benefits,14/09/2010,HB COOL DEL PROGRAMME,WWG HOUSING BENEFIT,STRATFORD ON AVON DISTRICT COUNCIL,2017082054,"59,868.00"
Department for Work and Pensions,Housing Benefits,14/09/2010,HB COOL DEL PROGRAMME,WWG HOUSING BENEFIT,GOSPORT BOROUGH COUNCIL,2017081867,"59,842.00"
Department for Work and Pensions,Jobcentre Plus,17/09/2010,EMPLOYMENT PROGRAMMES,HQ BALANCE SHEET ,BUSINESS EMPLOYMENT SERVICES TRAINING LTD,2017174961,"59,810.54"
Department for Work and Pensions,Employment Programmes,13/09/2010,WORK PREPARATION,EG EMPLOYMENT PROGRAMMES,MENCAP IN WALES,2017079264,"59,806.90"
Department for Work and Pensions,Employment Programmes,02/09/2010,YOUNG PERSONS GUARANTEE (YPG) AND FUTURE JOBS FUND (FJF),EG EMPLOYMENT PROGRAMMES,CUMBRIA COUNTY COUNCIL,2016962910,"59,800.00"
Department for Work and Pensions,Jobcentre Plus,30/09/2010,EMPLOYMENT PROGRAMMES,HQ BALANCE SHEET ,ARMSTRONG LEARNING LTD,2017382346,"59,618.92"
Department for Work and Pensions,Employment Programmes,03/09/2010,YOUNG PERSONS GUARANTEE (YPG) AND FUTURE JOBS FUND (FJF),EG EMPLOYMENT PROGRAMMES,THE HEALTHY HUB CIC,2016973403,"59,596.10"
Department for Work and Pensions,Corporate,30/09/2010,CAPITAL GRANTS,GROUP FINANCE,SHEFFIELD CREDIT UNION,2017387894,"59,418.00"
Department for Work and Pensions,Housing Benefits,14/09/2010,HB COOL DEL PROGRAMME,WWG HOUSING BENEFIT,ELMBRIDGE BOROUGH COUNCIL,2017081851,"59,007.00"
Department for Work and Pensions,Corporate,28/09/2010,EMPLOYMENT ZONES,GROUP FINANCE,LLANDUDNO & DISTRICT CREDIT UNION LTD,2017301073,"58,982.00"
Department for Work and Pensions,Employment Programmes,03/09/2010,FND,EG EMPLOYMENT PROGRAMMES,SERCO LTD,2016973206,"58,941.00"
Department for Work and Pensions,Employment Programmes,15/09/2010,PROGRESS TO WORK,EG EMPLOYMENT PROGRAMMES,WORKING LINKS,2017163839,"58,922.19"
Department for Work and Pensions,Employment Programmes,07/09/2010,WORKSTEP,EG EMPLOYMENT PROGRAMMES,RBLI WORKWISE,2016989249,"58,919.00"
Department for Work and Pensions,Jobcentre Plus,30/09/2010,EMPLOYMENT PROGRAMMES,HQ BALANCE SHEET ,PERTEMPS EMPLOYMENT ALLIANCE,2017387077,"58,695.32"
Department for Work and Pensions,Housing Benefits,14/09/2010,HB COOL DEL PROGRAMME,WWG HOUSING BENEFIT,RUSHMOOR BOROUGH COUNCIL,2017082007,"58,664.00"
Department for Work and Pensions,Employment Programmes,23/09/2010,YOUNG PERSONS GUARANTEE (YPG) AND FUTURE JOBS FUND (FJF),EG EMPLOYMENT PROGRAMMES,NEATH PORT TALBOT COUNTY BOROUGH COUNCIL,2017278804,"58,650.00"
Department for Work and Pensions,Corporate,30/09/2010,ACCOMMODATION,SHARED SERVICES ,TELEREAL TRILLIUM,2017388158,"58,549.84"
Department for Work and Pensions,Employment Programmes,22/09/2010,YOUNG PERSONS GUARANTEE (YPG) AND FUTURE JOBS FUND (FJF),EG EMPLOYMENT PROGRAMMES,CAMDEN COUNCIL,2017212685,"58,528.70"
Department for Work and Pensions,Housing Benefits,14/09/2010,HB COOL DEL PROGRAMME,WWG HOUSING BENEFIT,TUNBRIDGE WELLS BOROUGH COUNCIL,2017082079,"58,506.00"
Department for Work and Pensions,Jobcentre Plus,09/09/2010,EMPLOYMENT PROGRAMMES,HQ BALANCE SHEET ,WORKING LINKS,2017074156,"58,443.69"
Department for Work and Pensions,Employment Programmes,14/09/2010,WORKSTEP,EG EMPLOYMENT PROGRAMMES,AZURE CHARITABLE ENTERPRISES,2017082975,"58,245.50"
Department for Work and Pensions,Housing Benefits,14/09/2010,HB COOL DEL PROGRAMME,WWG HOUSING BENEFIT,EASTLEIGH BOROUGH COUNCIL,2017081848,"58,236.00"
Department for Work and Pensions,Housing Benefits,14/09/2010,HB COOL DEL PROGRAMME,WWG HOUSING BENEFIT,VALE OF WHITE HORSE DISTRICT COUNCIL,2017082082,"58,212.00"
Department for Work and Pensions,Employment Programmes,17/09/2010,FND,EG EMPLOYMENT PROGRAMMES,A4E LTD,2017174776,"58,163.00"
Department for Work and Pensions,Jobcentre Plus,17/09/2010,EMPLOYMENT PROGRAMMES,HQ BALANCE SHEET ,CAREERS DEVELOPMENT GROUP LTD,2017175191,"58,145.83"
Department for Work and Pensions,Housing Benefits,14/09/2010,HB COOL DEL PROGRAMME,WWG HOUSING BENEFIT,WATFORD BOROUGH COUNCIL,2017082087,"57,844.00"
Department for Work and Pensions,Housing Benefits,14/09/2010,HB COOL DEL PROGRAMME,WWG HOUSING BENEFIT,BOROUGH OF WELLINGBOROUGH,2017081765,"57,635.00"
Department for Work and Pensions,Corporate,17/09/2010,MISCELLANEOUS EXPENDITURE,EG,RISK SOLUTIONS,2017178516,"57,274.00"
Department for Work and Pensions,Employment Programmes,17/09/2010,JSP ESF DEL P COSTS,EG EMPLOYMENT PROGRAMMES,THE INTRAINING GROUP,2017179029,"57,210.53"
Department for Work and Pensions,Housing Benefits,14/09/2010,HB COOL DEL PROGRAMME,WWG HOUSING BENEFIT,STAFFORD BOROUGH COUNCIL,2017082047,"57,207.00"
Department for Work and Pensions,Corporate,17/09/2010,INTERNATIONAL PROGRAMMES,WWG ,THE BRITISH COUNCIL,2017179020,"57,172.00"
Department for Work and Pensions,Employment Programmes,13/09/2010,ACCESS TO WORK,EG EMPLOYMENT PROGRAMMES,DELOITTE & TOUCHE,589713,"57,108.64"
Department for Work and Pensions,Housing Benefits,14/09/2010,HB COOL DEL PROGRAMME,WWG HOUSING BENEFIT,TEST VALLEY BOROUGH COUNCIL,2017082068,"57,077.00"
Department for Work and Pensions,Housing Benefits,14/09/2010,HB COOL DEL PROGRAMME,WWG HOUSING BENEFIT,HIGH PEAK BOROUGH COUNCIL,2017081884,"57,059.00"
Department for Work and Pensions,Employment Programmes,20/09/2010,YOUNG PERSONS GUARANTEE (YPG) AND FUTURE JOBS FUND (FJF),EG EMPLOYMENT PROGRAMMES,DEVON COUNTY COUNCIL,2017183265,"57,000.00"
Department for Work and Pensions,Housing Benefits,14/09/2010,HB COOL DEL PROGRAMME,WWG HOUSING BENEFIT,ST ALBANS DISTRICT COUNCIL,2017082044,"56,955.00"
Department for Work and Pensions,Employment Programmes,08/09/2010,FND,EG EMPLOYMENT PROGRAMMES,A4E LTD,2016997740,"56,902.00"
Department for Work and Pensions,Housing Benefits,14/09/2010,HB COOL DEL PROGRAMME,WWG HOUSING BENEFIT,SOUTH CAMBRIDGESHIRE DISTRICT COUNCIL,2017082026,"56,846.00"
Department for Work and Pensions,Jobcentre Plus,09/09/2010,EMPLOYMENT PROGRAMMES,HQ BALANCE SHEET ,SKILLS TRAINING UK LTD,2017074129,"56,830.94"
Department for Work and Pensions,Corporate,29/09/2010,CONTRACTED OUT OFFICE SERVICES,SHARED SERVICES ,HMRC,2017332689,"56,664.93"
Department for Work and Pensions,Housing Benefits,14/09/2010,HB COOL DEL PROGRAMME,WWG HOUSING BENEFIT,WEST LINDSEY DISTRICT COUNCIL,2017082097,"56,438.00"
Department for Work and Pensions,Housing Benefits,14/09/2010,HB COOL DEL PROGRAMME,WWG HOUSING BENEFIT,MERTHYR TYDFIL BOROUGH COUNCIL,2017081943,"56,348.00"
Department for Work and Pensions,Housing Benefits,14/09/2010,HB COOL DEL PROGRAMME,WWG HOUSING BENEFIT,NORTH EAST DERBYSHIRE DISTRICT COUNCIL,2017081961,"56,274.00"
Department for Work and Pensions,Employment Programmes,14/09/2010,WORKSTEP,EG EMPLOYMENT PROGRAMMES,SCOTTISH ASSOCIATION FOR MENTAL HEALTH,2017090877,"56,272.40"
Department for Work and Pensions,Housing Benefits,14/09/2010,HB COOL DEL PROGRAMME,WWG HOUSING BENEFIT,SEVENOAKS DISTRICT COUNCIL,2017082017,"56,137.00"
Department for Work and Pensions,Employment Programmes,03/09/2010,YOUNG PERSONS GUARANTEE (YPG) AND FUTURE JOBS FUND (FJF),EG EMPLOYMENT PROGRAMMES,SHROPSHIRE COUNCIL COUNTY TRAINING,2016973222,"55,937.84"
Department for Work and Pensions,Housing Benefits,14/09/2010,HB COOL DEL PROGRAMME,WWG HOUSING BENEFIT,WAVERLEY BOROUGH COUNCIL,2017082089,"55,782.00"
Department for Work and Pensions,Corporate,17/09/2010,TEMPORARY (TEMP) STAFF COSTS,CORPORATE IT,CAPITA RESOURCING LIMITED,2017175185,"55,779.50"
Department for Work and Pensions,Corporate,13/09/2010,CONTRACTED OUT OFFICE SERVICES,SHARED SERVICES ,CAPITA BUSINESS SERVICES LTD,2017074897,"55,764.24"
Department for Work and Pensions,Housing Benefits,14/09/2010,HB COOL DEL PROGRAMME,WWG HOUSING BENEFIT,BRACKNELL FOREST BOROUGH COUNCIL,2017081768,"55,711.00"
Department for Work and Pensions,Housing Benefits,14/09/2010,HB COOL DEL PROGRAMME,WWG HOUSING BENEFIT,SOUTH RIBBLE BOROUGH COUNCIL C,2017082037,"55,695.00"
Department for Work and Pensions,Housing Benefits,14/09/2010,HB COOL DEL PROGRAMME,WWG HOUSING BENEFIT,DARTFORD BOROUGH COUNCIL,2017081823,"55,441.00"
Department for Work and Pensions,Housing Benefits,14/09/2010,HB COOL DEL PROGRAMME,WWG HOUSING BENEFIT,KETTERING BOROUGH COUNCIL,2017081894,"55,145.00"
Department for Work and Pensions,Corporate,01/09/2010,COMPUTER SERVICES,CORPORATE IT,SPECIALIST COMPUTER CENTRE PLC,2016960921,"54,940.48"
Department for Work and Pensions,Employment Programmes,01/09/2010,YOUNG PERSONS GUARANTEE (YPG) AND FUTURE JOBS FUND (FJF),EG EMPLOYMENT PROGRAMMES,NORTH YORKSHIRE COUNTY COUNCIL,2016960519,"54,900.00"
Department for Work and Pensions,Jobcentre Plus,09/09/2010,EMPLOYMENT PROGRAMMES,HQ BALANCE SHEET ,SHAW TRUST LTD,2017074126,"54,857.28"
Department for Work and Pensions,Jobcentre Plus,29/09/2010,ACCOMMODATION,CHIEF OPERATING OFFICER,TELEREAL TRILLIUM,2017376756,"54,796.90"
Department for Work and Pensions,Housing Benefits,14/09/2010,HB COOL DEL PROGRAMME,WWG HOUSING BENEFIT,WEST DORSET DISTRICT COUNCIL,2017082094,"54,740.00"
Department for Work and Pensions,Housing Benefits,14/09/2010,HB COOL DEL PROGRAMME,WWG HOUSING BENEFIT,EAST HAMPSHIRE DISTRICT COUNCIL,2017081839,"54,713.00"
Department for Work and Pensions,Employment Programmes,07/09/2010,YOUNG PERSONS GUARANTEE (YPG) AND FUTURE JOBS FUND (FJF),EG EMPLOYMENT PROGRAMMES,BLUE SKY DEVELOPMENT & REGENERATION,2016982060,"54,600.00"
Department for Work and Pensions,Corporate,13/09/2010,CAPITAL GRANTS,GROUP FINANCE,SEFTON CREDIT UNION LTD,2017080257,"54,525.00"
Department for Work and Pensions,Housing Benefits,14/09/2010,HB COOL DEL PROGRAMME,WWG HOUSING BENEFIT,BOLSOVER DISTRICT COUNCIL,2017081761,"54,500.00"
Department for Work and Pensions,Jobcentre Plus,14/09/2010,APPS DEV,ISD PROGRAMMES,HP ENTERPRISE SERVICES UK LTD,2017085801,"54,492.44"
Department for Work and Pensions,Employment Programmes,01/09/2010,WORKSTEP,EG EMPLOYMENT PROGRAMMES,LEICESTERSHIRE COUNTY COUNCIL,2016960331,"54,434.30"
Department for Work and Pensions,Jobcentre Plus,03/09/2010,EMPLOYMENT PROGRAMMES,HQ BALANCE SHEET ,YMCA TRAINING LTD,2016973596,"54,341.16"
Department for Work and Pensions,Employment Programmes,23/09/2010,FND,EG EMPLOYMENT PROGRAMMES,SERCO LTD,2017279601,"54,176.00"
Department for Work and Pensions,Employment Programmes,20/09/2010,YOUNG PERSONS GUARANTEE (YPG) AND FUTURE JOBS FUND (FJF),EG EMPLOYMENT PROGRAMMES,HYFFORDDIANT CEREDIGION TRAINING,2017187064,"54,150.00"
Department for Work and Pensions,Housing Benefits,14/09/2010,HB COOL DEL PROGRAMME,WWG HOUSING BENEFIT,MID SUSSEX DISTRICT COUNCIL,2017081946,"54,102.00"
Department for Work and Pensions,Corporate,14/09/2010,TEMPORARY (TEMP) STAFF COSTS,CORPORATE IT,CAPITA RESOURCING LIMITED,2017083790,"53,941.46"
Department for Work and Pensions,Housing Benefits,14/09/2010,HB COOL DEL PROGRAMME,WWG HOUSING BENEFIT,MIDLOTHIAN COUNCIL,2017081948,"53,758.00"
Department for Work and Pensions,Housing Benefits,14/09/2010,HB COOL DEL PROGRAMME,WWG HOUSING BENEFIT,EAST DUNBARTONSHIRE COUNCIL,2017081838,"53,727.00"
Department for Work and Pensions,Housing Benefits,14/09/2010,HB COOL DEL PROGRAMME,WWG HOUSING BENEFIT,BROADLAND DISTRICT COUNCIL,2017081776,"53,722.00"
Department for Work and Pensions,Housing Benefits,14/09/2010,HB COOL DEL PROGRAMME,WWG HOUSING BENEFIT,WEYMOUTH & PORTLAND BOROUGH COUNCIL,2017082101,"53,659.00"
Department for Work and Pensions,Corporate,14/09/2010,MISCELLANEOUS EXPENDITURE,GROUP FINANCE,SIEMENS IT SOLUTIONS & SERVICES,2017090910,"53,380.25"
Department for Work and Pensions,Employment Programmes,07/09/2010,WORKSTEP,EG EMPLOYMENT PROGRAMMES,RBLI EMPLOYMENT SERVICES,2016989248,"53,200.00"
Department for Work and Pensions,Housing Benefits,14/09/2010,HB COOL DEL PROGRAMME,WWG HOUSING BENEFIT,NORTH KESTEVEN DISTRICT COUNCIL,2017081964,"53,153.00"
Department for Work and Pensions,Housing Benefits,14/09/2010,HB COOL DEL PROGRAMME,WWG HOUSING BENEFIT,HINCKLEY & BOSWORTH BOROUGH COUNCIL,2017081886,"52,966.00"
Department for Work and Pensions,Employment Programmes,28/09/2010,YOUNG PERSONS GUARANTEE (YPG) AND FUTURE JOBS FUND (FJF),EG EMPLOYMENT PROGRAMMES,ASPIRE FOUNDATION,2017295247,"52,800.00"
Department for Work and Pensions,Employment Programmes,01/09/2010,FND,EG EMPLOYMENT PROGRAMMES,SERCO LTD,2016960880,"52,569.00"
Department for Work and Pensions,Employment Programmes,01/09/2010,YOUNG PERSONS GUARANTEE (YPG) AND FUTURE JOBS FUND (FJF),EG EMPLOYMENT PROGRAMMES,NORTH YORKSHIRE LEARNING CONSORTIUM LTD,2016960521,"52,500.00"
Department for Work and Pensions,Employment Programmes,28/09/2010,YOUNG PERSONS GUARANTEE (YPG) AND FUTURE JOBS FUND (FJF),EG EMPLOYMENT PROGRAMMES,DEVON COUNTY COUNCIL,2017296980,"52,500.00"
Department for Work and Pensions,Employment Programmes,01/09/2010,YOUNG PERSONS GUARANTEE (YPG) AND FUTURE JOBS FUND (FJF),EG EMPLOYMENT PROGRAMMES,SOLIHULL METROPOLITAN BOROUGH COUNCIL,2016960913,"52,350.00"
Department for Work and Pensions,Housing Benefits,14/09/2010,HB COOL DEL PROGRAMME,WWG HOUSING BENEFIT,SOUTH HOLLAND DISTRICT COUNCIL,2017082030,"52,349.00"
Department for Work and Pensions,Employment Programmes,07/09/2010,JOBCENTRE PLUS PATHWAYS TO WORK,EG EMPLOYMENT PROGRAMMES,NHS GREATER GLASGOW & CLYDE,2016988225,"52,169.00"
Department for Work and Pensions,Employment Programmes,21/09/2010,YOUNG PERSONS GUARANTEE (YPG) AND FUTURE JOBS FUND (FJF),EG EMPLOYMENT PROGRAMMES,HASTINGS BOROUGH COUNCIL,2017192758,"52,050.00"
Department for Work and Pensions,Housing Benefits,14/09/2010,HB COOL DEL PROGRAMME,WWG HOUSING BENEFIT,FOREST OF DEAN DISTRICT COUNCIL,2017081862,"52,018.00"
Department for Work and Pensions,Employment Programmes,01/09/2010,YOUNG PERSONS GUARANTEE (YPG) AND FUTURE JOBS FUND (FJF),EG EMPLOYMENT PROGRAMMES,ACTION DEAFNESS,2016958152,"52,000.00"
Department for Work and Pensions,Employment Programmes,16/09/2010,YOUNG PERSONS GUARANTEE (YPG) AND FUTURE JOBS FUND (FJF),EG EMPLOYMENT PROGRAMMES,TROWBRIDGE TOWN COUNCIL,2017174294,"52,000.00"
Department for Work and Pensions,Corporate,30/09/2010,ACCOMMODATION,GROUP FINANCE,TELEREAL TRILLIUM,2017388158,"51,951.35"
Department for Work and Pensions,Corporate,08/09/2010,STAFF COSTS,Corporate and Support Services,RIGHT CORECARE,2017051985,"51,800.00"
Department for Work and Pensions,Housing Benefits,14/09/2010,HB COOL DEL PROGRAMME,WWG HOUSING BENEFIT,SOUTH STAFFORDSHIRE DISTRICT COUNCIL,2017082039,"51,783.00"
Department for Work and Pensions,Corporate,15/09/2010,TOTAL SUPPLIES & SERVICES,GROUP FINANCE,ROYAL MAIL GROUP PLC,2017150523,"51,671.64"
Department for Work and Pensions,Housing Benefits,14/09/2010,HB COOL DEL PROGRAMME,WWG HOUSING BENEFIT,SPELTHORNE BOROUGH COUNCIL,2017082043,"51,607.00"
Department for Work and Pensions,Housing Benefits,14/09/2010,HB COOL DEL PROGRAMME,WWG HOUSING BENEFIT,HORSHAM DISTRICT COUNCIL,2017081887,"51,603.00"
Department for Work and Pensions,Housing Benefits,14/09/2010,HB COOL DEL PROGRAMME,WWG HOUSING BENEFIT,CORBY BOROUGH COUNCIL,2017081812,"51,537.00"
Department for Work and Pensions,Employment Programmes,06/09/2010,WORKSTEP,EG EMPLOYMENT PROGRAMMES,LANCASHIRE COUNTY COUNCIL,2016978425,"51,411.35"
Department for Work and Pensions,Corporate,14/09/2010,APPS DEV,Corporate and Support Services,HP ENTERPRISE SERVICES UK LTD,2017085801,"51,383.50"
Department for Work and Pensions,Jobcentre Plus,17/09/2010,EMPLOYMENT PROGRAMMES,HQ BALANCE SHEET ,THE INTRAINING GROUP,2017179028,"51,258.24"
Department for Work and Pensions,Housing Benefits,14/09/2010,HB COOL DEL PROGRAMME,WWG HOUSING BENEFIT,WEST OXFORDSHIRE DISTRICT COUNCIL,2017082099,"51,254.00"
Department for Work and Pensions,Corporate,14/09/2010,TEMPORARY (TEMP) STAFF COSTS,GROUP FINANCE,CAPITA RESOURCING LIMITED,2017083790,"51,141.78"
Department for Work and Pensions,Employment Programmes,17/09/2010,FND,EG EMPLOYMENT PROGRAMMES,PERTEMPS,2017178314,"51,114.00"
Department for Work and Pensions,Employment Programmes,24/09/2010,FND,EG EMPLOYMENT PROGRAMMES,A4E LTD,2017282061,"51,041.00"
Department for Work and Pensions,Housing Benefits,14/09/2010,HB COOL DEL PROGRAMME,WWG HOUSING BENEFIT,SOUTH OXFORDSHIRE DISTRICT COUNCIL,2017082036,"51,012.00"
Department for Work and Pensions,Housing Benefits,14/09/2010,HB COOL DEL PROGRAMME,WWG HOUSING BENEFIT,NORTH WEST LEICESTER DISTRICT COUNCIL,2017081971,"50,744.00"
Department for Work and Pensions,Employment Programmes,17/09/2010,FND,EG EMPLOYMENT PROGRAMMES,A4E LTD,2017174776,"50,717.00"
Department for Work and Pensions,Employment Programmes,02/09/2010,YOUNG PERSONS GUARANTEE (YPG) AND FUTURE JOBS FUND (FJF),EG EMPLOYMENT PROGRAMMES,TROWBRIDGE TOWN COUNCIL,2016967464,"50,550.00"
Department for Work and Pensions,Employment Programmes,16/09/2010,WORKSTEP,EG EMPLOYMENT PROGRAMMES,AGORIAD CYF,2017174467,"50,496.00"
Department for Work and Pensions,Employment Programmes,29/09/2010,JSP ESF DEL P COSTS,EG EMPLOYMENT PROGRAMMES,INGEUS UK LTD,2017333346,"50,406.99"
Department for Work and Pensions,Employment Programmes,23/09/2010,FND,EG EMPLOYMENT PROGRAMMES,SERCO LTD,2017279601,"50,375.00"
Department for Work and Pensions,Housing Benefits,14/09/2010,HB COOL DEL PROGRAMME,WWG HOUSING BENEFIT,THE MORAY COUNCIL,2017082071,"50,363.00"
Department for Work and Pensions,Jobcentre Plus,15/09/2010,STAFF COSTS,CHIEF OPERATING OFFICER,AMA ASSOCIATES LTD,2017097816,"50,328.15"
Department for Work and Pensions,Employment Programmes,01/09/2010,JSP ESF DEL P COSTS,EG EMPLOYMENT PROGRAMMES,INGEUS UK LTD,2016959992,"50,309.93"
Department for Work and Pensions,Corporate,02/09/2010,INTERNATIONAL PROGRAMMES,WWG ,THE FULBRIGHT COMMISSION,2016967429,"50,000.00"
Department for Work and Pensions,Employment Programmes,23/09/2010,YOUNG PERSONS GUARANTEE (YPG) AND FUTURE JOBS FUND (FJF),EG EMPLOYMENT PROGRAMMES,SCOTTISH WILDLIFE TRUST,2017279585,"49,873.41"
Department for Work and Pensions,Housing Benefits,14/09/2010,HB COOL DEL PROGRAMME,WWG HOUSING BENEFIT,COPELAND BOROUGH COUNCIL,2017081811,"49,697.00"
Department for Work and Pensions,Corporate,30/09/2010,PRIME BUSINESS RATES,GROUP FINANCE,TELEREAL TRILLIUM,2017388155,"49,663.16"
Department for Work and Pensions,Employment Programmes,28/09/2010,YOUNG PERSONS GUARANTEE (YPG) AND FUTURE JOBS FUND (FJF),EG EMPLOYMENT PROGRAMMES,EAST TENDERS REDBRIDGE,2017298198,"49,432.80"
Department for Work and Pensions,Housing Benefits,14/09/2010,HB COOL DEL PROGRAMME,WWG HOUSING BENEFIT,LICHFIELD DISTRICT COUNCIL,2017081903,"49,288.00"
Department for Work and Pensions,Employment Programmes,28/09/2010,YOUNG PERSONS GUARANTEE (YPG) AND FUTURE JOBS FUND (FJF),EG EMPLOYMENT PROGRAMMES,BOLSOVER DISTRICT COUNCIL,2017295546,"49,200.00"
Department for Work and Pensions,Employment Programmes,01/09/2010,WORKSTEP,EG EMPLOYMENT PROGRAMMES,DUNDEE CITY COUNCIL,2016959761,"49,188.25"
Department for Work and Pensions,Corporate,07/09/2010,APPS DEV,CHANGE MANAGEMENT DIRECTORATE,HP ENTERPRISE SERVICES UK LTD,2016985252,"49,154.84"
Department for Work and Pensions,Corporate,09/09/2010,OTHER DEBTORS,HQ BALANCE SHEET ,DSCF RM SHARED SERVICES,2017071150,"49,154.54"
Department for Work and Pensions,Employment Programmes,23/09/2010,YOUNG PERSONS GUARANTEE (YPG) AND FUTURE JOBS FUND (FJF),EG EMPLOYMENT PROGRAMMES,CARMARTHENSHIRE COUNTY COUNCIL,2017281713,"49,050.00"
Department for Work and Pensions,Jobcentre Plus,06/09/2010,STAFF COSTS,HUMAN RESOURCES,PREMIER PARTNERSHIP,2016979043,"49,037.50"
Department for Work and Pensions,Housing Benefits,14/09/2010,HB COOL DEL PROGRAMME,WWG HOUSING BENEFIT,WOKING BOROUGH COUNCIL,2017082107,"48,958.00"
Department for Work and Pensions,Housing Benefits,14/09/2010,HB COOL DEL PROGRAMME,WWG HOUSING BENEFIT,STIRLING COUNCIL,2017082050,"48,894.00"
Department for Work and Pensions,Employment Programmes,07/09/2010,FND,EG EMPLOYMENT PROGRAMMES,WORKING LINKS,2016990857,"48,825.00"
Department for Work and Pensions,Housing Benefits,14/09/2010,HB COOL DEL PROGRAMME,WWG HOUSING BENEFIT,TAMWORTH BOROUGH COUNCIL,2017082063,"48,798.00"
Department for Work and Pensions,Corporate,14/09/2010,TEMPORARY (TEMP) STAFF COSTS,DIRECTGOV ,CADENCE PARTNERSHIP LLP,2017083785,"48,797.75"
Department for Work and Pensions,Corporate,29/09/2010,EMPLOYMENT ZONES,GROUP FINANCE,PLOUGH & SHARE CREDIT UNION,2017362197,"48,784.00"
Department for Work and Pensions,Employment Programmes,14/09/2010,YOUNG PERSONS GUARANTEE (YPG) AND FUTURE JOBS FUND (FJF),EG EMPLOYMENT PROGRAMMES,LONDON BOROUGH OF HAMMERSMITH & FULHAM,2017087767,"48,750.00"
Department for Work and Pensions,Corporate,07/09/2010,APPS DEV,GROUP FINANCE,HP ENTERPRISE SERVICES UK LTD,2016985252,"48,522.08"
Department for Work and Pensions,Housing Benefits,14/09/2010,HB COOL DEL PROGRAMME,WWG HOUSING BENEFIT,ROSSENDALE BOROUGH COUNCIL,2017082000,"48,357.00"
Department for Work and Pensions,Housing Benefits,14/09/2010,HB COOL DEL PROGRAMME,WWG HOUSING BENEFIT,WINCHESTER CITY COUNCIL,2017082104,"47,974.00"
Department for Work and Pensions,Corporate,14/09/2010,APPS DEV,CHANGE MANAGEMENT DIRECTORATE,HP ENTERPRISE SERVICES UK LTD,2017085801,"47,858.80"
Department for Work and Pensions,Employment Programmes,07/09/2010,YOUNG PERSONS GUARANTEE (YPG) AND FUTURE JOBS FUND (FJF),EG EMPLOYMENT PROGRAMMES,DUNDEE CITY COUNCIL,2016984442,"47,834.01"
Department for Work and Pensions,Corporate,22/09/2010,COMPUTER SERVICES,CORPORATE IT,CAPGEMINI UK PLC,2017212688,"47,743.00"
Department for Work and Pensions,Jobcentre Plus,30/09/2010,EMPLOYMENT PROGRAMMES,HQ BALANCE SHEET ,LIFE SKILLS CENTRAL LTD,2017386134,"47,717.74"
Department for Work and Pensions,Housing Benefits,14/09/2010,HB COOL DEL PROGRAMME,WWG HOUSING BENEFIT,SOUTH HAMS DISTRICT COUNCIL,2017082029,"47,487.00"
Department for Work and Pensions,Employment Programmes,20/09/2010,YOUNG PERSONS GUARANTEE (YPG) AND FUTURE JOBS FUND (FJF),EG EMPLOYMENT PROGRAMMES,CARDIFF CITY COUNCIL,2017186962,"47,400.00"
Department for Work and Pensions,European Social Fund,30/09/2010,MA ESF(D) COSTS,WWEG EUROPEAN SOCIAL FUND,NEWHAVEN COMMUNITY DEVELOPMENT ASSOCIATION,2017386795,"47,258.00"
Department for Work and Pensions,Employment Programmes,27/09/2010,YOUNG PERSONS GUARANTEE (YPG) AND FUTURE JOBS FUND (FJF),EG EMPLOYMENT PROGRAMMES,NORTH YORKSHIRE LEARNING CONSORTIUM LTD,2017292237,"47,100.00"
Department for Work and Pensions,Employment Programmes,06/09/2010,WORKSTEP,EG EMPLOYMENT PROGRAMMES,HAVEN PRODUCTS LTD,2016977793,"47,073.00"
Department for Work and Pensions,Corporate,30/09/2010,PRIME CHARGES,GROUP FINANCE,TELEREAL TRILLIUM,2017388154,"47,032.44"
Department for Work and Pensions,Employment Programmes,08/09/2010,ACCESS TO WORK,EG EMPLOYMENT PROGRAMMES,DIVERSE COMMUNICATIONS LTD,2017009669,"46,916.15"
Department for Work and Pensions,Employment Programmes,07/09/2010,YOUNG PERSONS GUARANTEE (YPG) AND FUTURE JOBS FUND (FJF),EG EMPLOYMENT PROGRAMMES,ANGUS COUNCIL,2016981783,"46,800.00"
Department for Work and Pensions,Employment Programmes,07/09/2010,YOUNG PERSONS GUARANTEE (YPG) AND FUTURE JOBS FUND (FJF),EG EMPLOYMENT PROGRAMMES,WEST LINDSEY DISTRICT COUNCIL,2016992094,"46,800.00"
Department for Work and Pensions,Employment Programmes,16/09/2010,DAF,EG EMPLOYMENT PROGRAMMES,LONDON BOROUGH OF CAMDEN,2017172434,"46,706.00"
Department for Work and Pensions,Housing Benefits,14/09/2010,HB COOL DEL PROGRAMME,WWG HOUSING BENEFIT,MONMOUTHSHIRE COUNTY  COUNCIL,2017081951,"46,643.00"
Department for Work and Pensions,Employment Programmes,03/09/2010,YOUNG PERSONS GUARANTEE (YPG) AND FUTURE JOBS FUND (FJF),EG EMPLOYMENT PROGRAMMES,PENTRA SERVICES LTD,2016972660,"46,634.80"
Department for Work and Pensions,Housing Benefits,14/09/2010,HB COOL DEL PROGRAMME,WWG HOUSING BENEFIT,BOSTON BOROUGH COUNCIL,2017081766,"46,315.00"
Department for Work and Pensions,Housing Benefits,14/09/2010,HB COOL DEL PROGRAMME,WWG HOUSING BENEFIT,CEREDIGION COUNTY COUNCIL,2017081791,"46,252.00"
Department for Work and Pensions,Employment Programmes,20/09/2010,WORKSTEP,EG EMPLOYMENT PROGRAMMES,THE PLUSS ORGANISATION LTD,2017186804,"46,250.00"
Department for Work and Pensions,Jobcentre Plus,17/09/2010,EMPLOYMENT PROGRAMMES,HQ BALANCE SHEET ,BOURNEMOUTH & POOLE COLLEGE,2017174937,"46,158.44"
Department for Work and Pensions,Jobcentre Plus,03/09/2010,EMPLOYMENT PROGRAMMES,HQ BALANCE SHEET ,PELCOMBE LTD,2016972659,"46,104.57"
Department for Work and Pensions,Employment Programmes,22/09/2010,WORKSTEP,EG EMPLOYMENT PROGRAMMES,GLOUCESTERSHIRE INDUSTRIAL SERVICES,2017224122,"46,077.20"
Department for Work and Pensions,Corporate,22/09/2010,COMPUTER SERVICES,SHARED SERVICES ,ATOS ORIGIN IT SERVICES UK LTD,2017206244,"46,050.20"
Department for Work and Pensions,Housing Benefits,14/09/2010,HB COOL DEL PROGRAMME,WWG HOUSING BENEFIT,WOKINGHAM DISTRICT COUNCIL,2017082108,"45,970.00"
Department for Work and Pensions,Employment Programmes,14/09/2010,YOUNG PERSONS GUARANTEE (YPG) AND FUTURE JOBS FUND (FJF),EG EMPLOYMENT PROGRAMMES,SOCIAL ENTERPRISE LONDON,2017090957,"45,900.00"
Department for Work and Pensions,Corporate,14/09/2010,APPS DEV,CHANGE MANAGEMENT DIRECTORATE,HP ENTERPRISE SERVICES UK LTD,2017085801,"45,829.60"
Department for Work and Pensions,Employment Programmes,03/09/2010,YOUNG PERSONS GUARANTEE (YPG) AND FUTURE JOBS FUND (FJF),EG EMPLOYMENT PROGRAMMES,WARWICKSHIRE COUNTY COUNCIL,2016973541,"45,750.00"
Department for Work and Pensions,Corporate,17/09/2010,TEMPORARY (TEMP) STAFF COSTS,GROUP FINANCE,CAPITA RESOURCING LIMITED,2017175185,"45,715.82"
Department for Work and Pensions,Employment Programmes,06/09/2010,FND,EG EMPLOYMENT PROGRAMMES,SERCO LTD,2016979515,"45,711.00"
Department for Work and Pensions,Corporate,21/09/2010,INTERNATIONAL PROGRAMMES,WWG ,HEADS TEACHERS & INDUSTRY LTD,2017192765,"45,703.29"
Department for Work and Pensions,Employment Programmes,08/09/2010,FND,EG EMPLOYMENT PROGRAMMES,A4E LTD,2016997740,"45,630.00"
Department for Work and Pensions,Employment Programmes,08/09/2010,YOUNG PERSONS GUARANTEE (YPG) AND FUTURE JOBS FUND (FJF),EG EMPLOYMENT PROGRAMMES,COVENTRY CITY COUNCIL,2017005052,"45,600.00"
Department for Work and Pensions,Jobcentre Plus,30/09/2010,EMPLOYMENT PROGRAMMES,HQ BALANCE SHEET ,STOKE ON TRENT CITY COUNCIL,2017387979,"45,596.20"
Department for Work and Pensions,Corporate,13/09/2010,EMPLOYMENT ZONES,GROUP FINANCE,SEFTON CREDIT UNION LTD,2017080257,"45,572.00"
Department for Work and Pensions,Employment Programmes,07/09/2010,YOUNG PERSONS GUARANTEE (YPG) AND FUTURE JOBS FUND (FJF),EG EMPLOYMENT PROGRAMMES,CARDIFF CITY COUNCIL,2016990948,"45,500.00"
Department for Work and Pensions,Corporate,24/09/2010,COMPUTER SERVICES,CORPORATE IT,DELL FINANCIAL SERVICES,2017282836,"45,413.30"
Department for Work and Pensions,Housing Benefits,14/09/2010,HB COOL DEL PROGRAMME,WWG HOUSING BENEFIT,THREE RIVERS DISTRICT COUNCIL,2017082072,"45,362.00"
Department for Work and Pensions,Jobcentre Plus,03/09/2010,EMPLOYMENT PROGRAMMES,HQ BALANCE SHEET ,STOKE ON TRENT CITY COUNCIL,2016973274,"45,319.30"
Department for Work and Pensions,Housing Benefits,14/09/2010,HB COOL DEL PROGRAMME,WWG HOUSING BENEFIT,ISLE OF ANGLESEY COUNTY COUNCIL,2017081892,"45,313.00"
Department for Work and Pensions,European Social Fund,30/09/2010,MA ESF(D) COSTS,WWEG EUROPEAN SOCIAL FUND,UNIVERSITY OF SUNDERLAND,2017388246,"45,301.00"
Department for Work and Pensions,Employment Programmes,22/09/2010,WORK PREPARATION,EG EMPLOYMENT PROGRAMMES,THE OAKLEA TRUST,2017269781,"45,272.25"
Department for Work and Pensions,Employment Programmes,01/09/2010,YOUNG PERSONS GUARANTEE (YPG) AND FUTURE JOBS FUND (FJF),EG EMPLOYMENT PROGRAMMES,CARDIFF CITY COUNCIL,2016961927,"45,150.00"
Department for Work and Pensions,Housing Benefits,14/09/2010,HB COOL DEL PROGRAMME,WWG HOUSING BENEFIT,BABERGH DISTRICT COUNCIL,2017081748,"44,891.00"
Department for Work and Pensions,Employment Programmes,27/09/2010,YOUNG PERSONS GUARANTEE (YPG) AND FUTURE JOBS FUND (FJF),EG EMPLOYMENT PROGRAMMES,GROUNDWORK SOUTH WEST,2017290911,"44,850.00"
Department for Work and Pensions,Corporate,21/09/2010,TOTAL SUPPLIES & SERVICES,GROUP FINANCE,UK MAIL,2017198642,"44,789.21"
Department for Work and Pensions,Corporate,21/09/2010,CONTRACTED OUT OFFICE SERVICES,GROUP FINANCE,ABCUL,2017188868,"44,775.00"
Department for Work and Pensions,Housing Benefits,14/09/2010,HB COOL DEL PROGRAMME,WWG HOUSING BENEFIT,COTSWOLD DISTRICT COUNCIL,2017081815,"44,639.00"
Department for Work and Pensions,Housing Benefits,14/09/2010,HB COOL DEL PROGRAMME,WWG HOUSING BENEFIT,STAFFORDSHIRE MOORLANDS DISTRICT COUNCIL,2017082048,"44,637.00"
Department for Work and Pensions,Employment Programmes,30/09/2010,WORKSTEP,EG EMPLOYMENT PROGRAMMES,LEICESTERSHIRE COUNTY COUNCIL,2017386127,"44,631.00"
Department for Work and Pensions,Housing Benefits,14/09/2010,HB COOL DEL PROGRAMME,WWG HOUSING BENEFIT,EAST NORTHANTS DISTRICT COUNCIL,2017081843,"44,618.00"
Department for Work and Pensions,Jobcentre Plus,03/09/2010,EMPLOYMENT PROGRAMMES,HQ BALANCE SHEET ,WORKING LINKS EMPLOYMENT LIMITED,2016973571,"44,473.24"
Department for Work and Pensions,Housing Benefits,14/09/2010,HB COOL DEL PROGRAMME,WWG HOUSING BENEFIT,FAREHAM BOROUGH COUNCIL,2017081857,"44,401.00"
Department for Work and Pensions,Housing Benefits,14/09/2010,HB COOL DEL PROGRAMME,WWG HOUSING BENEFIT,SOUTH LAKELAND DISTRICT COUNCIL,2017082032,"44,315.00"
Department for Work and Pensions,Housing Benefits,14/09/2010,HB COOL DEL PROGRAMME,WWG HOUSING BENEFIT,TEWKESBURY BOROUGH COUNCIL,2017082069,"44,289.00"
Department for Work and Pensions,Employment Programmes,20/09/2010,YOUNG PERSONS GUARANTEE (YPG) AND FUTURE JOBS FUND (FJF),EG EMPLOYMENT PROGRAMMES,COALFIELDS REGENERATION TRUST,2017183027,"44,257.92"
Department for Work and Pensions,Employment Programmes,24/09/2010,YOUNG PERSONS GUARANTEE (YPG) AND FUTURE JOBS FUND (FJF),EG EMPLOYMENT PROGRAMMES,LONDON BOROUGH OF HACKNEY,2017285234,"44,250.00"
Department for Work and Pensions,Jobcentre Plus,03/09/2010,EMPLOYMENT PROGRAMMES,HQ BALANCE SHEET ,BIRMINGHAM CITY COUNCIL,2016969172,"44,119.40"
Department for Work and Pensions,Jobcentre Plus,30/09/2010,EMPLOYMENT PROGRAMMES,HQ BALANCE SHEET ,BIRMINGHAM CITY COUNCIL,2017382481,"44,119.40"
Department for Work and Pensions,Corporate,30/09/2010,ACCOMMODATION,GROUP FINANCE,TELEREAL TRILLIUM,2017388158,"44,051.50"
Department for Work and Pensions,Employment Programmes,02/09/2010,FND,EG EMPLOYMENT PROGRAMMES,A4E LTD,2016962341,"43,919.00"
Department for Work and Pensions,Corporate,06/09/2010,MISCELLANEOUS EXPENDITURE,EG,UNIVERSITY OF WESTMINSTER PSI,2016979731,"43,901.00"
Department for Work and Pensions,Jobcentre Plus,07/09/2010,APPS DEV,TPM PROGRAMMES,HP ENTERPRISE SERVICES UK LTD,2016985252,"43,898.70"
Department for Work and Pensions,Employment Programmes,07/09/2010,YOUNG PERSONS GUARANTEE (YPG) AND FUTURE JOBS FUND (FJF),EG EMPLOYMENT PROGRAMMES,WOLSELEY COMMUNITY ECONOMIC DEVELOPMENT TRUST,2016990852,"43,877.27"
Department for Work and Pensions,European Social Fund,13/09/2010,MA ESF(D) COSTS,WWEG EUROPEAN SOCIAL FUND,SW REGIONAL SKILLS PARTNERSHIP,5000000320,"43,717.00"
Department for Work and Pensions,Employment Programmes,15/09/2010,YOUNG PERSONS GUARANTEE (YPG) AND FUTURE JOBS FUND (FJF),EG EMPLOYMENT PROGRAMMES,DUNDEE CITY COUNCIL,2017111257,"43,577.93"
Department for Work and Pensions,Housing Benefits,14/09/2010,HB COOL DEL PROGRAMME,WWG HOUSING BENEFIT,TORRIDGE DISTRICT COUNCIL,2017082077,"43,549.00"
Department for Work and Pensions,Corporate,08/09/2010,COMPUTER SERVICES,CORPORATE IT,TESCO MOBILE LTD,2017063572,"43,340.53"
Department for Work and Pensions,Corporate,30/09/2010,PRIME CHARGES,GROUP FINANCE,TELEREAL TRILLIUM,2017388154,"43,204.20"
Department for Work and Pensions,"Pension, Disability Carers Services",14/09/2010,APPS DEV,PDCS CORE,HP ENTERPRISE SERVICES UK LTD,2017085801,"43,127.11"
Department for Work and Pensions,Corporate,06/09/2010,COMPUTER SERVICES,CORPORATE IT,TRIBAL CONSULTING LTD,2016979712,"43,118.11"
Department for Work and Pensions,Employment Programmes,16/09/2010,WORK PREPARATION,EG EMPLOYMENT PROGRAMMES,SHAW TRUST LTD,2017174545,"43,118.00"
Department for Work and Pensions,Employment Programmes,17/09/2010,OTHER PROGRAMME COSTS,EG EMPLOYMENT PROGRAMMES,SKILLS FUNDING AGENCY,1004422,"43,050.00"
Department for Work and Pensions,Employment Programmes,24/09/2010,YOUNG PERSONS GUARANTEE (YPG) AND FUTURE JOBS FUND (FJF),EG EMPLOYMENT PROGRAMMES,BTCV ENTERPRISES LTD,2017282278,"43,050.00"
Department for Work and Pensions,Jobcentre Plus,03/09/2010,EMPLOYMENT PROGRAMMES,HQ BALANCE SHEET ,EMPLACEMENT RECRUITMENT,2016971060,"43,050.00"
Department for Work and Pensions,Corporate,13/09/2010,TOTAL SUPPLIES & SERVICES,Corporate and Support Services,ASE CORPORATE EYECARE LTD,2017074520,"42,853.84"
Department for Work and Pensions,Housing Benefits,14/09/2010,HB COOL DEL PROGRAMME,WWG HOUSING BENEFIT,EAST CAMBRIDGESHIRE DISTRICT COUNCIL,2017081835,"42,841.00"
Department for Work and Pensions,Housing Benefits,14/09/2010,HB COOL DEL PROGRAMME,WWG HOUSING BENEFIT,CLACKMANNANSHIRE COUNCIL,2017081807,"42,818.00"
Department for Work and Pensions,Jobcentre Plus,30/09/2010,EMPLOYMENT PROGRAMMES,HQ BALANCE SHEET ,NORTH WESSEX TRAINING,2017386812,"42,804.75"
Department for Work and Pensions,Housing Benefits,14/09/2010,HB COOL DEL PROGRAMME,WWG HOUSING BENEFIT,MID DEVON DISTRICT COUNCIL,2017081944,"42,780.00"
Department for Work and Pensions,Corporate,14/09/2010,APPS DEV,CHANGE MANAGEMENT DIRECTORATE,HP ENTERPRISE SERVICES UK LTD,2017085801,"42,752.61"
Department for Work and Pensions,Jobcentre Plus,30/09/2010,EMPLOYMENT PROGRAMMES,HQ BALANCE SHEET ,MACLEOD ASSOCIATES VIA INTERIM,2017386547,"42,750.00"
Department for Work and Pensions,Employment Programmes,02/09/2010,YOUNG PERSONS GUARANTEE (YPG) AND FUTURE JOBS FUND (FJF),EG EMPLOYMENT PROGRAMMES,RESOURCE PLUS FUTURE JOB FUND,2016966811,"42,655.36"
Department for Work and Pensions,Employment Programmes,24/09/2010,YOUNG PERSONS GUARANTEE (YPG) AND FUTURE JOBS FUND (FJF),EG EMPLOYMENT PROGRAMMES,HYFFORDDIANT CEREDIGION TRAINING,2017288012,"42,600.00"
Department for Work and Pensions,Employment Programmes,01/09/2010,YOUNG PERSONS GUARANTEE (YPG) AND FUTURE JOBS FUND (FJF),EG EMPLOYMENT PROGRAMMES,PLACES FOR PEOPLE NEIGHBOURHOODS,2016960603,"42,549.47"
Department for Work and Pensions,Corporate,15/09/2010,COMPUTER SERVICES,CORPORATE IT,HP ENTERPRISE SERVICES UK LTD,2017118165,"42,261.11"
Department for Work and Pensions,Housing Benefits,14/09/2010,HB COOL DEL PROGRAMME,WWG HOUSING BENEFIT,SOUTH DERBYSHIRE DISTRICT COUNCIL,2017082027,"42,247.00"
Department for Work and Pensions,Jobcentre Plus,22/09/2010,ACCOMMODATION,CHIEF OPERATING OFFICER,TELEREAL TRILLIUM,2017269756,"42,208.48"
Department for Work and Pensions,Corporate,30/09/2010,PRIME CHARGES,GROUP FINANCE,TELEREAL TRILLIUM,2017388154,"42,129.39"
Department for Work and Pensions,Employment Programmes,01/09/2010,FND,EG EMPLOYMENT PROGRAMMES,FOURSTAR EMPLOYMENT & SKILLS LTD,2016959851,"42,105.00"
Department for Work and Pensions,Housing Benefits,14/09/2010,HB COOL DEL PROGRAMME,WWG HOUSING BENEFIT,RUNNYMEDE BOROUGH COUNCIL,2017082005,"42,100.00"
Department for Work and Pensions,Employment Programmes,21/09/2010,FND,EG EMPLOYMENT PROGRAMMES,WORKING LINKS,2017198905,"42,093.00"
Department for Work and Pensions,Employment Programmes,17/09/2010,ACCESS TO WORK,EG EMPLOYMENT PROGRAMMES,ALFRED BEKKER LTD,2017174809,"42,092.57"
Department for Work and Pensions,Employment Programmes,24/09/2010,YOUNG PERSONS GUARANTEE (YPG) AND FUTURE JOBS FUND (FJF),EG EMPLOYMENT PROGRAMMES,RHYL CITY STRATEGY COMMUNITY INTEREST COMPANY,2017286099,"42,000.00"
Department for Work and Pensions,Jobcentre Plus,30/09/2010,ACCOMMODATION,CHIEF OPERATING OFFICER,TELEREAL TRILLIUM,2017388158,"41,910.96"
Department for Work and Pensions,Employment Programmes,02/09/2010,YOUNG PERSONS GUARANTEE (YPG) AND FUTURE JOBS FUND (FJF),EG EMPLOYMENT PROGRAMMES,THE GLOUCESTERSHIRE DEVELOPMENT AGENCY LTD,2016967431,"41,796.27"
Department for Work and Pensions,Corporate,14/09/2010,TOTAL IT & EQUIPMENT COSTS,GROUP FINANCE,CONTEXT INFORMATION SECURITY LTD,2017083875,"41,788.50"
Department for Work and Pensions,Employment Programmes,14/09/2010,WORKSTEP,EG EMPLOYMENT PROGRAMMES,HAVEN PRODUCTS LTD,2017085775,"41,777.60"
Department for Work and Pensions,Employment Programmes,29/09/2010,FND,EG EMPLOYMENT PROGRAMMES,MAXIMUS EMPLOYMENT UK LTD,2017356580,"41,602.00"
Department for Work and Pensions,Employment Programmes,07/09/2010,YOUNG PERSONS GUARANTEE (YPG) AND FUTURE JOBS FUND (FJF),EG EMPLOYMENT PROGRAMMES,NATIONAL ASSOCIATION OF CITIZENS ADVICE BUREAUX,2016988209,"41,600.00"
Department for Work and Pensions,Employment Programmes,07/09/2010,YOUNG PERSONS GUARANTEE (YPG) AND FUTURE JOBS FUND (FJF),EG EMPLOYMENT PROGRAMMES,NORTHAMPTONSHIRE ENTERPRISE LTD,2016988245,"41,600.00"
Department for Work and Pensions,Jobcentre Plus,17/09/2010,EMPLOYMENT PROGRAMMES,HQ BALANCE SHEET ,INGEUS UK LTD,2017177045,"41,503.49"
Department for Work and Pensions,Jobcentre Plus,30/09/2010,EMPLOYMENT PROGRAMMES,HQ BALANCE SHEET ,EMPLACEMENT RECRUITMENT,2017384540,"41,400.00"
Department for Work and Pensions,Employment Programmes,23/09/2010,JSP ESF DEL P COSTS,EG EMPLOYMENT PROGRAMMES,INGEUS UK LTD,2017277506,"41,378.19"
Department for Work and Pensions,Jobcentre Plus,17/09/2010,EMPLOYMENT PROGRAMMES,HQ BALANCE SHEET ,SCOUT ENTERPRISES WESTERN LTD,2017178829,"41,275.00"
Department for Work and Pensions,Employment Programmes,23/09/2010,FND,EG EMPLOYMENT PROGRAMMES,TNG LTD,2017279824,"41,265.00"
Department for Work and Pensions,Housing Benefits,14/09/2010,HB COOL DEL PROGRAMME,WWG HOUSING BENEFIT,RUSHCLIFFE BOROUGH COUNCIL,2017082006,"41,183.00"
Department for Work and Pensions,Corporate,21/09/2010,EMPLOYMENT ZONES,GROUP FINANCE,HALTON CREDIT UNION LTD,2017192750,"40,979.00"
Department for Work and Pensions,Jobcentre Plus,28/09/2010,NON PRIME CHARGES,CHIEF OPERATING OFFICER,HM LAND REGISTRY,2017298892,"40,870.00"
Department for Work and Pensions,Employment Programmes,01/09/2010,WORK PREPARATION,EG EMPLOYMENT PROGRAMMES,SHAW TRUST LTD,2016960884,"40,859.32"
Department for Work and Pensions,Corporate,14/09/2010,APPS DEV,GROUP FINANCE,HP ENTERPRISE SERVICES UK LTD,2017085801,"40,848.86"
Department for Work and Pensions,Jobcentre Plus,07/09/2010,ACCOMMODATION,CHIEF OPERATING OFFICER,TELEREAL TRILLIUM,2016987076,"40,819.39"
Department for Work and Pensions,Housing Benefits,14/09/2010,HB COOL DEL PROGRAMME,WWG HOUSING BENEFIT,EAST DORSET DISTRICT COUNCIL,2017081837,"40,747.00"
Department for Work and Pensions,Employment Programmes,07/09/2010,FND,EG EMPLOYMENT PROGRAMMES,SERCO LTD,2016990164,"40,632.00"
Department for Work and Pensions,Corporate,30/09/2010,ACCOMMODATION,GROUP FINANCE,TELEREAL TRILLIUM,2017388158,"40,601.25"
Department for Work and Pensions,Corporate,14/09/2010,APPS DEV,Corporate and Support Services,HP ENTERPRISE SERVICES UK LTD,2017085801,"40,589.08"
Department for Work and Pensions,Corporate,14/09/2010,COMPUTER SERVICES,CORPORATE IT,SPECIALIST COMPUTER CENTRES PLC,2017090972,"40,587.11"
Department for Work and Pensions,Jobcentre Plus,16/09/2010,ACCOMMODATION,CHIEF OPERATING OFFICER,TELEREAL TRILLIUM,2017172388,"40,563.53"
Department for Work and Pensions,Housing Benefits,14/09/2010,HB COOL DEL PROGRAMME,WWG HOUSING BENEFIT,CHILTERN DISTRICT COUNCIL,2017081800,"40,556.00"
Department for Work and Pensions,Corporate,13/09/2010,CAPITAL GRANTS,GROUP FINANCE,RIVERSIDE HOUSING,2017079899,"40,504.00"
Department for Work and Pensions,Housing Benefits,14/09/2010,HB COOL DEL PROGRAMME,WWG HOUSING BENEFIT,SELBY DISTRICT COUNCIL,2017082016,"40,450.00"
Department for Work and Pensions,Employment Programmes,20/09/2010,YOUNG PERSONS GUARANTEE (YPG) AND FUTURE JOBS FUND (FJF),EG EMPLOYMENT PROGRAMMES,SWINDON BOROUGH COUNCIL,2017186699,"40,350.00"
Department for Work and Pensions,Employment Programmes,30/09/2010,YOUNG PERSONS GUARANTEE (YPG) AND FUTURE JOBS FUND (FJF),EG EMPLOYMENT PROGRAMMES,SHAW TRUST LTD,2017387890,"40,338.35"
Department for Work and Pensions,Employment Programmes,15/09/2010,WORKSTEP,EG EMPLOYMENT PROGRAMMES,DURHAM COUNTY COUNCIL,2017111259,"40,309.95"
Department for Work and Pensions,Employment Programmes,07/09/2010,YOUNG PERSONS GUARANTEE (YPG) AND FUTURE JOBS FUND (FJF),EG EMPLOYMENT PROGRAMMES,PETERBOROUGH CITY COUNCIL,2016988750,"40,300.00"
Department for Work and Pensions,Corporate,06/09/2010,TEMPORARY (TEMP) STAFF COSTS,CORPORATE IT,CAPITA RESOURCING LIMITED,2016975800,"40,294.03"
Department for Work and Pensions,Employment Programmes,07/09/2010,WORKSTEP,EG EMPLOYMENT PROGRAMMES,CARMARTHENSHIRE COUNTY COUNCIL,2016990950,"40,227.50"
Department for Work and Pensions,Corporate,30/09/2010,PRIME CHARGES,GROUP FINANCE,TELEREAL TRILLIUM,2017388154,"40,201.82"
Department for Work and Pensions,Employment Programmes,14/09/2010,YOUNG PERSONS GUARANTEE (YPG) AND FUTURE JOBS FUND (FJF),EG EMPLOYMENT PROGRAMMES,ROYAL BOROUGH OF KENSINGTON & CHELSEA,2017090004,"40,050.00"
Department for Work and Pensions,Corporate,13/09/2010,STAFF COSTS,Corporate and Support Services,CABINET OFFICE,2002122,"40,000.00"
Department for Work and Pensions,Corporate,20/09/2010,PROFESSIONAL FEES,PENSIONS CLIENT DIRECTORATE,RS CONSULTING LTD,2017186337,"40,000.00"
Department for Work and Pensions,Corporate,21/09/2010,PROFESSIONAL FEES,PENSIONS CLIENT DIRECTORATE,TNS BMRB,2017198622,"40,000.00"
Department for Work and Pensions,Jobcentre Plus,30/09/2010,EMPLOYMENT PROGRAMMES,HQ BALANCE SHEET ,SHROPSHIRE COUNTY TRAINING,2017387902,"40,000.00"
Department for Work and Pensions,Employment Programmes,17/09/2010,WORKSTEP,EG EMPLOYMENT PROGRAMMES,OXFORDSHIRE COUNTY COUNCIL,2017178148,"39,997.25"
Department for Work and Pensions,Employment Programmes,28/09/2010,FND,EG EMPLOYMENT PROGRAMMES,SERCO LTD,2017304481,"39,825.00"
Department for Work and Pensions,Employment Programmes,17/09/2010,JSP ESF DEL P COSTS,EG EMPLOYMENT PROGRAMMES,SEETEC BUSINESS TECHNOLOGY CENTRE LTD,2017178840,"39,744.47"
Department for Work and Pensions,Corporate,30/09/2010,NON PRIME CHARGES,CORPORATE IT,CHORLEY BUSINESS & TECHNOLOGY CENTRE,590981,"39,600.00"
Department for Work and Pensions,Employment Programmes,06/09/2010,YOUNG PERSONS GUARANTEE (YPG) AND FUTURE JOBS FUND (FJF),EG EMPLOYMENT PROGRAMMES,INVERCLYDE COUNCIL,2016977854,"39,600.00"
Department for Work and Pensions,Housing Benefits,14/09/2010,HB COOL DEL PROGRAMME,WWG HOUSING BENEFIT,HAMBLETON DISTRICT COUNCIL,2017081874,"39,530.00"
Department for Work and Pensions,Housing Benefits,14/09/2010,HB COOL DEL PROGRAMME,WWG HOUSING BENEFIT,MID SUFFOLK DISTRICT COUNCIL,2017081945,"39,487.00"
Department for Work and Pensions,Housing Benefits,14/09/2010,HB COOL DEL PROGRAMME,WWG HOUSING BENEFIT,MALVERN HILLS DISTRICT COUNCIL,2017081937,"39,486.00"
Department for Work and Pensions,Jobcentre Plus,03/09/2010,EMPLOYMENT PROGRAMMES,HQ BALANCE SHEET ,SHAW TRUST LTD,2016973213,"39,428.67"
Department for Work and Pensions,Employment Programmes,14/09/2010,YOUNG PERSONS GUARANTEE (YPG) AND FUTURE JOBS FUND (FJF),EG EMPLOYMENT PROGRAMMES,SOUTH AYRSHIRE COUNCIL,2017090961,"39,239.74"
Department for Work and Pensions,Employment Programmes,22/09/2010,DAF,EG EMPLOYMENT PROGRAMMES,MICROCOM TRAINING LTD,2017249680,"39,219.09"
Department for Work and Pensions,Housing Benefits,14/09/2010,HB COOL DEL PROGRAMME,WWG HOUSING BENEFIT,FYLDE BOROUGH COUNCIL,2017081863,"39,163.00"
Department for Work and Pensions,Employment Programmes,30/09/2010,WORKSTEP,EG EMPLOYMENT PROGRAMMES,MENCAP NORTH,2017386581,"39,139.40"
Department for Work and Pensions,Employment Programmes,01/09/2010,YOUNG PERSONS GUARANTEE (YPG) AND FUTURE JOBS FUND (FJF),EG EMPLOYMENT PROGRAMMES,SURREY COUNTY COUNCIL,2016960939,"39,000.00"
Department for Work and Pensions,Employment Programmes,07/09/2010,FND,EG EMPLOYMENT PROGRAMMES,SERCO LTD,2016990164,"39,000.00"
Department for Work and Pensions,Employment Programmes,27/09/2010,ACCESS TO WORK,EG EMPLOYMENT PROGRAMMES,ACTION FOR BLIND PEOPLE,2017288331,"38,960.30"
Department for Work and Pensions,Jobcentre Plus,09/09/2010,EMPLOYMENT PROGRAMMES,HQ BALANCE SHEET ,WORKING LINKS EMPLOYMENT LIMITED,2017074159,"38,933.16"
Department for Work and Pensions,Corporate,21/09/2010,EMPLOYMENT ZONES,GROUP FINANCE,EREWASH CREDIT UNION LIMITED,2017192129,"38,888.00"
Department for Work and Pensions,Employment Programmes,06/09/2010,YOUNG PERSONS GUARANTEE (YPG) AND FUTURE JOBS FUND (FJF),EG EMPLOYMENT PROGRAMMES,ST PAULS COMMUNITY DEVELOPMENT TRUST,2016979567,"38,886.00"
Department for Work and Pensions,Corporate,28/09/2010,COMPUTER SERVICES,SHARED SERVICES ,ATOS ORIGIN IT SERVICES UK LTD,2017295251,"38,872.92"
Department for Work and Pensions,Employment Programmes,15/09/2010,YOUNG PERSONS GUARANTEE (YPG) AND FUTURE JOBS FUND (FJF),EG EMPLOYMENT PROGRAMMES,NEW TESTAMENT ASSEMBLY OPEN DOOR CONSORTIUM,2017144484,"38,850.00"
Department for Work and Pensions,Jobcentre Plus,09/09/2010,EMPLOYMENT PROGRAMMES,HQ BALANCE SHEET ,MAY & STEPHENS LTD,2017074091,"38,850.00"
